Workbook

Sheet pink preference
H1: growth of preference based on children's perception of the choices of same- and different-gender peers | Y1: range of parameter values
AA3: genetic preference level | AB3: G-effect
AB4: preference_B | AC4: 0.4 | AE4: samesex_effect | AF4: 3
AB5: preference_G | AC5: 0.6 | AE5: othersex_effect | AF5: 1
AB6: PREFERENCE | AC6: 0.55 | AE6: gen_effect | AF6: 0
AB7: RATE | AC7: 0.1 | AS7: preferences for pink
R9: color choices | AJ9: RATE | AK9: =$AC$7 -> 0.1 | AL9: 0.1 | AM9: 0.1 | AN9: 0.1 | AO9: 0.1 | AP9: 0.1 | AQ9: 0.1 | AR9: 0.1 | AS9: 0.1 | AT9: 0.1 | AU9: 0.1 | AV9: 0.1 | AW9: 0.1 | AX9: 0.1 | AY9: 0.1 | AZ9: 0.1 | BA9: 0.1 | BB9: 0.1 | BC9: 0.1 | BD9: 0.1
BK10: year averages
G11: OCCASION | I11: child_1 | J11: child_2 | K11: child_3 | L11: child_4 | M11: child_5 | N11: child_6 | O11: child_7 | P11: child_8 | Q11: child_9 | R11: child_10 | S11: child_11 | T11: child_12 | U11: child_13 | V11: child_14 | W11: child_15 | X11: child_16 | Y11: child_17 | Z11: child_18 | AA11: child_19 | AB11: child_20 | AC11: SUM BOYS | AD11: SUM GIRLS | AK11: child_1 | AL11: child_2 | AM11: child_3 | AN11: child_4 | AO11: child_5 | AP11: child_6 | AQ11: child_7 | AR11: child_8 | AS11: child_9 | AT11: child_10 | AU11: child_11 | AV11: child_12 | AW11: child_13 | AX11: child_14 | AY11: child_15 | AZ11: child_16 | BA11: child_17 | BB11: child_18 | BC11: child_19 | BD11: child_20 | BE11: preference boys | BF11: preference girls
G12: 1 | H12: choice_1 | I12: =IF(RAND()<=AK12,1,0) -> 0 | J12: =IF(RAND()<=AL12,1,0) -> 1 | K12: 1 | L12: 0 | M12: 1 | N12: 1 | O12: 1 | P12: 1 | Q12: 1 | R12: 1 | S12: 0 | T12: 0 | U12: 0 | V12: 0 | W12: 0 | X12: 0 | Y12: 0 | Z12: =IF(RAND()<=BB12,1,0) -> 1 | AA12: 1 | AB12: 0 | AC12: =AVERAGE(I12:R12) -> 0.8 | AD12: =AVERAGE(S12:AB12) -> 0.2 | AJ12: p_preference1 | AK12: 0.5 | AL12: 0.5 | AM12: 0.5 | AN12: 0.5 | AO12: 0.5 | AP12: 0.5 | AQ12: 0.5 | AR12: 0.5 | AS12: 0.5 | AT12: 0.5 | AU12: 0.5 | AV12: 0.5 | AW12: 0.5 | AX12: 0.5 | AY12: 0.5 | AZ12: 0.5 | BA12: 0.5 | BB12: 0.5 | BC12: 0.5 | BD12: 0.5 | BE12: =AVERAGE(AK12:AT12) -> 0.5 | BF12: =AVERAGE(AU12:BD12) -> 0.5 | BJ12: boys | BK12: girls
G13: 2 | H13: choice_2 | I13: =IF(RAND()<=AK13,1,0) -> 1 | J13: 0 | K13: 0 | L13: 0 | M13: 0 | N13: 1 | O13: 0 | P13: 1 | Q13: 1 | R13: 1 | S13: 1 | T13: 1 | U13: 0 | V13: 1 | W13: 1 | X13: 1 | Y13: 1 | Z13: 1 | AA13: 0 | AB13: 1 | AC13: =AVERAGE(I13:R13) -> 0.5 | AD13: =AVERAGE(S13:AB13) -> 0.8 | AJ13: p_preference2 | AK13: =AK12+(($AC12*samesex_effect+(1-$AD12)*othersex_effect+preference_B*gen_effect)/(samesex_effect+othersex_effect+gen_effect)-AK12)*RATE -> 0.53 | AL13: =AL12+(($AC12*samesex_effect+(1-$AD12)*othersex_effect+preference_B*gen_effect)/(samesex_effect+othersex_effect+gen_effect)-AL12)*RATE -> 0.53 | AM13: =AM12+(($AC12*samesex_effect+(1-$AD12)*othersex_effect+preference_B*gen_effect)/(samesex_effect+othersex_effect+gen_effect)-AM12)*RATE -> 0.53 | AN13: =AN12+(($AC12*samesex_effect+(1-$AD12)*othersex_effect+preference_B*gen_effect)/(samesex_effect+othersex_effect+gen_effect)-AN12)*RATE -> 0.53 | AO13: =AO12+(($AC12*samesex_effect+(1-$AD12)*othersex_effect+preference_B*gen_effect)/(samesex_effect+othersex_effect+gen_effect)-AO12)*RATE -> 0.53 | AP13: =AP12+(($AC12*samesex_effect+(1-$AD12)*othersex_effect+preference_B*gen_effect)/(samesex_effect+othersex_effect+gen_effect)-AP12)*RATE -> 0.53 | AQ13: =AQ12+(($AC12*samesex_effect+(1-$AD12)*othersex_effect+preference_B*gen_effect)/(samesex_effect+othersex_effect+gen_effect)-AQ12)*RATE -> 0.53 | AR13: =AR12+(($AC12*samesex_effect+(1-$AD12)*othersex_effect+preference_B*gen_effect)/(samesex_effect+othersex_effect+gen_effect)-AR12)*RATE -> 0.53 | AS13: =AS12+(($AC12*samesex_effect+(1-$AD12)*othersex_effect+preference_B*gen_effect)/(samesex_effect+othersex_effect+gen_effect)-AS12)*RATE -> 0.53 | AT13: =AT12+(($AC12*samesex_effect+(1-$AD12)*othersex_effect+preference_B*gen_effect)/(samesex_effect+othersex_effect+gen_effect)-AT12)*RATE -> 0.53 | AU13: =AU12+(($AD12*samesex_effect+(1-$AC12)*othersex_effect+preference_G*gen_effect)/(samesex_effect+othersex_effect+gen_effect)-AU12)*RATE -> 0.47 | AV13: =AV12+(($AD12*samesex_effect+(1-$AC12)*othersex_effect+preference_G*gen_effect)/(samesex_effect+othersex_effect+gen_effect)-AV12)*RATE -> 0.47 | AW13: =AW12+(($AD12*samesex_effect+(1-$AC12)*othersex_effect+preference_G*gen_effect)/(samesex_effect+othersex_effect+gen_effect)-AW12)*RATE -> 0.47 | AX13: =AX12+(($AD12*samesex_effect+(1-$AC12)*othersex_effect+preference_G*gen_effect)/(samesex_effect+othersex_effect+gen_effect)-AX12)*RATE -> 0.47 | AY13: =AY12+(($AD12*samesex_effect+(1-$AC12)*othersex_effect+preference_G*gen_effect)/(samesex_effect+othersex_effect+gen_effect)-AY12)*RATE -> 0.47 | AZ13: =AZ12+(($AD12*samesex_effect+(1-$AC12)*othersex_effect+preference_G*gen_effect)/(samesex_effect+othersex_effect+gen_effect)-AZ12)*RATE -> 0.47 | BA13: =BA12+(($AD12*samesex_effect+(1-$AC12)*othersex_effect+preference_G*gen_effect)/(samesex_effect+othersex_effect+gen_effect)-BA12)*RATE -> 0.47 | BB13: =BB12+(($AD12*samesex_effect+(1-$AC12)*othersex_effect+preference_G*gen_effect)/(samesex_effect+othersex_effect+gen_effect)-BB12)*RATE -> 0.47 | BC13: =BC12+(($AD12*samesex_effect+(1-$AC12)*othersex_effect+preference_G*gen_effect)/(samesex_effect+othersex_effect+gen_effect)-BC12)*RATE -> 0.47 | BD13: =BD12+(($AD12*samesex_effect+(1-$AC12)*othersex_effect+preference_G*gen_effect)/(samesex_effect+othersex_effect+gen_effect)-BD12)*RATE -> 0.47 | BE13: =AVERAGE(AK13:AT13) -> 0.53 | BF13: =AVERAGE(AU13:BD13) -> 0.47 | BI13: 1 year | BJ13: =AVERAGE(year_1_boys) -> 0.5873906332 | BK13: =AVERAGE(year_1_girls) -> 0.419361466
G14: 3 | H14: choice_3 | I14: 1 | J14: 1 | K14: 0 | L14: 0 | M14: 1 | N14: 0 | O14: 0 | P14: 1 | Q14: 1 | R14: 0 | S14: 0 | T14: 1 | U14: 0 | V14: 1 | W14: 0 | X14: 0 | Y14: 0 | Z14: 1 | AA14: 1 | AB14: 1 | AC14: 0.5 | AD14: 0.5 | AJ14: p_preference3 | AK14: 0.5195 | AL14: 0.5195 | AM14: 0.5195 | AN14: 0.5195 | AO14: 0.5195 | AP14: 0.5195 | AQ14: 0.5195 | AR14: 0.5195 | AS14: 0.5195 | AT14: 0.5195 | AU14: 0.4955 | AV14: 0.4955 | AW14: 0.4955 | AX14: 0.4955 | AY14: 0.4955 | AZ14: 0.4955 | BA14: 0.4955 | BB14: 0.4955 | BC14: 0.4955 | BD14: 0.4955 | BE14: 0.5195 | BF14: 0.4955 | BI14: 2 year | BJ14: =AVERAGE(year_2_boys) -> 0.6012576617 | BK14: =AVERAGE(year_2_girls) -> 0.3789016574
G15: 4 | H15: choice_4 | I15: 1 | J15: 0 | K15: 1 | L15: 1 | M15: 0 | N15: 0 | O15: 1 | P15: 1 | Q15: 0 | R15: 1 | S15: 0 | T15: 1 | U15: 0 | V15: 1 | W15: 0 | X15: 0 | Y15: 0 | Z15: 0 | AA15: 1 | AB15: 0 | AC15: 0.6 | AD15: 0.3 | AJ15: p_preference4 | AK15: 0.51755 | AL15: 0.51755 | AM15: 0.51755 | AN15: 0.51755 | AO15: 0.51755 | AP15: 0.51755 | AQ15: 0.51755 | AR15: 0.51755 | AS15: 0.51755 | AT15: 0.51755 | AU15: 0.49595 | AV15: 0.49595 | AW15: 0.49595 | AX15: 0.49595 | AY15: 0.49595 | AZ15: 0.49595 | BA15: 0.49595 | BB15: 0.49595 | BC15: 0.49595 | BD15: 0.49595 | BE15: 0.51755 | BF15: 0.49595 | BI15: 3 year | BJ15: =AVERAGE(year_3_boys) -> 0.5809447682 | BK15: =AVERAGE(year_3_girls) -> 0.4458915388
G16: 5 | H16: choice_5 | I16: 1 | J16: 1 | K16: 0 | L16: 1 | M16: 1 | N16: 0 | O16: 1 | P16: 1 | Q16: 0 | R16: 1 | S16: 0 | T16: 0 | U16: 1 | V16: 1 | W16: 0 | X16: 1 | Y16: 0 | Z16: 0 | AA16: 1 | AB16: 0 | AC16: 0.7 | AD16: 0.4 | AJ16: p_preference5 | AK16: 0.528295 | AL16: 0.528295 | AM16: 0.528295 | AN16: 0.528295 | AO16: 0.528295 | AP16: 0.528295 | AQ16: 0.528295 | AR16: 0.528295 | AS16: 0.528295 | AT16: 0.528295 | AU16: 0.478855 | AV16: 0.478855 | AW16: 0.478855 | AX16: 0.478855 | AY16: 0.478855 | AZ16: 0.478855 | BA16: 0.478855 | BB16: 0.478855 | BC16: 0.478855 | BD16: 0.478855 | BE16: 0.528295 | BF16: 0.478855 | BI16: 4 year | BJ16: =AVERAGE(year_4_boys) -> 0.6812350275 | BK16: =AVERAGE(year_4_girls) -> 0.3218343249
G17: 6 | H17: choice_6 | I17: 0 | J17: 1 | K17: 1 | L17: 0 | M17: 0 | N17: 0 | O17: 0 | P17: 1 | Q17: 0 | R17: 1 | S17: 1 | T17: 1 | U17: 0 | V17: 1 | W17: 0 | X17: 0 | Y17: 1 | Z17: 0 | AA17: 1 | AB17: 1 | AC17: 0.4 | AD17: 0.6 | AJ17: p_preference6 | AK17: 0.5429655 | AL17: 0.5429655 | AM17: 0.5429655 | AN17: 0.5429655 | AO17: 0.5429655 | AP17: 0.5429655 | AQ17: 0.5429655 | AR17: 0.5429655 | AS17: 0.5429655 | AT17: 0.5429655 | AU17: 0.4684695 | AV17: 0.4684695 | AW17: 0.4684695 | AX17: 0.4684695 | AY17: 0.4684695 | AZ17: 0.4684695 | BA17: 0.4684695 | BB17: 0.4684695 | BC17: 0.4684695 | BD17: 0.4684695 | BE17: 0.5429655 | BF17: 0.4684695 | BI17: 5 year | BJ17: =AVERAGE(year_5_boys) -> 0.8162705747 | BK17: =AVERAGE(year_5_girls) -> 0.1621718923
G18: 7 | H18: choice_7 | I18: 1 | J18: 1 | K18: 1 | L18: 1 | M18: 0 | N18: 0 | O18: 1 | P18: 0 | Q18: 1 | R18: 1 | S18: 1 | T18: 0 | U18: 0 | V18: 0 | W18: 1 | X18: 0 | Y18: 0 | Z18: 1 | AA18: 0 | AB18: 0 | AC18: 0.7 | AD18: 0.3 | AJ18: p_preference7 | AK18: 0.52866895 | AL18: 0.52866895 | AM18: 0.52866895 | AN18: 0.52866895 | AO18: 0.52866895 | AP18: 0.52866895 | AQ18: 0.52866895 | AR18: 0.52866895 | AS18: 0.52866895 | AT18: 0.52866895 | AU18: 0.48162255 | AV18: 0.48162255 | AW18: 0.48162255 | AX18: 0.48162255 | AY18: 0.48162255 | AZ18: 0.48162255 | BA18: 0.48162255 | BB18: 0.48162255 | BC18: 0.48162255 | BD18: 0.48162255 | BE18: 0.52866895 | BF18: 0.48162255
G19: 8 | H19: choice_8 | I19: 1 | J19: 1 | K19: 0 | L19: 1 | M19: 1 | N19: 0 | O19: 1 | P19: 1 | Q19: 1 | R19: 1 | S19: 0 | T19: 0 | U19: 0 | V19: 1 | W19: 1 | X19: 0 | Y19: 0 | Z19: 1 | AA19: 0 | AB19: 0 | AC19: 0.8 | AD19: 0.3 | AJ19: p_preference8 | AK19: 0.545802055 | AL19: 0.545802055 | AM19: 0.545802055 | AN19: 0.545802055 | AO19: 0.545802055 | AP19: 0.545802055 | AQ19: 0.545802055 | AR19: 0.545802055 | AS19: 0.545802055 | AT19: 0.545802055 | AU19: 0.463460295 | AV19: 0.463460295 | AW19: 0.463460295 | AX19: 0.463460295 | AY19: 0.463460295 | AZ19: 0.463460295 | BA19: 0.463460295 | BB19: 0.463460295 | BC19: 0.463460295 | BD19: 0.463460295 | BE19: 0.545802055 | BF19: 0.463460295
G20: 9 | H20: choice_9 | I20: 1 | J20: 1 | K20: 0 | L20: 1 | M20: 0 | N20: 1 | O20: 1 | P20: 1 | Q20: 1 | R20: 1 | S20: 1 | T20: 1 | U20: 0 | V20: 0 | W20: 1 | X20: 1 | Y20: 0 | Z20: 0 | AA20: 1 | AB20: 0 | AC20: 0.8 | AD20: 0.5 | AJ20: p_preference9 | AK20: 0.5687218495 | AL20: 0.5687218495 | AM20: 0.5687218495 | AN20: 0.5687218495 | AO20: 0.5687218495 | AP20: 0.5687218495 | AQ20: 0.5687218495 | AR20: 0.5687218495 | AS20: 0.5687218495 | AT20: 0.5687218495 | AU20: 0.4446142655 | AV20: 0.4446142655 | AW20: 0.4446142655 | AX20: 0.4446142655 | AY20: 0.4446142655 | AZ20: 0.4446142655 | BA20: 0.4446142655 | BB20: 0.4446142655 | BC20: 0.4446142655 | BD20: 0.4446142655 | BE20: 0.5687218495 | BF20: 0.4446142655
G21: 10 | H21: choice_10 | I21: 1 | J21: 1 | K21: 1 | L21: 1 | M21: 1 | N21: 0 | O21: 0 | P21: 1 | Q21: 1 | R21: 1 | S21: 0 | T21: 0 | U21: 1 | V21: 1 | W21: 0 | X21: 1 | Y21: 1 | Z21: 0 | AA21: 0 | AB21: 0 | AC21: 0.8 | AD21: 0.4 | AJ21: p_preference10 | AK21: 0.5843496646 | AL21: 0.5843496646 | AM21: 0.5843496646 | AN21: 0.5843496646 | AO21: 0.5843496646 | AP21: 0.5843496646 | AQ21: 0.5843496646 | AR21: 0.5843496646 | AS21: 0.5843496646 | AT21: 0.5843496646 | AU21: 0.4426528389 | AV21: 0.4426528389 | AW21: 0.4426528389 | AX21: 0.4426528389 | AY21: 0.4426528389 | AZ21: 0.4426528389 | BA21: 0.4426528389 | BB21: 0.4426528389 | BC21: 0.4426528389 | BD21: 0.4426528389 | BE21: 0.5843496646 | BF21: 0.4426528389
G22: 11 | H22: choice_11 | I22: 0 | J22: 0 | K22: 1 | L22: 1 | M22: 1 | N22: 0 | O22: 1 | P22: 1 | Q22: 0 | R22: 1 | S22: 1 | T22: 1 | U22: 0 | V22: 0 | W22: 1 | X22: 1 | Y22: 0 | Z22: 1 | AA22: 1 | AB22: 1 | AC22: 0.6 | AD22: 0.7 | AJ22: p_preference11 | AK22: 0.6009146981 | AL22: 0.6009146981 | AM22: 0.6009146981 | AN22: 0.6009146981 | AO22: 0.6009146981 | AP22: 0.6009146981 | AQ22: 0.6009146981 | AR22: 0.6009146981 | AS22: 0.6009146981 | AT22: 0.6009146981 | AU22: 0.4333875551 | AV22: 0.4333875551 | AW22: 0.4333875551 | AX22: 0.4333875551 | AY22: 0.4333875551 | AZ22: 0.4333875551 | BA22: 0.4333875551 | BB22: 0.4333875551 | BC22: 0.4333875551 | BD22: 0.4333875551 | BE22: 0.6009146981 | BF22: 0.4333875551
G23: 12 | H23: choice_12 | I23: 1 | J23: 1 | K23: 1 | L23: 1 | M23: 1 | N23: 1 | O23: 1 | P23: 1 | Q23: 0 | R23: 1 | S23: 0 | T23: 0 | U23: 1 | V23: 0 | W23: 0 | X23: 1 | Y23: 0 | Z23: 1 | AA23: 1 | AB23: 0 | AC23: 0.9 | AD23: 0.4 | AJ23: p_preference12 | AK23: 0.5933232283 | AL23: 0.5933232283 | AM23: 0.5933232283 | AN23: 0.5933232283 | AO23: 0.5933232283 | AP23: 0.5933232283 | AQ23: 0.5933232283 | AR23: 0.5933232283 | AS23: 0.5933232283 | AT23: 0.5933232283 | AU23: 0.4525487995 | AV23: 0.4525487995 | AW23: 0.4525487995 | AX23: 0.4525487995 | AY23: 0.4525487995 | AZ23: 0.4525487995 | BA23: 0.4525487995 | BB23: 0.4525487995 | BC23: 0.4525487995 | BD23: 0.4525487995 | BE23: 0.5933232283 | BF23: 0.4525487995
G24: 13 | H24: choice_13 | I24: 0 | J24: 0 | K24: 1 | L24: 0 | M24: 0 | N24: 0 | O24: 1 | P24: 0 | Q24: 1 | R24: 1 | S24: 1 | T24: 0 | U24: 1 | V24: 1 | W24: 0 | X24: 0 | Y24: 0 | Z24: 0 | AA24: 0 | AB24: 0 | AC24: 0.4 | AD24: 0.3 | AJ24: p_preference13 | AK24: 0.6164909055 | AL24: 0.6164909055 | AM24: 0.6164909055 | AN24: 0.6164909055 | AO24: 0.6164909055 | AP24: 0.6164909055 | AQ24: 0.6164909055 | AR24: 0.6164909055 | AS24: 0.6164909055 | AT24: 0.6164909055 | AU24: 0.4397939196 | AV24: 0.4397939196 | AW24: 0.4397939196 | AX24: 0.4397939196 | AY24: 0.4397939196 | AZ24: 0.4397939196 | BA24: 0.4397939196 | BB24: 0.4397939196 | BC24: 0.4397939196 | BD24: 0.4397939196 | BE24: 0.6164909055 | BF24: 0.4397939196
G25: 14 | H25: choice_14 | I25: 1 | J25: 1 | K25: 0 | L25: 0 | M25: 1 | N25: 0 | O25: 1 | P25: 0 | Q25: 0 | R25: 0 | S25: 1 | T25: 0 | U25: 0 | V25: 1 | W25: 1 | X25: 0 | Y25: 0 | Z25: 1 | AA25: 0 | AB25: 0 | AC25: 0.4 | AD25: 0.4 | AJ25: p_preference14 | AK25: 0.6023418149 | AL25: 0.6023418149 | AM25: 0.6023418149 | AN25: 0.6023418149 | AO25: 0.6023418149 | AP25: 0.6023418149 | AQ25: 0.6023418149 | AR25: 0.6023418149 | AS25: 0.6023418149 | AT25: 0.6023418149 | AU25: 0.4333145276 | AV25: 0.4333145276 | AW25: 0.4333145276 | AX25: 0.4333145276 | AY25: 0.4333145276 | AZ25: 0.4333145276 | BA25: 0.4333145276 | BB25: 0.4333145276 | BC25: 0.4333145276 | BD25: 0.4333145276 | BE25: 0.6023418149 | BF25: 0.4333145276
G26: 15 | H26: choice_15 | I26: 1 | J26: 1 | K26: 1 | L26: 1 | M26: 1 | N26: 1 | O26: 0 | P26: 1 | Q26: 0 | R26: 0 | S26: 0 | T26: 1 | U26: 0 | V26: 0 | W26: 1 | X26: 1 | Y26: 1 | Z26: 1 | AA26: 0 | AB26: 1 | AC26: 0.7 | AD26: 0.6 | AJ26: p_preference15 | AK26: 0.5871076334 | AL26: 0.5871076334 | AM26: 0.5871076334 | AN26: 0.5871076334 | AO26: 0.5871076334 | AP26: 0.5871076334 | AQ26: 0.5871076334 | AR26: 0.5871076334 | AS26: 0.5871076334 | AT26: 0.5871076334 | AU26: 0.4349830749 | AV26: 0.4349830749 | AW26: 0.4349830749 | AX26: 0.4349830749 | AY26: 0.4349830749 | AZ26: 0.4349830749 | BA26: 0.4349830749 | BB26: 0.4349830749 | BC26: 0.4349830749 | BD26: 0.4349830749 | BE26: 0.5871076334 | BF26: 0.4349830749
G27: 16 | H27: choice_16 | I27: 0 | J27: 0 | K27: 1 | L27: 1 | M27: 0 | N27: 1 | O27: 0 | P27: 0 | Q27: 1 | R27: 0 | S27: 0 | T27: 0 | U27: 1 | V27: 0 | W27: 1 | X27: 1 | Y27: =IF(RAND()<=BA27,1,0) -> 0 | Z27: 0 | AA27: 1 | AB27: 0 | AC27: 0.4 | AD27: 0.4 | AJ27: p_preference16 | AK27: 0.5908968701 | AL27: 0.5908968701 | AM27: 0.5908968701 | AN27: 0.5908968701 | AO27: 0.5908968701 | AP27: 0.5908968701 | AQ27: 0.5908968701 | AR27: 0.5908968701 | AS27: 0.5908968701 | AT27: 0.5908968701 | AU27: 0.4439847674 | AV27: 0.4439847674 | AW27: 0.4439847674 | AX27: 0.4439847674 | AY27: 0.4439847674 | AZ27: 0.4439847674 | BA27: 0.4439847674 | BB27: 0.4439847674 | BC27: 0.4439847674 | BD27: 0.4439847674 | BE27: 0.5908968701 | BF27: 0.4439847674
G28: 17 | H28: choice_17 | I28: 0 | J28: 0 | K28: 0 | L28: 1 | M28: 1 | N28: 0 | O28: 0 | P28: 1 | Q28: 1 | R28: 0 | S28: 0 | T28: 0 | U28: 0 | V28: 0 | W28: 1 | X28: 0 | Y28: 1 | Z28: 1 | AA28: 1 | AB28: 1 | AC28: 0.4 | AD28: 0.5 | AJ28: p_preference17 | AK28: 0.5768071831 | AL28: 0.5768071831 | AM28: 0.5768071831 | AN28: 0.5768071831 | AO28: 0.5768071831 | AP28: 0.5768071831 | AQ28: 0.5768071831 | AR28: 0.5768071831 | AS28: 0.5768071831 | AT28: 0.5768071831 | AU28: 0.4445862906 | AV28: 0.4445862906 | AW28: 0.4445862906 | AX28: 0.4445862906 | AY28: 0.4445862906 | AZ28: 0.4445862906 | BA28: 0.4445862906 | BB28: 0.4445862906 | BC28: 0.4445862906 | BD28: 0.4445862906 | BE28: 0.5768071831 | BF28: 0.4445862906
G29: 18 | H29: choice_18 | I29: 1 | J29: 1 | K29: 1 | L29: 1 | M29: 1 | N29: 1 | O29: 1 | P29: 0 | Q29: 0 | R29: 1 | S29: 1 | T29: 0 | U29: 1 | V29: 0 | W29: 0 | X29: 0 | Y29: 1 | Z29: 0 | AA29: 0 | AB29: 0 | AC29: 0.8 | AD29: 0.3 | AJ29: p_preference18 | AK29: 0.5616264648 | AL29: 0.5616264648 | AM29: 0.5616264648 | AN29: 0.5616264648 | AO29: 0.5616264648 | AP29: 0.5616264648 | AQ29: 0.5616264648 | AR29: 0.5616264648 | AS29: 0.5616264648 | AT29: 0.5616264648 | AU29: 0.4526276616 | AV29: 0.4526276616 | AW29: 0.4526276616 | AX29: 0.4526276616 | AY29: 0.4526276616 | AZ29: 0.4526276616 | BA29: 0.4526276616 | BB29: 0.4526276616 | BC29: 0.4526276616 | BD29: 0.4526276616 | BE29: 0.5616264648 | BF29: 0.4526276616
G30: 19 | H30: choice_19 | I30: 1 | J30: 1 | K30: 1 | L30: 1 | M30: 1 | N30: 1 | O30: 0 | P30: 0 | Q30: 0 | R30: 0 | S30: 1 | T30: 1 | U30: 1 | V30: 0 | W30: 1 | X30: 1 | Y30: 1 | Z30: 0 | AA30: 1 | AB30: 1 | AC30: 0.6 | AD30: 0.8 | AJ30: p_preference19 | AK30: 0.5829638183 | AL30: 0.5829638183 | AM30: 0.5829638183 | AN30: 0.5829638183 | AO30: 0.5829638183 | AP30: 0.5829638183 | AQ30: 0.5829638183 | AR30: 0.5829638183 | AS30: 0.5829638183 | AT30: 0.5829638183 | AU30: 0.4348648954 | AV30: 0.4348648954 | AW30: 0.4348648954 | AX30: 0.4348648954 | AY30: 0.4348648954 | AZ30: 0.4348648954 | BA30: 0.4348648954 | BB30: 0.4348648954 | BC30: 0.4348648954 | BD30: 0.4348648954 | BE30: 0.5829638183 | BF30: 0.4348648954
G31: 20 | H31: choice_20 | I31: 1 | J31: 1 | K31: 1 | L31: 1 | M31: 1 | N31: 1 | O31: 0 | P31: 1 | Q31: 1 | R31: 1 | S31: 0 | T31: 0 | U31: 0 | V31: 0 | W31: 0 | X31: 1 | Y31: 0 | Z31: 1 | AA31: 1 | AB31: 0 | AC31: 0.9 | AD31: 0.3 | AJ31: p_preference20 | AK31: 0.5746674365 | AL31: 0.5746674365 | AM31: 0.5746674365 | AN31: 0.5746674365 | AO31: 0.5746674365 | AP31: 0.5746674365 | AQ31: 0.5746674365 | AR31: 0.5746674365 | AS31: 0.5746674365 | AT31: 0.5746674365 | AU31: 0.4613784059 | AV31: 0.4613784059 | AW31: 0.4613784059 | AX31: 0.4613784059 | AY31: 0.4613784059 | AZ31: 0.4613784059 | BA31: 0.4613784059 | BB31: 0.4613784059 | BC31: 0.4613784059 | BD31: 0.4613784059 | BE31: 0.5746674365 | BF31: 0.4613784059
G32: 21 | H32: choice_21 | I32: 0 | J32: 0 | K32: 0 | L32: 0 | M32: 0 | N32: 1 | O32: 1 | P32: 0 | Q32: 1 | R32: 0 | S32: 0 | T32: 1 | U32: 0 | V32: 0 | W32: 1 | X32: 1 | Y32: 0 | Z32: 1 | AA32: 1 | AB32: 0 | AC32: 0.3 | AD32: 0.5 | AJ32: p_preference21 | AK32: 0.6022006928 | AL32: 0.6022006928 | AM32: 0.6022006928 | AN32: 0.6022006928 | AO32: 0.6022006928 | AP32: 0.6022006928 | AQ32: 0.6022006928 | AR32: 0.6022006928 | AS32: 0.6022006928 | AT32: 0.6022006928 | AU32: 0.4402405653 | AV32: 0.4402405653 | AW32: 0.4402405653 | AX32: 0.4402405653 | AY32: 0.4402405653 | AZ32: 0.4402405653 | BA32: 0.4402405653 | BB32: 0.4402405653 | BC32: 0.4402405653 | BD32: 0.4402405653 | BE32: 0.6022006928 | BF32: 0.4402405653
G33: 22 | H33: choice_22 | I33: 1 | J33: 0 | K33: 0 | L33: 0 | M33: 0 | N33: 1 | O33: 1 | P33: 1 | Q33: 1 | R33: 1 | S33: 1 | T33: 0 | U33: 1 | V33: 1 | W33: 1 | X33: 0 | Y33: 0 | Z33: 1 | AA33: 0 | AB33: 1 | AC33: 0.6 | AD33: 0.6 | AJ33: p_preference22 | AK33: 0.5769806235 | AL33: 0.5769806235 | AM33: 0.5769806235 | AN33: 0.5769806235 | AO33: 0.5769806235 | AP33: 0.5769806235 | AQ33: 0.5769806235 | AR33: 0.5769806235 | AS33: 0.5769806235 | AT33: 0.5769806235 | AU33: 0.4512165088 | AV33: 0.4512165088 | AW33: 0.4512165088 | AX33: 0.4512165088 | AY33: 0.4512165088 | AZ33: 0.4512165088 | BA33: 0.4512165088 | BB33: 0.4512165088 | BC33: 0.4512165088 | BD33: 0.4512165088 | BE33: 0.5769806235 | BF33: 0.4512165088
G34: 23 | H34: choice_23 | I34: 1 | J34: 1 | K34: 0 | L34: 1 | M34: 0 | N34: 1 | O34: 1 | P34: 0 | Q34: 0 | R34: 0 | S34: 0 | T34: 1 | U34: 0 | V34: 1 | W34: 1 | X34: 1 | Y34: 0 | Z34: 1 | AA34: 0 | AB34: 0 | AC34: 0.5 | AD34: 0.5 | AJ34: p_preference23 | AK34: 0.5742825612 | AL34: 0.5742825612 | AM34: 0.5742825612 | AN34: 0.5742825612 | AO34: 0.5742825612 | AP34: 0.5742825612 | AQ34: 0.5742825612 | AR34: 0.5742825612 | AS34: 0.5742825612 | AT34: 0.5742825612 | AU34: 0.4610948579 | AV34: 0.4610948579 | AW34: 0.4610948579 | AX34: 0.4610948579 | AY34: 0.4610948579 | AZ34: 0.4610948579 | BA34: 0.4610948579 | BB34: 0.4610948579 | BC34: 0.4610948579 | BD34: 0.4610948579 | BE34: 0.5742825612 | BF34: 0.4610948579
G35: 24 | H35: choice_24 | I35: 1 | J35: 1 | K35: 1 | L35: 1 | M35: 0 | N35: 1 | O35: 0 | P35: 0 | Q35: 1 | R35: 1 | S35: 1 | T35: 0 | U35: 0 | V35: 0 | W35: 1 | X35: 1 | Y35: 1 | Z35: 1 | AA35: 0 | AB35: 0 | AC35: 0.7 | AD35: 0.5 | AJ35: p_preference24 | AK35: 0.5668543051 | AL35: 0.5668543051 | AM35: 0.5668543051 | AN35: 0.5668543051 | AO35: 0.5668543051 | AP35: 0.5668543051 | AQ35: 0.5668543051 | AR35: 0.5668543051 | AS35: 0.5668543051 | AT35: 0.5668543051 | AU35: 0.4649853721 | AV35: 0.4649853721 | AW35: 0.4649853721 | AX35: 0.4649853721 | AY35: 0.4649853721 | AZ35: 0.4649853721 | BA35: 0.4649853721 | BB35: 0.4649853721 | BC35: 0.4649853721 | BD35: 0.4649853721 | BE35: 0.5668543051 | BF35: 0.4649853721
G36: 25 | H36: choice_25 | I36: 1 | J36: 1 | K36: 1 | L36: 1 | M36: 1 | N36: 0 | O36: 1 | P36: 0 | Q36: 1 | R36: 1 | S36: 1 | T36: 1 | U36: 1 | V36: 0 | W36: 0 | X36: 0 | Y36: 0 | Z36: 0 | AA36: 0 | AB36: 0 | AC36: 0.8 | AD36: 0.3 | AJ36: p_preference25 | AK36: 0.5751688746 | AL36: 0.5751688746 | AM36: 0.5751688746 | AN36: 0.5751688746 | AO36: 0.5751688746 | AP36: 0.5751688746 | AQ36: 0.5751688746 | AR36: 0.5751688746 | AS36: 0.5751688746 | AT36: 0.5751688746 | AU36: 0.4634868349 | AV36: 0.4634868349 | AW36: 0.4634868349 | AX36: 0.4634868349 | AY36: 0.4634868349 | AZ36: 0.4634868349 | BA36: 0.4634868349 | BB36: 0.4634868349 | BC36: 0.4634868349 | BD36: 0.4634868349 | BE36: 0.5751688746 | BF36: 0.4634868349
G37: 26 | H37: choice_26 | I37: 1 | J37: 1 | K37: 0 | L37: 1 | M37: 1 | N37: 0 | O37: 0 | P37: 0 | Q37: 1 | R37: 1 | S37: 1 | T37: 1 | U37: 1 | V37: 0 | W37: 0 | X37: 0 | Y37: 0 | Z37: 1 | AA37: 1 | AB37: 1 | AC37: 0.6 | AD37: 0.6 | AJ37: p_preference26 | AK37: 0.5951519871 | AL37: 0.5951519871 | AM37: 0.5951519871 | AN37: 0.5951519871 | AO37: 0.5951519871 | AP37: 0.5951519871 | AQ37: 0.5951519871 | AR37: 0.5951519871 | AS37: 0.5951519871 | AT37: 0.5951519871 | AU37: 0.4446381514 | AV37: 0.4446381514 | AW37: 0.4446381514 | AX37: 0.4446381514 | AY37: 0.4446381514 | AZ37: 0.4446381514 | BA37: 0.4446381514 | BB37: 0.4446381514 | BC37: 0.4446381514 | BD37: 0.4446381514 | BE37: 0.5951519871 | BF37: 0.4446381514
G38: 27 | H38: choice_27 | I38: 1 | J38: 1 | K38: 1 | L38: 0 | M38: 1 | N38: 0 | O38: 1 | P38: 0 | Q38: 1 | R38: 1 | S38: 1 | T38: 0 | U38: 0 | V38: 0 | W38: 0 | X38: 1 | Y38: 0 | Z38: 1 | AA38: 0 | AB38: 1 | AC38: 0.7 | AD38: 0.4 | AJ38: p_preference27 | AK38: 0.5906367884 | AL38: 0.5906367884 | AM38: 0.5906367884 | AN38: 0.5906367884 | AO38: 0.5906367884 | AP38: 0.5906367884 | AQ38: 0.5906367884 | AR38: 0.5906367884 | AS38: 0.5906367884 | AT38: 0.5906367884 | AU38: 0.4551743363 | AV38: 0.4551743363 | AW38: 0.4551743363 | AX38: 0.4551743363 | AY38: 0.4551743363 | AZ38: 0.4551743363 | BA38: 0.4551743363 | BB38: 0.4551743363 | BC38: 0.4551743363 | BD38: 0.4551743363 | BE38: 0.5906367884 | BF38: 0.4551743363
G39: 28 | H39: choice_28 | I39: 1 | J39: 0 | K39: 1 | L39: 1 | M39: 1 | N39: 1 | O39: 0 | P39: 1 | Q39: 0 | R39: 0 | S39: 0 | T39: 1 | U39: 0 | V39: 0 | W39: 1 | X39: 0 | Y39: 1 | Z39: 1 | AA39: 0 | AB39: 0 | AC39: 0.6 | AD39: 0.4 | AJ39: p_preference28 | AK39: 0.5990731096 | AL39: 0.5990731096 | AM39: 0.5990731096 | AN39: 0.5990731096 | AO39: 0.5990731096 | AP39: 0.5990731096 | AQ39: 0.5990731096 | AR39: 0.5990731096 | AS39: 0.5990731096 | AT39: 0.5990731096 | AU39: 0.4471569026 | AV39: 0.4471569026 | AW39: 0.4471569026 | AX39: 0.4471569026 | AY39: 0.4471569026 | AZ39: 0.4471569026 | BA39: 0.4471569026 | BB39: 0.4471569026 | BC39: 0.4471569026 | BD39: 0.4471569026 | BE39: 0.5990731096 | BF39: 0.4471569026
G40: 29 | H40: choice_29 | I40: 0 | J40: 0 | K40: 1 | L40: 0 | M40: 0 | N40: 1 | O40: 0 | P40: 0 | Q40: 1 | R40: 0 | S40: 1 | T40: 1 | U40: 1 | V40: 0 | W40: 0 | X40: 0 | Y40: 0 | Z40: 0 | AA40: 1 | AB40: 0 | AC40: 0.3 | AD40: 0.4 | AJ40: p_preference29 | AK40: 0.5991657986 | AL40: 0.5991657986 | AM40: 0.5991657986 | AN40: 0.5991657986 | AO40: 0.5991657986 | AP40: 0.5991657986 | AQ40: 0.5991657986 | AR40: 0.5991657986 | AS40: 0.5991657986 | AT40: 0.5991657986 | AU40: 0.4424412124 | AV40: 0.4424412124 | AW40: 0.4424412124 | AX40: 0.4424412124 | AY40: 0.4424412124 | AZ40: 0.4424412124 | BA40: 0.4424412124 | BB40: 0.4424412124 | BC40: 0.4424412124 | BD40: 0.4424412124 | BE40: 0.5991657986 | BF40: 0.4424412124
G41: 30 | H41: choice_30 | I41: 0 | J41: 1 | K41: 0 | L41: 1 | M41: 0 | N41: 0 | O41: 1 | P41: 1 | Q41: 0 | R41: 1 | S41: 0 | T41: 0 | U41: 0 | V41: 0 | W41: 0 | X41: 0 | Y41: 1 | Z41: 1 | AA41: 0 | AB41: 0 | AC41: 0.5 | AD41: 0.2 | AJ41: p_preference30 | AK41: 0.5767492187 | AL41: 0.5767492187 | AM41: 0.5767492187 | AN41: 0.5767492187 | AO41: 0.5767492187 | AP41: 0.5767492187 | AQ41: 0.5767492187 | AR41: 0.5767492187 | AS41: 0.5767492187 | AT41: 0.5767492187 | AU41: 0.4456970911 | AV41: 0.4456970911 | AW41: 0.4456970911 | AX41: 0.4456970911 | AY41: 0.4456970911 | AZ41: 0.4456970911 | BA41: 0.4456970911 | BB41: 0.4456970911 | BC41: 0.4456970911 | BD41: 0.4456970911 | BE41: 0.5767492187 | BF41: 0.4456970911
G42: 31 | H42: choice_31 | I42: 0 | J42: 0 | K42: 0 | L42: 0 | M42: 0 | N42: 0 | O42: 0 | P42: 1 | Q42: 1 | R42: 0 | S42: 0 | T42: 0 | U42: 0 | V42: 1 | W42: 0 | X42: 0 | Y42: 0 | Z42: 0 | AA42: 0 | AB42: 1 | AC42: 0.2 | AD42: 0.2 | AJ42: p_preference31 | AK42: 0.5765742969 | AL42: 0.5765742969 | AM42: 0.5765742969 | AN42: 0.5765742969 | AO42: 0.5765742969 | AP42: 0.5765742969 | AQ42: 0.5765742969 | AR42: 0.5765742969 | AS42: 0.5765742969 | AT42: 0.5765742969 | AU42: 0.428627382 | AV42: 0.428627382 | AW42: 0.428627382 | AX42: 0.428627382 | AY42: 0.428627382 | AZ42: 0.428627382 | BA42: 0.428627382 | BB42: 0.428627382 | BC42: 0.428627382 | BD42: 0.428627382 | BE42: 0.5765742969 | BF42: 0.428627382
G43: 32 | H43: choice_32 | I43: 1 | J43: 0 | K43: 0 | L43: 1 | M43: 1 | N43: 1 | O43: 0 | P43: 0 | Q43: 1 | R43: 1 | S43: 1 | T43: 0 | U43: 1 | V43: 1 | W43: 0 | X43: 0 | Y43: =IF(RAND()<=BA43,1,0) -> 1 | Z43: 0 | AA43: 0 | AB43: 0 | AC43: 0.6 | AD43: 0.4 | AJ43: p_preference32 | AK43: 0.5539168672 | AL43: 0.5539168672 | AM43: 0.5539168672 | AN43: 0.5539168672 | AO43: 0.5539168672 | AP43: 0.5539168672 | AQ43: 0.5539168672 | AR43: 0.5539168672 | AS43: 0.5539168672 | AT43: 0.5539168672 | AU43: 0.4207646438 | AV43: 0.4207646438 | AW43: 0.4207646438 | AX43: 0.4207646438 | AY43: 0.4207646438 | AZ43: 0.4207646438 | BA43: 0.4207646438 | BB43: 0.4207646438 | BC43: 0.4207646438 | BD43: 0.4207646438 | BE43: 0.5539168672 | BF43: 0.4207646438
G44: 33 | H44: choice_33 | I44: 1 | J44: 0 | K44: 1 | L44: 1 | M44: 1 | N44: 1 | O44: 1 | P44: 1 | Q44: 0 | R44: 0 | S44: 0 | T44: 0 | U44: 1 | V44: 0 | W44: 0 | X44: 0 | Y44: 0 | Z44: 0 | AA44: 1 | AB44: 1 | AC44: 0.7 | AD44: 0.3 | AJ44: p_preference33 | AK44: 0.5585251805 | AL44: 0.5585251805 | AM44: 0.5585251805 | AN44: 0.5585251805 | AO44: 0.5585251805 | AP44: 0.5585251805 | AQ44: 0.5585251805 | AR44: 0.5585251805 | AS44: 0.5585251805 | AT44: 0.5585251805 | AU44: 0.4186881794 | AV44: 0.4186881794 | AW44: 0.4186881794 | AX44: 0.4186881794 | AY44: 0.4186881794 | AZ44: 0.4186881794 | BA44: 0.4186881794 | BB44: 0.4186881794 | BC44: 0.4186881794 | BD44: 0.4186881794 | BE44: 0.5585251805 | BF44: 0.4186881794
G45: 34 | H45: choice_34 | I45: =IF(RAND()<=AK45,1,0) -> 1 | J45: 1 | K45: 0 | L45: 1 | M45: 0 | N45: 1 | O45: 1 | P45: 0 | Q45: 1 | R45: 0 | S45: 1 | T45: 0 | U45: 0 | V45: 0 | W45: 1 | X45: 1 | Y45: 0 | Z45: 0 | AA45: 0 | AB45: 0 | AC45: 0.6 | AD45: 0.3 | AJ45: p_preference34 | AK45: 0.5726726624 | AL45: 0.5726726624 | AM45: 0.5726726624 | AN45: 0.5726726624 | AO45: 0.5726726624 | AP45: 0.5726726624 | AQ45: 0.5726726624 | AR45: 0.5726726624 | AS45: 0.5726726624 | AT45: 0.5726726624 | AU45: 0.4068193615 | AV45: 0.4068193615 | AW45: 0.4068193615 | AX45: 0.4068193615 | AY45: 0.4068193615 | AZ45: 0.4068193615 | BA45: 0.4068193615 | BB45: 0.4068193615 | BC45: 0.4068193615 | BD45: 0.4068193615 | BE45: 0.5726726624 | BF45: 0.4068193615
G46: 35 | H46: choice_35 | I46: 1 | J46: 0 | K46: 0 | L46: 1 | M46: 1 | N46: 1 | O46: 1 | P46: 1 | Q46: 1 | R46: 1 | S46: 0 | T46: 0 | U46: 1 | V46: 1 | W46: 1 | X46: 0 | Y46: 0 | Z46: 0 | AA46: 1 | AB46: 0 | AC46: 0.8 | AD46: 0.4 | AJ46: p_preference35 | AK46: 0.5779053962 | AL46: 0.5779053962 | AM46: 0.5779053962 | AN46: 0.5779053962 | AO46: 0.5779053962 | AP46: 0.5779053962 | AQ46: 0.5779053962 | AR46: 0.5779053962 | AS46: 0.5779053962 | AT46: 0.5779053962 | AU46: 0.3986374253 | AV46: 0.3986374253 | AW46: 0.3986374253 | AX46: 0.3986374253 | AY46: 0.3986374253 | AZ46: 0.3986374253 | BA46: 0.3986374253 | BB46: 0.3986374253 | BC46: 0.3986374253 | BD46: 0.3986374253 | BE46: 0.5779053962 | BF46: 0.3986374253
G47: 36 | H47: choice_36 | I47: 1 | J47: 1 | K47: 1 | L47: 0 | M47: 1 | N47: 1 | O47: 0 | P47: 1 | Q47: 0 | R47: 1 | S47: 0 | T47: 1 | U47: 1 | V47: 1 | W47: 0 | X47: 1 | Y47: 1 | Z47: 1 | AA47: 1 | AB47: 1 | AC47: 0.7 | AD47: 0.8 | AJ47: p_preference36 | AK47: 0.5951148566 | AL47: 0.5951148566 | AM47: 0.5951148566 | AN47: 0.5951148566 | AO47: 0.5951148566 | AP47: 0.5951148566 | AQ47: 0.5951148566 | AR47: 0.5951148566 | AS47: 0.5951148566 | AT47: 0.5951148566 | AU47: 0.3937736828 | AV47: 0.3937736828 | AW47: 0.3937736828 | AX47: 0.3937736828 | AY47: 0.3937736828 | AZ47: 0.3937736828 | BA47: 0.3937736828 | BB47: 0.3937736828 | BC47: 0.3937736828 | BD47: 0.3937736828 | BE47: 0.5951148566 | BF47: 0.3937736828
G48: 37 | H48: choice_37 | I48: 1 | J48: 0 | K48: 0 | L48: 1 | M48: 0 | N48: 0 | O48: 0 | P48: 0 | Q48: 0 | R48: 1 | S48: 1 | T48: 0 | U48: 0 | V48: 0 | W48: 0 | X48: 0 | Y48: 0 | Z48: 1 | AA48: 0 | AB48: 1 | AC48: 0.3 | AD48: 0.3 | AJ48: p_preference37 | AK48: 0.5931033709 | AL48: 0.5931033709 | AM48: 0.5931033709 | AN48: 0.5931033709 | AO48: 0.5931033709 | AP48: 0.5931033709 | AQ48: 0.5931033709 | AR48: 0.5931033709 | AS48: 0.5931033709 | AT48: 0.5931033709 | AU48: 0.4218963145 | AV48: 0.4218963145 | AW48: 0.4218963145 | AX48: 0.4218963145 | AY48: 0.4218963145 | AZ48: 0.4218963145 | BA48: 0.4218963145 | BB48: 0.4218963145 | BC48: 0.4218963145 | BD48: 0.4218963145 | BE48: 0.5931033709 | BF48: 0.4218963145
G49: 38 | H49: choice_38 | I49: 1 | J49: 0 | K49: 0 | L49: 1 | M49: 1 | N49: 1 | O49: 0 | P49: 1 | Q49: 1 | R49: 1 | S49: 0 | T49: 0 | U49: 0 | V49: 1 | W49: 0 | X49: 0 | Y49: 1 | Z49: 1 | AA49: 0 | AB49: 0 | AC49: 0.7 | AD49: 0.3 | AJ49: p_preference38 | AK49: 0.5737930338 | AL49: 0.5737930338 | AM49: 0.5737930338 | AN49: 0.5737930338 | AO49: 0.5737930338 | AP49: 0.5737930338 | AQ49: 0.5737930338 | AR49: 0.5737930338 | AS49: 0.5737930338 | AT49: 0.5737930338 | AU49: 0.4197066831 | AV49: 0.4197066831 | AW49: 0.4197066831 | AX49: 0.4197066831 | AY49: 0.4197066831 | AZ49: 0.4197066831 | BA49: 0.4197066831 | BB49: 0.4197066831 | BC49: 0.4197066831 | BD49: 0.4197066831 | BE49: 0.5737930338 | BF49: 0.4197066831
G50: 39 | H50: choice_39 | I50: 1 | J50: 1 | K50: 1 | L50: 0 | M50: 1 | N50: 0 | O50: 1 | P50: 0 | Q50: 1 | R50: 1 | S50: 1 | T50: 0 | U50: 0 | V50: 1 | W50: 0 | X50: 0 | Y50: 0 | Z50: 0 | AA50: 1 | AB50: 0 | AC50: 0.7 | AD50: 0.3 | AJ50: p_preference39 | AK50: 0.5864137304 | AL50: 0.5864137304 | AM50: 0.5864137304 | AN50: 0.5864137304 | AO50: 0.5864137304 | AP50: 0.5864137304 | AQ50: 0.5864137304 | AR50: 0.5864137304 | AS50: 0.5864137304 | AT50: 0.5864137304 | AU50: 0.4077360148 | AV50: 0.4077360148 | AW50: 0.4077360148 | AX50: 0.4077360148 | AY50: 0.4077360148 | AZ50: 0.4077360148 | BA50: 0.4077360148 | BB50: 0.4077360148 | BC50: 0.4077360148 | BD50: 0.4077360148 | BE50: 0.5864137304 | BF50: 0.4077360148
G51: 40 | H51: choice_40 | I51: 1 | J51: 0 | K51: 1 | L51: 1 | M51: 0 | N51: 1 | O51: 0 | P51: 1 | Q51: 1 | R51: 0 | S51: 1 | T51: 0 | U51: 0 | V51: 1 | W51: 1 | X51: 0 | Y51: 0 | Z51: 0 | AA51: 0 | AB51: 1 | AC51: 0.6 | AD51: 0.4 | AJ51: p_preference40 | AK51: 0.5977723574 | AL51: 0.5977723574 | AM51: 0.5977723574 | AN51: 0.5977723574 | AO51: 0.5977723574 | AP51: 0.5977723574 | AQ51: 0.5977723574 | AR51: 0.5977723574 | AS51: 0.5977723574 | AT51: 0.5977723574 | AU51: 0.3969624133 | AV51: 0.3969624133 | AW51: 0.3969624133 | AX51: 0.3969624133 | AY51: 0.3969624133 | AZ51: 0.3969624133 | BA51: 0.3969624133 | BB51: 0.3969624133 | BC51: 0.3969624133 | BD51: 0.3969624133 | BE51: 0.5977723574 | BF51: 0.3969624133
G52: 41 | H52: choice_41 | I52: 1 | J52: 0 | K52: 1 | L52: 0 | M52: 1 | N52: 1 | O52: 1 | P52: 1 | Q52: 1 | R52: 0 | S52: 1 | T52: =IF(RAND()<=AV52,1,0) -> 0 | U52: =IF(RAND()<=AW52,1,0) -> 0 | V52: =IF(RAND()<=AX52,1,0) -> 1 | W52: =IF(RAND()<=AY52,1,0) -> 0 | X52: =IF(RAND()<=AZ52,1,0) -> 1 | Y52: 1 | Z52: 0 | AA52: 0 | AB52: 0 | AC52: 0.7 | AD52: 0.4 | AJ52: p_preference41 | AK52: 0.5979951216 | AL52: 0.5979951216 | AM52: 0.5979951216 | AN52: 0.5979951216 | AO52: 0.5979951216 | AP52: 0.5979951216 | AQ52: 0.5979951216 | AR52: 0.5979951216 | AS52: 0.5979951216 | AT52: 0.5979951216 | AU52: 0.397266172 | AV52: 0.397266172 | AW52: 0.397266172 | AX52: 0.397266172 | AY52: 0.397266172 | AZ52: 0.397266172 | BA52: 0.397266172 | BB52: 0.397266172 | BC52: 0.397266172 | BD52: 0.397266172 | BE52: 0.5979951216 | BF52: 0.397266172
G53: 42 | H53: choice_42 | I53: 0 | J53: 1 | K53: 0 | L53: 1 | M53: 1 | N53: 0 | O53: 1 | P53: 0 | Q53: 1 | R53: 0 | S53: 0 | T53: 1 | U53: 1 | V53: 1 | W53: 0 | X53: 0 | Y53: 0 | Z53: 0 | AA53: 1 | AB53: 0 | AC53: 0.5 | AD53: 0.4 | AJ53: p_preference42 | AK53: 0.6056956095 | AL53: 0.6056956095 | AM53: 0.6056956095 | AN53: 0.6056956095 | AO53: 0.6056956095 | AP53: 0.6056956095 | AQ53: 0.6056956095 | AR53: 0.6056956095 | AS53: 0.6056956095 | AT53: 0.6056956095 | AU53: 0.3950395548 | AV53: 0.3950395548 | AW53: 0.3950395548 | AX53: 0.3950395548 | AY53: 0.3950395548 | AZ53: 0.3950395548 | BA53: 0.3950395548 | BB53: 0.3950395548 | BC53: 0.3950395548 | BD53: 0.3950395548 | BE53: 0.6056956095 | BF53: 0.3950395548
G54: 43 | H54: choice_43 | I54: 0 | J54: 0 | K54: 1 | L54: 0 | M54: 1 | N54: 1 | O54: 0 | P54: 0 | Q54: 0 | R54: 1 | S54: 1 | T54: 1 | U54: 1 | V54: 1 | W54: 1 | X54: 0 | Y54: 0 | Z54: 0 | AA54: 1 | AB54: 1 | AC54: 0.4 | AD54: 0.7 | AJ54: p_preference43 | AK54: 0.5976260485 | AL54: 0.5976260485 | AM54: 0.5976260485 | AN54: 0.5976260485 | AO54: 0.5976260485 | AP54: 0.5976260485 | AQ54: 0.5976260485 | AR54: 0.5976260485 | AS54: 0.5976260485 | AT54: 0.5976260485 | AU54: 0.3980355993 | AV54: 0.3980355993 | AW54: 0.3980355993 | AX54: 0.3980355993 | AY54: 0.3980355993 | AZ54: 0.3980355993 | BA54: 0.3980355993 | BB54: 0.3980355993 | BC54: 0.3980355993 | BD54: 0.3980355993 | BE54: 0.5976260485 | BF54: 0.3980355993
G55: 44 | H55: choice_44 | I55: 1 | J55: 1 | K55: 1 | L55: 0 | M55: 1 | N55: 0 | O55: 1 | P55: 1 | Q55: 0 | R55: 1 | S55: 1 | T55: 1 | U55: 0 | V55: 0 | W55: 0 | X55: 1 | Y55: 1 | Z55: 0 | AA55: 0 | AB55: 1 | AC55: 0.7 | AD55: 0.5 | AJ55: p_preference44 | AK55: 0.5753634437 | AL55: 0.5753634437 | AM55: 0.5753634437 | AN55: 0.5753634437 | AO55: 0.5753634437 | AP55: 0.5753634437 | AQ55: 0.5753634437 | AR55: 0.5753634437 | AS55: 0.5753634437 | AT55: 0.5753634437 | AU55: 0.4257320394 | AV55: 0.4257320394 | AW55: 0.4257320394 | AX55: 0.4257320394 | AY55: 0.4257320394 | AZ55: 0.4257320394 | BA55: 0.4257320394 | BB55: 0.4257320394 | BC55: 0.4257320394 | BD55: 0.4257320394 | BE55: 0.5753634437 | BF55: 0.4257320394
G56: 45 | H56: choice_45 | I56: 1 | J56: 1 | K56: 0 | L56: 1 | M56: 1 | N56: 1 | O56: 0 | P56: 0 | Q56: 1 | R56: 0 | S56: 1 | T56: 1 | U56: 1 | V56: 1 | W56: 0 | X56: 0 | Y56: 0 | Z56: 0 | AA56: 1 | AB56: 0 | AC56: 0.6 | AD56: 0.5 | AJ56: p_preference45 | AK56: 0.5828270993 | AL56: 0.5828270993 | AM56: 0.5828270993 | AN56: 0.5828270993 | AO56: 0.5828270993 | AP56: 0.5828270993 | AQ56: 0.5828270993 | AR56: 0.5828270993 | AS56: 0.5828270993 | AT56: 0.5828270993 | AU56: 0.4281588354 | AV56: 0.4281588354 | AW56: 0.4281588354 | AX56: 0.4281588354 | AY56: 0.4281588354 | AZ56: 0.4281588354 | BA56: 0.4281588354 | BB56: 0.4281588354 | BC56: 0.4281588354 | BD56: 0.4281588354 | BE56: 0.5828270993 | BF56: 0.4281588354
G57: 46 | H57: choice_46 | I57: 1 | J57: 1 | K57: 1 | L57: 1 | M57: 1 | N57: 0 | O57: 1 | P57: 1 | Q57: 0 | R57: 1 | S57: 0 | T57: 1 | U57: 0 | V57: 0 | W57: 0 | X57: 1 | Y57: 1 | Z57: 0 | AA57: 0 | AB57: 0 | AC57: 0.8 | AD57: 0.3 | AJ57: p_preference46 | AK57: 0.5820443894 | AL57: 0.5820443894 | AM57: 0.5820443894 | AN57: 0.5820443894 | AO57: 0.5820443894 | AP57: 0.5820443894 | AQ57: 0.5820443894 | AR57: 0.5820443894 | AS57: 0.5820443894 | AT57: 0.5820443894 | AU57: 0.4328429519 | AV57: 0.4328429519 | AW57: 0.4328429519 | AX57: 0.4328429519 | AY57: 0.4328429519 | AZ57: 0.4328429519 | BA57: 0.4328429519 | BB57: 0.4328429519 | BC57: 0.4328429519 | BD57: 0.4328429519 | BE57: 0.5820443894 | BF57: 0.4328429519
G58: 47 | H58: choice_47 | I58: 1 | J58: 1 | K58: 1 | L58: 1 | M58: 1 | N58: 1 | O58: 1 | P58: 0 | Q58: 0 | R58: 0 | S58: 0 | T58: 0 | U58: 0 | V58: 0 | W58: 1 | X58: 0 | Y58: 1 | Z58: 1 | AA58: 1 | AB58: 0 | AC58: 0.7 | AD58: 0.4 | AJ58: p_preference47 | AK58: 0.6013399504 | AL58: 0.6013399504 | AM58: 0.6013399504 | AN58: 0.6013399504 | AO58: 0.6013399504 | AP58: 0.6013399504 | AQ58: 0.6013399504 | AR58: 0.6013399504 | AS58: 0.6013399504 | AT58: 0.6013399504 | AU58: 0.4170586567 | AV58: 0.4170586567 | AW58: 0.4170586567 | AX58: 0.4170586567 | AY58: 0.4170586567 | AZ58: 0.4170586567 | BA58: 0.4170586567 | BB58: 0.4170586567 | BC58: 0.4170586567 | BD58: 0.4170586567 | BE58: 0.6013399504 | BF58: 0.4170586567
G59: 48 | H59: choice_48 | I59: 0 | J59: 0 | K59: 1 | L59: 1 | M59: 0 | N59: 1 | O59: 1 | P59: 0 | Q59: 1 | R59: 0 | S59: 1 | T59: 0 | U59: 1 | V59: 0 | W59: 0 | X59: 1 | Y59: 0 | Z59: 0 | AA59: 1 | AB59: 1 | AC59: 0.5 | AD59: 0.5 | AJ59: p_preference48 | AK59: 0.6087059554 | AL59: 0.6087059554 | AM59: 0.6087059554 | AN59: 0.6087059554 | AO59: 0.6087059554 | AP59: 0.6087059554 | AQ59: 0.6087059554 | AR59: 0.6087059554 | AS59: 0.6087059554 | AT59: 0.6087059554 | AU59: 0.412852791 | AV59: 0.412852791 | AW59: 0.412852791 | AX59: 0.412852791 | AY59: 0.412852791 | AZ59: 0.412852791 | BA59: 0.412852791 | BB59: 0.412852791 | BC59: 0.412852791 | BD59: 0.412852791 | BE59: 0.6087059554 | BF59: 0.412852791
G60: 49 | H60: choice_49 | I60: 1 | J60: 0 | K60: 0 | L60: 0 | M60: 1 | N60: 0 | O60: 1 | P60: 0 | Q60: 1 | R60: 1 | S60: 0 | T60: 1 | U60: 1 | V60: 1 | W60: 0 | X60: 1 | Y60: 0 | Z60: 0 | AA60: 0 | AB60: 0 | AC60: 0.5 | AD60: 0.4 | AJ60: p_preference49 | AK60: 0.5978353599 | AL60: 0.5978353599 | AM60: 0.5978353599 | AN60: 0.5978353599 | AO60: 0.5978353599 | AP60: 0.5978353599 | AQ60: 0.5978353599 | AR60: 0.5978353599 | AS60: 0.5978353599 | AT60: 0.5978353599 | AU60: 0.4215675119 | AV60: 0.4215675119 | AW60: 0.4215675119 | AX60: 0.4215675119 | AY60: 0.4215675119 | AZ60: 0.4215675119 | BA60: 0.4215675119 | BB60: 0.4215675119 | BC60: 0.4215675119 | BD60: 0.4215675119 | BE60: 0.5978353599 | BF60: 0.4215675119
G61: 50 | H61: choice_50 | I61: 0 | J61: 0 | K61: 1 | L61: 1 | M61: 1 | N61: 0 | O61: 0 | P61: 1 | Q61: 1 | R61: 0 | S61: 0 | T61: 1 | U61: 0 | V61: 0 | W61: 1 | X61: 1 | Y61: 0 | Z61: 0 | AA61: 0 | AB61: 0 | AC61: 0.5 | AD61: 0.3 | AJ61: p_preference50 | AK61: 0.5905518239 | AL61: 0.5905518239 | AM61: 0.5905518239 | AN61: 0.5905518239 | AO61: 0.5905518239 | AP61: 0.5905518239 | AQ61: 0.5905518239 | AR61: 0.5905518239 | AS61: 0.5905518239 | AT61: 0.5905518239 | AU61: 0.4219107607 | AV61: 0.4219107607 | AW61: 0.4219107607 | AX61: 0.4219107607 | AY61: 0.4219107607 | AZ61: 0.4219107607 | BA61: 0.4219107607 | BB61: 0.4219107607 | BC61: 0.4219107607 | BD61: 0.4219107607 | BE61: 0.5905518239 | BF61: 0.4219107607
G62: 51 | H62: choice_51 | I62: 1 | J62: 1 | K62: 1 | L62: 0 | M62: 0 | N62: 1 | O62: 1 | P62: 1 | Q62: 1 | R62: 0 | S62: 1 | T62: 0 | U62: 1 | V62: 1 | W62: 1 | X62: 0 | Y62: 0 | Z62: 1 | AA62: 1 | AB62: 1 | AC62: 0.7 | AD62: 0.7 | AJ62: p_preference51 | AK62: 0.5864966415 | AL62: 0.5864966415 | AM62: 0.5864966415 | AN62: 0.5864966415 | AO62: 0.5864966415 | AP62: 0.5864966415 | AQ62: 0.5864966415 | AR62: 0.5864966415 | AS62: 0.5864966415 | AT62: 0.5864966415 | AU62: 0.4147196847 | AV62: 0.4147196847 | AW62: 0.4147196847 | AX62: 0.4147196847 | AY62: 0.4147196847 | AZ62: 0.4147196847 | BA62: 0.4147196847 | BB62: 0.4147196847 | BC62: 0.4147196847 | BD62: 0.4147196847 | BE62: 0.5864966415 | BF62: 0.4147196847
G63: 52 | H63: choice_52 | I63: 1 | J63: 1 | K63: 0 | L63: 1 | M63: 1 | N63: 1 | O63: 1 | P63: 1 | Q63: 1 | R63: 0 | S63: 1 | T63: 1 | U63: 1 | V63: 1 | W63: 0 | X63: 1 | Y63: 0 | Z63: 1 | AA63: 0 | AB63: 1 | AC63: 0.8 | AD63: 0.7 | AJ63: p_preference52 | AK63: 0.5878469773 | AL63: 0.5878469773 | AM63: 0.5878469773 | AN63: 0.5878469773 | AO63: 0.5878469773 | AP63: 0.5878469773 | AQ63: 0.5878469773 | AR63: 0.5878469773 | AS63: 0.5878469773 | AT63: 0.5878469773 | AU63: 0.4332477162 | AV63: 0.4332477162 | AW63: 0.4332477162 | AX63: 0.4332477162 | AY63: 0.4332477162 | AZ63: 0.4332477162 | BA63: 0.4332477162 | BB63: 0.4332477162 | BC63: 0.4332477162 | BD63: 0.4332477162 | BE63: 0.5878469773 | BF63: 0.4332477162
G64: 53 | H64: choice_53 | I64: 0 | J64: 1 | K64: 1 | L64: 1 | M64: 1 | N64: 1 | O64: 0 | P64: 0 | Q64: 1 | R64: 1 | S64: 0 | T64: 0 | U64: 0 | V64: 1 | W64: 1 | X64: 0 | Y64: 0 | Z64: 0 | AA64: 1 | AB64: 0 | AC64: 0.7 | AD64: 0.3 | AJ64: p_preference53 | AK64: 0.5965622796 | AL64: 0.5965622796 | AM64: 0.5965622796 | AN64: 0.5965622796 | AO64: 0.5965622796 | AP64: 0.5965622796 | AQ64: 0.5965622796 | AR64: 0.5965622796 | AS64: 0.5965622796 | AT64: 0.5965622796 | AU64: 0.4474229446 | AV64: 0.4474229446 | AW64: 0.4474229446 | AX64: 0.4474229446 | AY64: 0.4474229446 | AZ64: 0.4474229446 | BA64: 0.4474229446 | BB64: 0.4474229446 | BC64: 0.4474229446 | BD64: 0.4474229446 | BE64: 0.5965622796 | BF64: 0.4474229446
G65: 54 | H65: choice_54 | I65: 1 | J65: 1 | K65: 1 | L65: 1 | M65: 1 | N65: 1 | O65: 0 | P65: 1 | Q65: 1 | R65: 1 | S65: 0 | T65: 0 | U65: 0 | V65: 0 | W65: 1 | X65: 0 | Y65: 1 | Z65: 0 | AA65: 1 | AB65: 0 | AC65: 0.9 | AD65: 0.3 | AJ65: p_preference54 | AK65: 0.6069060516 | AL65: 0.6069060516 | AM65: 0.6069060516 | AN65: 0.6069060516 | AO65: 0.6069060516 | AP65: 0.6069060516 | AQ65: 0.6069060516 | AR65: 0.6069060516 | AS65: 0.6069060516 | AT65: 0.6069060516 | AU65: 0.4326806501 | AV65: 0.4326806501 | AW65: 0.4326806501 | AX65: 0.4326806501 | AY65: 0.4326806501 | AZ65: 0.4326806501 | BA65: 0.4326806501 | BB65: 0.4326806501 | BC65: 0.4326806501 | BD65: 0.4326806501 | BE65: 0.6069060516 | BF65: 0.4326806501
G66: 55 | H66: choice_55 | I66: 0 | J66: 0 | K66: 1 | L66: 1 | M66: 0 | N66: 0 | O66: 1 | P66: 0 | Q66: 0 | R66: 1 | S66: 0 | T66: 0 | U66: 0 | V66: 0 | W66: 0 | X66: 0 | Y66: 1 | Z66: 0 | AA66: 1 | AB66: 0 | AC66: 0.4 | AD66: 0.2 | AJ66: p_preference55 | AK66: 0.6312154465 | AL66: 0.6312154465 | AM66: 0.6312154465 | AN66: 0.6312154465 | AO66: 0.6312154465 | AP66: 0.6312154465 | AQ66: 0.6312154465 | AR66: 0.6312154465 | AS66: 0.6312154465 | AT66: 0.6312154465 | AU66: 0.4144125851 | AV66: 0.4144125851 | AW66: 0.4144125851 | AX66: 0.4144125851 | AY66: 0.4144125851 | AZ66: 0.4144125851 | BA66: 0.4144125851 | BB66: 0.4144125851 | BC66: 0.4144125851 | BD66: 0.4144125851 | BE66: 0.6312154465 | BF66: 0.4144125851
G67: 56 | H67: choice_56 | I67: 1 | J67: 1 | K67: 1 | L67: 1 | M67: 0 | N67: 0 | O67: 1 | P67: 1 | Q67: 1 | R67: 0 | S67: 0 | T67: 1 | U67: 1 | V67: 0 | W67: 0 | X67: 0 | Y67: =IF(RAND()<=BA67,1,0) -> 1 | Z67: 1 | AA67: 1 | AB67: 0 | AC67: 0.7 | AD67: 0.5 | AJ67: p_preference56 | AK67: 0.6180939018 | AL67: 0.6180939018 | AM67: 0.6180939018 | AN67: 0.6180939018 | AO67: 0.6180939018 | AP67: 0.6180939018 | AQ67: 0.6180939018 | AR67: 0.6180939018 | AS67: 0.6180939018 | AT67: 0.6180939018 | AU67: 0.4029713266 | AV67: 0.4029713266 | AW67: 0.4029713266 | AX67: 0.4029713266 | AY67: 0.4029713266 | AZ67: 0.4029713266 | BA67: 0.4029713266 | BB67: 0.4029713266 | BC67: 0.4029713266 | BD67: 0.4029713266 | BE67: 0.6180939018 | BF67: 0.4029713266
G68: 57 | H68: choice_57 | I68: 0 | J68: 0 | K68: 1 | L68: 0 | M68: 1 | N68: 0 | O68: 1 | P68: 1 | Q68: 1 | R68: 1 | S68: 0 | T68: 1 | U68: 1 | V68: 1 | W68: 0 | X68: 1 | Y68: 1 | Z68: 1 | AA68: 0 | AB68: 1 | AC68: 0.6 | AD68: 0.7 | AJ68: p_preference57 | AK68: 0.6212845116 | AL68: 0.6212845116 | AM68: 0.6212845116 | AN68: 0.6212845116 | AO68: 0.6212845116 | AP68: 0.6212845116 | AQ68: 0.6212845116 | AR68: 0.6212845116 | AS68: 0.6212845116 | AT68: 0.6212845116 | AU68: 0.4076741939 | AV68: 0.4076741939 | AW68: 0.4076741939 | AX68: 0.4076741939 | AY68: 0.4076741939 | AZ68: 0.4076741939 | BA68: 0.4076741939 | BB68: 0.4076741939 | BC68: 0.4076741939 | BD68: 0.4076741939 | BE68: 0.6212845116 | BF68: 0.4076741939
G69: 58 | H69: choice_58 | I69: 1 | J69: 0 | K69: 1 | L69: 1 | M69: 1 | N69: 0 | O69: 1 | P69: 1 | Q69: 0 | R69: 1 | S69: 1 | T69: 0 | U69: 0 | V69: 1 | W69: 1 | X69: 1 | Y69: 1 | Z69: 0 | AA69: 0 | AB69: 0 | AC69: 0.7 | AD69: 0.5 | AJ69: p_preference58 | AK69: 0.6116560605 | AL69: 0.6116560605 | AM69: 0.6116560605 | AN69: 0.6116560605 | AO69: 0.6116560605 | AP69: 0.6116560605 | AQ69: 0.6116560605 | AR69: 0.6116560605 | AS69: 0.6116560605 | AT69: 0.6116560605 | AU69: 0.4294067745 | AV69: 0.4294067745 | AW69: 0.4294067745 | AX69: 0.4294067745 | AY69: 0.4294067745 | AZ69: 0.4294067745 | BA69: 0.4294067745 | BB69: 0.4294067745 | BC69: 0.4294067745 | BD69: 0.4294067745 | BE69: 0.6116560605 | BF69: 0.4294067745
G70: 59 | H70: choice_59 | I70: 0 | J70: 0 | K70: 1 | L70: 1 | M70: 1 | N70: 1 | O70: 0 | P70: 0 | Q70: 1 | R70: 1 | S70: 1 | T70: 0 | U70: 0 | V70: 0 | W70: 0 | X70: 0 | Y70: 0 | Z70: 0 | AA70: 1 | AB70: 1 | AC70: 0.6 | AD70: 0.3 | AJ70: p_preference59 | AK70: 0.6154904544 | AL70: 0.6154904544 | AM70: 0.6154904544 | AN70: 0.6154904544 | AO70: 0.6154904544 | AP70: 0.6154904544 | AQ70: 0.6154904544 | AR70: 0.6154904544 | AS70: 0.6154904544 | AT70: 0.6154904544 | AU70: 0.4314660971 | AV70: 0.4314660971 | AW70: 0.4314660971 | AX70: 0.4314660971 | AY70: 0.4314660971 | AZ70: 0.4314660971 | BA70: 0.4314660971 | BB70: 0.4314660971 | BC70: 0.4314660971 | BD70: 0.4314660971 | BE70: 0.6154904544 | BF70: 0.4314660971
G71: 60 | H71: choice_60 | I71: 0 | J71: 0 | K71: 0 | L71: 0 | M71: 0 | N71: 1 | O71: 0 | P71: 1 | Q71: =IF(RAND()<=AS71,1,0) -> 1 | R71: 0 | S71: 0 | T71: 0 | U71: 0 | V71: 0 | W71: 0 | X71: 0 | Y71: 0 | Z71: 0 | AA71: 0 | AB71: 0 | AC71: 0.3 | AD71: 0 | AJ71: p_preference60 | AK71: 0.616441409 | AL71: 0.616441409 | AM71: 0.616441409 | AN71: 0.616441409 | AO71: 0.616441409 | AP71: 0.616441409 | AQ71: 0.616441409 | AR71: 0.616441409 | AS71: 0.616441409 | AT71: 0.616441409 | AU71: 0.4208194874 | AV71: 0.4208194874 | AW71: 0.4208194874 | AX71: 0.4208194874 | AY71: 0.4208194874 | AZ71: 0.4208194874 | BA71: 0.4208194874 | BB71: 0.4208194874 | BC71: 0.4208194874 | BD71: 0.4208194874 | BE71: 0.616441409 | BF71: 0.4208194874
G72: 61 | H72: choice_61 | I72: =IF(RAND()<=AK72,1,0) -> 1 | J72: 1 | K72: 0 | L72: 1 | M72: 0 | N72: 1 | O72: 1 | P72: 1 | Q72: 0 | R72: 0 | S72: 0 | T72: 0 | U72: 0 | V72: 1 | W72: 0 | X72: 1 | Y72: 0 | Z72: 1 | AA72: 0 | AB72: 0 | AC72: 0.6 | AD72: 0.3 | AJ72: p_preference61 | AK72: 0.6022972681 | AL72: 0.6022972681 | AM72: 0.6022972681 | AN72: 0.6022972681 | AO72: 0.6022972681 | AP72: 0.6022972681 | AQ72: 0.6022972681 | AR72: 0.6022972681 | AS72: 0.6022972681 | AT72: 0.6022972681 | AU72: 0.3962375386 | AV72: 0.3962375386 | AW72: 0.3962375386 | AX72: 0.3962375386 | AY72: 0.3962375386 | AZ72: 0.3962375386 | BA72: 0.3962375386 | BB72: 0.3962375386 | BC72: 0.3962375386 | BD72: 0.3962375386 | BE72: 0.6022972681 | BF72: 0.3962375386
G73: 62 | H73: choice_62 | I73: 1 | J73: 1 | K73: 0 | L73: 1 | M73: 1 | N73: 1 | O73: 1 | P73: 1 | Q73: 1 | R73: 1 | S73: 1 | T73: 0 | U73: 0 | V73: 1 | W73: 0 | X73: 1 | Y73: 0 | Z73: 0 | AA73: 0 | AB73: 0 | AC73: 0.9 | AD73: 0.3 | AJ73: p_preference62 | AK73: 0.6045675413 | AL73: 0.6045675413 | AM73: 0.6045675413 | AN73: 0.6045675413 | AO73: 0.6045675413 | AP73: 0.6045675413 | AQ73: 0.6045675413 | AR73: 0.6045675413 | AS73: 0.6045675413 | AT73: 0.6045675413 | AU73: 0.3891137848 | AV73: 0.3891137848 | AW73: 0.3891137848 | AX73: 0.3891137848 | AY73: 0.3891137848 | AZ73: 0.3891137848 | BA73: 0.3891137848 | BB73: 0.3891137848 | BC73: 0.3891137848 | BD73: 0.3891137848 | BE73: 0.6045675413 | BF73: 0.3891137848
G74: 63 | H74: choice_63 | I74: 0 | J74: 1 | K74: 0 | L74: 0 | M74: 1 | N74: 1 | O74: 0 | P74: 1 | Q74: 1 | R74: 1 | S74: 1 | T74: 0 | U74: 0 | V74: 1 | W74: 0 | X74: 0 | Y74: 1 | Z74: 1 | AA74: 0 | AB74: 0 | AC74: 0.6 | AD74: 0.4 | AJ74: p_preference63 | AK74: 0.6291107872 | AL74: 0.6291107872 | AM74: 0.6291107872 | AN74: 0.6291107872 | AO74: 0.6291107872 | AP74: 0.6291107872 | AQ74: 0.6291107872 | AR74: 0.6291107872 | AS74: 0.6291107872 | AT74: 0.6291107872 | AU74: 0.3752024063 | AV74: 0.3752024063 | AW74: 0.3752024063 | AX74: 0.3752024063 | AY74: 0.3752024063 | AZ74: 0.3752024063 | BA74: 0.3752024063 | BB74: 0.3752024063 | BC74: 0.3752024063 | BD74: 0.3752024063 | BE74: 0.6291107872 | BF74: 0.3752024063
G75: 64 | H75: choice_64 | I75: 1 | J75: 1 | K75: 0 | L75: 0 | M75: 0 | N75: 1 | O75: 1 | P75: 0 | Q75: 0 | R75: 1 | S75: 1 | T75: 1 | U75: 0 | V75: 1 | W75: 1 | X75: 0 | Y75: 0 | Z75: 0 | AA75: 0 | AB75: 0 | AC75: 0.5 | AD75: 0.4 | AJ75: p_preference64 | AK75: 0.6261997084 | AL75: 0.6261997084 | AM75: 0.6261997084 | AN75: 0.6261997084 | AO75: 0.6261997084 | AP75: 0.6261997084 | AQ75: 0.6261997084 | AR75: 0.6261997084 | AS75: 0.6261997084 | AT75: 0.6261997084 | AU75: 0.3776821657 | AV75: 0.3776821657 | AW75: 0.3776821657 | AX75: 0.3776821657 | AY75: 0.3776821657 | AZ75: 0.3776821657 | BA75: 0.3776821657 | BB75: 0.3776821657 | BC75: 0.3776821657 | BD75: 0.3776821657 | BE75: 0.6261997084 | BF75: 0.3776821657
G76: 65 | H76: choice_65 | I76: 1 | J76: 1 | K76: 1 | L76: 1 | M76: 1 | N76: 1 | O76: 0 | P76: 1 | Q76: 0 | R76: 0 | S76: 0 | T76: 1 | U76: 0 | V76: 1 | W76: 0 | X76: 0 | Y76: 0 | Z76: 1 | AA76: 1 | AB76: 1 | AC76: 0.7 | AD76: 0.5 | AJ76: p_preference65 | AK76: 0.6160797376 | AL76: 0.6160797376 | AM76: 0.6160797376 | AN76: 0.6160797376 | AO76: 0.6160797376 | AP76: 0.6160797376 | AQ76: 0.6160797376 | AR76: 0.6160797376 | AS76: 0.6160797376 | AT76: 0.6160797376 | AU76: 0.3824139491 | AV76: 0.3824139491 | AW76: 0.3824139491 | AX76: 0.3824139491 | AY76: 0.3824139491 | AZ76: 0.3824139491 | BA76: 0.3824139491 | BB76: 0.3824139491 | BC76: 0.3824139491 | BD76: 0.3824139491 | BE76: 0.6160797376 | BF76: 0.3824139491
G77: 66 | H77: choice_66 | I77: 0 | J77: 0 | K77: 1 | L77: 0 | M77: 0 | N77: 0 | O77: 1 | P77: 1 | Q77: 0 | R77: 0 | S77: 1 | T77: 0 | U77: 0 | V77: 0 | W77: 0 | X77: 1 | Y77: 1 | Z77: 0 | AA77: 0 | AB77: 0 | AC77: =AVERAGE(I77:R77) -> 0.3 | AD77: =AVERAGE(S77:AB77) -> 0.3 | AJ77: p_preference66 | AK77: =AK76+(($AC76*samesex_effect+(1-$AD76)*othersex_effect+preference_B*gen_effect)/(samesex_effect+othersex_effect+gen_effect)-AK76)*RATE -> 0.6194717638 | AL77: =AL76+(($AC76*samesex_effect+(1-$AD76)*othersex_effect+preference_B*gen_effect)/(samesex_effect+othersex_effect+gen_effect)-AL76)*RATE -> 0.6194717638 | AM77: =AM76+(($AC76*samesex_effect+(1-$AD76)*othersex_effect+preference_B*gen_effect)/(samesex_effect+othersex_effect+gen_effect)-AM76)*RATE -> 0.6194717638 | AN77: =AN76+(($AC76*samesex_effect+(1-$AD76)*othersex_effect+preference_B*gen_effect)/(samesex_effect+othersex_effect+gen_effect)-AN76)*RATE -> 0.6194717638 | AO77: =AO76+(($AC76*samesex_effect+(1-$AD76)*othersex_effect+preference_B*gen_effect)/(samesex_effect+othersex_effect+gen_effect)-AO76)*RATE -> 0.6194717638 | AP77: =AP76+(($AC76*samesex_effect+(1-$AD76)*othersex_effect+preference_B*gen_effect)/(samesex_effect+othersex_effect+gen_effect)-AP76)*RATE -> 0.6194717638 | AQ77: =AQ76+(($AC76*samesex_effect+(1-$AD76)*othersex_effect+preference_B*gen_effect)/(samesex_effect+othersex_effect+gen_effect)-AQ76)*RATE -> 0.6194717638 | AR77: =AR76+(($AC76*samesex_effect+(1-$AD76)*othersex_effect+preference_B*gen_effect)/(samesex_effect+othersex_effect+gen_effect)-AR76)*RATE -> 0.6194717638 | AS77: =AS76+(($AC76*samesex_effect+(1-$AD76)*othersex_effect+preference_B*gen_effect)/(samesex_effect+othersex_effect+gen_effect)-AS76)*RATE -> 0.6194717638 | AT77: =AT76+(($AC76*samesex_effect+(1-$AD76)*othersex_effect+preference_B*gen_effect)/(samesex_effect+othersex_effect+gen_effect)-AT76)*RATE -> 0.6194717638 | AU77: =AU76+(($AD76*samesex_effect+(1-$AC76)*othersex_effect+preference_G*gen_effect)/(samesex_effect+othersex_effect+gen_effect)-AU76)*RATE -> 0.3891725542 | AV77: =AV76+(($AD76*samesex_effect+(1-$AC76)*othersex_effect+preference_G*gen_effect)/(samesex_effect+othersex_effect+gen_effect)-AV76)*RATE -> 0.3891725542 | AW77: =AW76+(($AD76*samesex_effect+(1-$AC76)*othersex_effect+preference_G*gen_effect)/(samesex_effect+othersex_effect+gen_effect)-AW76)*RATE -> 0.3891725542 | AX77: =AX76+(($AD76*samesex_effect+(1-$AC76)*othersex_effect+preference_G*gen_effect)/(samesex_effect+othersex_effect+gen_effect)-AX76)*RATE -> 0.3891725542 | AY77: =AY76+(($AD76*samesex_effect+(1-$AC76)*othersex_effect+preference_G*gen_effect)/(samesex_effect+othersex_effect+gen_effect)-AY76)*RATE -> 0.3891725542 | AZ77: =AZ76+(($AD76*samesex_effect+(1-$AC76)*othersex_effect+preference_G*gen_effect)/(samesex_effect+othersex_effect+gen_effect)-AZ76)*RATE -> 0.3891725542 | BA77: =BA76+(($AD76*samesex_effect+(1-$AC76)*othersex_effect+preference_G*gen_effect)/(samesex_effect+othersex_effect+gen_effect)-BA76)*RATE -> 0.3891725542 | BB77: =BB76+(($AD76*samesex_effect+(1-$AC76)*othersex_effect+preference_G*gen_effect)/(samesex_effect+othersex_effect+gen_effect)-BB76)*RATE -> 0.3891725542 | BC77: =BC76+(($AD76*samesex_effect+(1-$AC76)*othersex_effect+preference_G*gen_effect)/(samesex_effect+othersex_effect+gen_effect)-BC76)*RATE -> 0.3891725542 | BD77: =BD76+(($AD76*samesex_effect+(1-$AC76)*othersex_effect+preference_G*gen_effect)/(samesex_effect+othersex_effect+gen_effect)-BD76)*RATE -> 0.3891725542 | BE77: =AVERAGE(AK77:AT77) -> 0.6194717638 | BF77: =AVERAGE(AU77:BD77) -> 0.3891725542
G78: 67 | H78: choice_67 | I78: 0 | J78: 1 | K78: 0 | L78: 1 | M78: 1 | N78: 1 | O78: 1 | P78: 1 | Q78: 0 | R78: 1 | S78: 0 | T78: 1 | U78: 1 | V78: 0 | W78: 1 | X78: 0 | Y78: 0 | Z78: 0 | AA78: 0 | AB78: 0 | AC78: 0.7 | AD78: 0.3 | AJ78: p_preference67 | AK78: 0.5975245875 | AL78: 0.5975245875 | AM78: 0.5975245875 | AN78: 0.5975245875 | AO78: 0.5975245875 | AP78: 0.5975245875 | AQ78: 0.5975245875 | AR78: 0.5975245875 | AS78: 0.5975245875 | AT78: 0.5975245875 | AU78: 0.3902552988 | AV78: 0.3902552988 | AW78: 0.3902552988 | AX78: 0.3902552988 | AY78: 0.3902552988 | AZ78: 0.3902552988 | BA78: 0.3902552988 | BB78: 0.3902552988 | BC78: 0.3902552988 | BD78: 0.3902552988 | BE78: 0.5975245875 | BF78: 0.3902552988
G79: 68 | H79: choice_68 | I79: 0 | J79: 1 | K79: 1 | L79: 1 | M79: 1 | N79: 1 | O79: 1 | P79: 0 | Q79: 0 | R79: 1 | S79: 0 | T79: 0 | U79: 1 | V79: 1 | W79: 1 | X79: 0 | Y79: 1 | Z79: 0 | AA79: 0 | AB79: 0 | AC79: 0.7 | AD79: 0.4 | AJ79: p_preference68 | AK79: 0.6077721287 | AL79: 0.6077721287 | AM79: 0.6077721287 | AN79: 0.6077721287 | AO79: 0.6077721287 | AP79: 0.6077721287 | AQ79: 0.6077721287 | AR79: 0.6077721287 | AS79: 0.6077721287 | AT79: 0.6077721287 | AU79: 0.3812297689 | AV79: 0.3812297689 | AW79: 0.3812297689 | AX79: 0.3812297689 | AY79: 0.3812297689 | AZ79: 0.3812297689 | BA79: 0.3812297689 | BB79: 0.3812297689 | BC79: 0.3812297689 | BD79: 0.3812297689 | BE79: 0.6077721287 | BF79: 0.3812297689
G80: 69 | H80: choice_69 | I80: 0 | J80: 0 | K80: 1 | L80: 0 | M80: 1 | N80: 1 | O80: 1 | P80: 1 | Q80: 1 | R80: 0 | S80: 0 | T80: 1 | U80: 1 | V80: 0 | W80: 1 | X80: 0 | Y80: 1 | Z80: 0 | AA80: 0 | AB80: 0 | AC80: 0.6 | AD80: 0.4 | AJ80: p_preference69 | AK80: 0.6144949158 | AL80: 0.6144949158 | AM80: 0.6144949158 | AN80: 0.6144949158 | AO80: 0.6144949158 | AP80: 0.6144949158 | AQ80: 0.6144949158 | AR80: 0.6144949158 | AS80: 0.6144949158 | AT80: 0.6144949158 | AU80: 0.380606792 | AV80: 0.380606792 | AW80: 0.380606792 | AX80: 0.380606792 | AY80: 0.380606792 | AZ80: 0.380606792 | BA80: 0.380606792 | BB80: 0.380606792 | BC80: 0.380606792 | BD80: 0.380606792 | BE80: 0.6144949158 | BF80: 0.380606792
G81: 70 | H81: choice_70 | I81: 1 | J81: 0 | K81: 0 | L81: 1 | M81: 1 | N81: 0 | O81: 0 | P81: 0 | Q81: 0 | R81: 1 | S81: 1 | T81: 0 | U81: 0 | V81: 1 | W81: =IF(RAND()<=AY81,1,0) -> 1 | X81: =IF(RAND()<=AZ81,1,0) -> 1 | Y81: =IF(RAND()<=BA81,1,0) -> 1 | Z81: =IF(RAND()<=BB81,1,0) -> 0 | AA81: 1 | AB81: 0 | AC81: 0.4 | AD81: 0.6 | AJ81: p_preference70 | AK81: 0.6130454243 | AL81: 0.6130454243 | AM81: 0.6130454243 | AN81: 0.6130454243 | AO81: 0.6130454243 | AP81: 0.6130454243 | AQ81: 0.6130454243 | AR81: 0.6130454243 | AS81: 0.6130454243 | AT81: 0.6130454243 | AU81: 0.3825461128 | AV81: 0.3825461128 | AW81: 0.3825461128 | AX81: 0.3825461128 | AY81: 0.3825461128 | AZ81: 0.3825461128 | BA81: 0.3825461128 | BB81: 0.3825461128 | BC81: 0.3825461128 | BD81: 0.3825461128 | BE81: 0.6130454243 | BF81: 0.3825461128
G82: 71 | H82: choice_71 | I82: 1 | J82: 0 | K82: 0 | L82: 1 | M82: 1 | N82: 0 | O82: 1 | P82: 0 | Q82: 1 | R82: 0 | S82: 1 | T82: 1 | U82: 1 | V82: 1 | W82: 0 | X82: 1 | Y82: 0 | Z82: 0 | AA82: 1 | AB82: 0 | AC82: 0.5 | AD82: 0.6 | AJ82: p_preference71 | AK82: 0.5917408818 | AL82: 0.5917408818 | AM82: 0.5917408818 | AN82: 0.5917408818 | AO82: 0.5917408818 | AP82: 0.5917408818 | AQ82: 0.5917408818 | AR82: 0.5917408818 | AS82: 0.5917408818 | AT82: 0.5917408818 | AU82: 0.4042915015 | AV82: 0.4042915015 | AW82: 0.4042915015 | AX82: 0.4042915015 | AY82: 0.4042915015 | AZ82: 0.4042915015 | BA82: 0.4042915015 | BB82: 0.4042915015 | BC82: 0.4042915015 | BD82: 0.4042915015 | BE82: 0.5917408818 | BF82: 0.4042915015
G83: 72 | H83: choice_72 | I83: 0 | J83: 1 | K83: 1 | L83: 0 | M83: 1 | N83: 0 | O83: 1 | P83: 1 | Q83: 0 | R83: 0 | S83: 0 | T83: 0 | U83: 1 | V83: 1 | W83: 0 | X83: 0 | Y83: 0 | Z83: 1 | AA83: 0 | AB83: 0 | AC83: 0.5 | AD83: 0.3 | AJ83: p_preference72 | AK83: 0.5800667936 | AL83: 0.5800667936 | AM83: 0.5800667936 | AN83: 0.5800667936 | AO83: 0.5800667936 | AP83: 0.5800667936 | AQ83: 0.5800667936 | AR83: 0.5800667936 | AS83: 0.5800667936 | AT83: 0.5800667936 | AU83: 0.4213623514 | AV83: 0.4213623514 | AW83: 0.4213623514 | AX83: 0.4213623514 | AY83: 0.4213623514 | AZ83: 0.4213623514 | BA83: 0.4213623514 | BB83: 0.4213623514 | BC83: 0.4213623514 | BD83: 0.4213623514 | BE83: 0.5800667936 | BF83: 0.4213623514
G84: 73 | H84: choice_73 | I84: 1 | J84: 1 | K84: 1 | L84: 1 | M84: 0 | N84: 1 | O84: 1 | P84: 0 | Q84: 1 | R84: 0 | S84: 0 | T84: 1 | U84: 0 | V84: 0 | W84: 0 | X84: 0 | Y84: 0 | Z84: 0 | AA84: 1 | AB84: 1 | AC84: 0.7 | AD84: 0.3 | AJ84: p_preference73 | AK84: 0.5770601143 | AL84: 0.5770601143 | AM84: 0.5770601143 | AN84: 0.5770601143 | AO84: 0.5770601143 | AP84: 0.5770601143 | AQ84: 0.5770601143 | AR84: 0.5770601143 | AS84: 0.5770601143 | AT84: 0.5770601143 | AU84: 0.4142261162 | AV84: 0.4142261162 | AW84: 0.4142261162 | AX84: 0.4142261162 | AY84: 0.4142261162 | AZ84: 0.4142261162 | BA84: 0.4142261162 | BB84: 0.4142261162 | BC84: 0.4142261162 | BD84: 0.4142261162 | BE84: 0.5770601143 | BF84: 0.4142261162
G85: 74 | H85: choice_74 | I85: 1 | J85: 0 | K85: 0 | L85: 1 | M85: 1 | N85: 0 | O85: 0 | P85: 1 | Q85: 1 | R85: 1 | S85: 0 | T85: 1 | U85: 1 | V85: 0 | W85: 0 | X85: 0 | Y85: 1 | Z85: 1 | AA85: 1 | AB85: 1 | AC85: 0.6 | AD85: 0.6 | AJ85: p_preference74 | AK85: 0.5893541029 | AL85: 0.5893541029 | AM85: 0.5893541029 | AN85: 0.5893541029 | AO85: 0.5893541029 | AP85: 0.5893541029 | AQ85: 0.5893541029 | AR85: 0.5893541029 | AS85: 0.5893541029 | AT85: 0.5893541029 | AU85: 0.4028035046 | AV85: 0.4028035046 | AW85: 0.4028035046 | AX85: 0.4028035046 | AY85: 0.4028035046 | AZ85: 0.4028035046 | BA85: 0.4028035046 | BB85: 0.4028035046 | BC85: 0.4028035046 | BD85: 0.4028035046 | BE85: 0.5893541029 | BF85: 0.4028035046
G86: 75 | H86: choice_75 | I86: 1 | J86: 0 | K86: 0 | L86: 1 | M86: 0 | N86: 1 | O86: 1 | P86: 1 | Q86: 1 | R86: 1 | S86: 1 | T86: 0 | U86: 1 | V86: 0 | W86: 0 | X86: 0 | Y86: 1 | Z86: 0 | AA86: 0 | AB86: 0 | AC86: 0.7 | AD86: 0.3 | AJ86: p_preference75 | AK86: 0.5854186926 | AL86: 0.5854186926 | AM86: 0.5854186926 | AN86: 0.5854186926 | AO86: 0.5854186926 | AP86: 0.5854186926 | AQ86: 0.5854186926 | AR86: 0.5854186926 | AS86: 0.5854186926 | AT86: 0.5854186926 | AU86: 0.4175231542 | AV86: 0.4175231542 | AW86: 0.4175231542 | AX86: 0.4175231542 | AY86: 0.4175231542 | AZ86: 0.4175231542 | BA86: 0.4175231542 | BB86: 0.4175231542 | BC86: 0.4175231542 | BD86: 0.4175231542 | BE86: 0.5854186926 | BF86: 0.4175231542
G87: 76 | H87: choice_76 | I87: 1 | J87: 0 | K87: 1 | L87: 1 | M87: 0 | N87: 1 | O87: 1 | P87: 0 | Q87: 1 | R87: 0 | S87: 0 | T87: 0 | U87: 0 | V87: 1 | W87: 1 | X87: 0 | Y87: 0 | Z87: 0 | AA87: 0 | AB87: 0 | AC87: 0.6 | AD87: 0.2 | AJ87: p_preference76 | AK87: 0.5968768233 | AL87: 0.5968768233 | AM87: 0.5968768233 | AN87: 0.5968768233 | AO87: 0.5968768233 | AP87: 0.5968768233 | AQ87: 0.5968768233 | AR87: 0.5968768233 | AS87: 0.5968768233 | AT87: 0.5968768233 | AU87: 0.4057708387 | AV87: 0.4057708387 | AW87: 0.4057708387 | AX87: 0.4057708387 | AY87: 0.4057708387 | AZ87: 0.4057708387 | BA87: 0.4057708387 | BB87: 0.4057708387 | BC87: 0.4057708387 | BD87: 0.4057708387 | BE87: 0.5968768233 | BF87: 0.4057708387
G88: 77 | H88: choice_77 | I88: 1 | J88: 0 | K88: 1 | L88: 1 | M88: 1 | N88: 0 | O88: 0 | P88: 0 | Q88: 0 | R88: 0 | S88: 0 | T88: 1 | U88: 1 | V88: 1 | W88: 1 | X88: 0 | Y88: 0 | Z88: 1 | AA88: 1 | AB88: 1 | AC88: 0.4 | AD88: 0.7 | AJ88: p_preference77 | AK88: 0.602189141 | AL88: 0.602189141 | AM88: 0.602189141 | AN88: 0.602189141 | AO88: 0.602189141 | AP88: 0.602189141 | AQ88: 0.602189141 | AR88: 0.602189141 | AS88: 0.602189141 | AT88: 0.602189141 | AU88: 0.3901937549 | AV88: 0.3901937549 | AW88: 0.3901937549 | AX88: 0.3901937549 | AY88: 0.3901937549 | AZ88: 0.3901937549 | BA88: 0.3901937549 | BB88: 0.3901937549 | BC88: 0.3901937549 | BD88: 0.3901937549 | BE88: 0.602189141 | BF88: 0.3901937549
G89: 78 | H89: choice_78 | I89: 0 | J89: 0 | K89: 1 | L89: 1 | M89: 0 | N89: 0 | O89: 1 | P89: 1 | Q89: 0 | R89: 0 | S89: 0 | T89: 0 | U89: 0 | V89: 0 | W89: 1 | X89: 0 | Y89: 0 | Z89: 1 | AA89: 1 | AB89: 0 | AC89: 0.4 | AD89: 0.3 | AJ89: p_preference78 | AK89: 0.5794702269 | AL89: 0.5794702269 | AM89: 0.5794702269 | AN89: 0.5794702269 | AO89: 0.5794702269 | AP89: 0.5794702269 | AQ89: 0.5794702269 | AR89: 0.5794702269 | AS89: 0.5794702269 | AT89: 0.5794702269 | AU89: 0.4186743794 | AV89: 0.4186743794 | AW89: 0.4186743794 | AX89: 0.4186743794 | AY89: 0.4186743794 | AZ89: 0.4186743794 | BA89: 0.4186743794 | BB89: 0.4186743794 | BC89: 0.4186743794 | BD89: 0.4186743794 | BE89: 0.5794702269 | BF89: 0.4186743794
G90: 79 | H90: choice_79 | I90: 0 | J90: 0 | K90: 0 | L90: 1 | M90: 0 | N90: 0 | O90: 1 | P90: 0 | Q90: 1 | R90: 0 | S90: 1 | T90: 1 | U90: 0 | V90: 0 | W90: 1 | X90: 0 | Y90: 0 | Z90: 0 | AA90: 0 | AB90: 0 | AC90: 0.3 | AD90: 0.3 | AJ90: p_preference79 | AK90: 0.5690232042 | AL90: 0.5690232042 | AM90: 0.5690232042 | AN90: 0.5690232042 | AO90: 0.5690232042 | AP90: 0.5690232042 | AQ90: 0.5690232042 | AR90: 0.5690232042 | AS90: 0.5690232042 | AT90: 0.5690232042 | AU90: 0.4143069414 | AV90: 0.4143069414 | AW90: 0.4143069414 | AX90: 0.4143069414 | AY90: 0.4143069414 | AZ90: 0.4143069414 | BA90: 0.4143069414 | BB90: 0.4143069414 | BC90: 0.4143069414 | BD90: 0.4143069414 | BE90: 0.5690232042 | BF90: 0.4143069414
G91: 80 | H91: choice_80 | I91: 1 | J91: 1 | K91: 0 | L91: 1 | M91: 1 | N91: 1 | O91: 1 | P91: 1 | Q91: 0 | R91: 1 | S91: 0 | T91: 0 | U91: 0 | V91: 0 | W91: 1 | X91: 0 | Y91: 0 | Z91: 0 | AA91: 1 | AB91: 0 | AC91: 0.8 | AD91: 0.2 | AJ91: p_preference80 | AK91: 0.5521208838 | AL91: 0.5521208838 | AM91: 0.5521208838 | AN91: 0.5521208838 | AO91: 0.5521208838 | AP91: 0.5521208838 | AQ91: 0.5521208838 | AR91: 0.5521208838 | AS91: 0.5521208838 | AT91: 0.5521208838 | AU91: 0.4128762473 | AV91: 0.4128762473 | AW91: 0.4128762473 | AX91: 0.4128762473 | AY91: 0.4128762473 | AZ91: 0.4128762473 | BA91: 0.4128762473 | BB91: 0.4128762473 | BC91: 0.4128762473 | BD91: 0.4128762473 | BE91: 0.5521208838 | BF91: 0.4128762473
G92: 81 | H92: choice_81 | I92: 1 | J92: 0 | K92: 0 | L92: 0 | M92: 1 | N92: 0 | O92: 0 | P92: 1 | Q92: 1 | R92: 1 | S92: 0 | T92: 0 | U92: 0 | V92: 1 | W92: 1 | X92: 0 | Y92: 0 | Z92: 1 | AA92: 0 | AB92: 1 | AC92: 0.5 | AD92: 0.4 | AJ92: p_preference81 | AK92: 0.5769087954 | AL92: 0.5769087954 | AM92: 0.5769087954 | AN92: 0.5769087954 | AO92: 0.5769087954 | AP92: 0.5769087954 | AQ92: 0.5769087954 | AR92: 0.5769087954 | AS92: 0.5769087954 | AT92: 0.5769087954 | AU92: 0.3915886226 | AV92: 0.3915886226 | AW92: 0.3915886226 | AX92: 0.3915886226 | AY92: 0.3915886226 | AZ92: 0.3915886226 | BA92: 0.3915886226 | BB92: 0.3915886226 | BC92: 0.3915886226 | BD92: 0.3915886226 | BE92: 0.5769087954 | BF92: 0.3915886226
G93: 82 | H93: choice_82 | I93: 1 | J93: 1 | K93: 0 | L93: 1 | M93: 0 | N93: 1 | O93: 1 | P93: 1 | Q93: 1 | R93: 1 | S93: 1 | T93: 0 | U93: 1 | V93: 1 | W93: 0 | X93: 0 | Y93: 0 | Z93: 0 | AA93: 1 | AB93: 0 | AC93: 0.8 | AD93: 0.4 | AJ93: p_preference82 | AK93: 0.5717179159 | AL93: 0.5717179159 | AM93: 0.5717179159 | AN93: 0.5717179159 | AO93: 0.5717179159 | AP93: 0.5717179159 | AQ93: 0.5717179159 | AR93: 0.5717179159 | AS93: 0.5717179159 | AT93: 0.5717179159 | AU93: 0.3949297603 | AV93: 0.3949297603 | AW93: 0.3949297603 | AX93: 0.3949297603 | AY93: 0.3949297603 | AZ93: 0.3949297603 | BA93: 0.3949297603 | BB93: 0.3949297603 | BC93: 0.3949297603 | BD93: 0.3949297603 | BE93: 0.5717179159 | BF93: 0.3949297603
G94: 83 | H94: choice_83 | I94: 0 | J94: 0 | K94: 1 | L94: 1 | M94: 1 | N94: 1 | O94: 1 | P94: 1 | Q94: 1 | R94: 0 | S94: 0 | T94: 0 | U94: 0 | V94: 0 | W94: 1 | X94: 1 | Y94: 0 | Z94: 0 | AA94: 1 | AB94: 0 | AC94: 0.7 | AD94: 0.3 | AJ94: p_preference83 | AK94: 0.5895461243 | AL94: 0.5895461243 | AM94: 0.5895461243 | AN94: 0.5895461243 | AO94: 0.5895461243 | AP94: 0.5895461243 | AQ94: 0.5895461243 | AR94: 0.5895461243 | AS94: 0.5895461243 | AT94: 0.5895461243 | AU94: 0.3904367843 | AV94: 0.3904367843 | AW94: 0.3904367843 | AX94: 0.3904367843 | AY94: 0.3904367843 | AZ94: 0.3904367843 | BA94: 0.3904367843 | BB94: 0.3904367843 | BC94: 0.3904367843 | BD94: 0.3904367843 | BE94: 0.5895461243 | BF94: 0.3904367843
G95: 84 | H95: choice_84 | I95: 1 | J95: 0 | K95: 1 | L95: 1 | M95: 0 | N95: 1 | O95: 0 | P95: 1 | Q95: 1 | R95: 1 | S95: 1 | T95: 0 | U95: 0 | V95: 0 | W95: 1 | X95: 0 | Y95: 0 | Z95: 0 | AA95: 0 | AB95: 1 | AC95: 0.7 | AD95: 0.3 | AJ95: p_preference84 | AK95: 0.6005915118 | AL95: 0.6005915118 | AM95: 0.6005915118 | AN95: 0.6005915118 | AO95: 0.6005915118 | AP95: 0.6005915118 | AQ95: 0.6005915118 | AR95: 0.6005915118 | AS95: 0.6005915118 | AT95: 0.6005915118 | AU95: 0.3813931058 | AV95: 0.3813931058 | AW95: 0.3813931058 | AX95: 0.3813931058 | AY95: 0.3813931058 | AZ95: 0.3813931058 | BA95: 0.3813931058 | BB95: 0.3813931058 | BC95: 0.3813931058 | BD95: 0.3813931058 | BE95: 0.6005915118 | BF95: 0.3813931058
G96: 85 | H96: choice_85 | I96: 0 | J96: 1 | K96: 1 | L96: 1 | M96: 1 | N96: 1 | O96: 0 | P96: 0 | Q96: 1 | R96: 1 | S96: 0 | T96: 0 | U96: 0 | V96: 0 | W96: 0 | X96: 1 | Y96: 0 | Z96: 0 | AA96: 0 | AB96: 1 | AC96: 0.7 | AD96: 0.2 | AJ96: p_preference85 | AK96: 0.6105323607 | AL96: 0.6105323607 | AM96: 0.6105323607 | AN96: 0.6105323607 | AO96: 0.6105323607 | AP96: 0.6105323607 | AQ96: 0.6105323607 | AR96: 0.6105323607 | AS96: 0.6105323607 | AT96: 0.6105323607 | AU96: 0.3732537953 | AV96: 0.3732537953 | AW96: 0.3732537953 | AX96: 0.3732537953 | AY96: 0.3732537953 | AZ96: 0.3732537953 | BA96: 0.3732537953 | BB96: 0.3732537953 | BC96: 0.3732537953 | BD96: 0.3732537953 | BE96: 0.6105323607 | BF96: 0.3732537953
G97: 86 | H97: choice_86 | I97: 1 | J97: 1 | K97: 1 | L97: 1 | M97: 1 | N97: 0 | O97: 1 | P97: 1 | Q97: 1 | R97: 0 | S97: 0 | T97: 0 | U97: 0 | V97: 1 | W97: 0 | X97: 1 | Y97: 1 | Z97: 0 | AA97: 0 | AB97: 0 | AC97: 0.8 | AD97: 0.3 | AJ97: p_preference86 | AK97: 0.6219791246 | AL97: 0.6219791246 | AM97: 0.6219791246 | AN97: 0.6219791246 | AO97: 0.6219791246 | AP97: 0.6219791246 | AQ97: 0.6219791246 | AR97: 0.6219791246 | AS97: 0.6219791246 | AT97: 0.6219791246 | AU97: 0.3584284157 | AV97: 0.3584284157 | AW97: 0.3584284157 | AX97: 0.3584284157 | AY97: 0.3584284157 | AZ97: 0.3584284157 | BA97: 0.3584284157 | BB97: 0.3584284157 | BC97: 0.3584284157 | BD97: 0.3584284157 | BE97: 0.6219791246 | BF97: 0.3584284157
G98: 87 | H98: choice_87 | I98: 0 | J98: 1 | K98: 1 | L98: 0 | M98: 0 | N98: 1 | O98: 1 | P98: 0 | Q98: 1 | R98: 1 | S98: 1 | T98: 0 | U98: 0 | V98: 0 | W98: 0 | X98: 1 | Y98: 1 | Z98: 0 | AA98: 1 | AB98: 1 | AC98: 0.6 | AD98: 0.5 | AJ98: p_preference87 | AK98: 0.6372812121 | AL98: 0.6372812121 | AM98: 0.6372812121 | AN98: 0.6372812121 | AO98: 0.6372812121 | AP98: 0.6372812121 | AQ98: 0.6372812121 | AR98: 0.6372812121 | AS98: 0.6372812121 | AT98: 0.6372812121 | AU98: 0.3500855742 | AV98: 0.3500855742 | AW98: 0.3500855742 | AX98: 0.3500855742 | AY98: 0.3500855742 | AZ98: 0.3500855742 | BA98: 0.3500855742 | BB98: 0.3500855742 | BC98: 0.3500855742 | BD98: 0.3500855742 | BE98: 0.6372812121 | BF98: 0.3500855742
G99: 88 | H99: choice_88 | I99: 1 | J99: 1 | K99: 0 | L99: 1 | M99: 0 | N99: 0 | O99: 0 | P99: 1 | Q99: 1 | R99: 0 | S99: 0 | T99: 1 | U99: 1 | V99: 1 | W99: 1 | X99: 1 | Y99: 0 | Z99: 0 | AA99: 0 | AB99: 0 | AC99: 0.5 | AD99: 0.5 | AJ99: p_preference88 | AK99: 0.6310530909 | AL99: 0.6310530909 | AM99: 0.6310530909 | AN99: 0.6310530909 | AO99: 0.6310530909 | AP99: 0.6310530909 | AQ99: 0.6310530909 | AR99: 0.6310530909 | AS99: 0.6310530909 | AT99: 0.6310530909 | AU99: 0.3625770167 | AV99: 0.3625770167 | AW99: 0.3625770167 | AX99: 0.3625770167 | AY99: 0.3625770167 | AZ99: 0.3625770167 | BA99: 0.3625770167 | BB99: 0.3625770167 | BC99: 0.3625770167 | BD99: 0.3625770167 | BE99: 0.6310530909 | BF99: 0.3625770167
G100: 89 | H100: choice_89 | I100: 0 | J100: 0 | K100: 1 | L100: 0 | M100: 1 | N100: 1 | O100: 1 | P100: 1 | Q100: 0 | R100: 1 | S100: 1 | T100: 1 | U100: 0 | V100: 1 | W100: 0 | X100: 0 | Y100: 1 | Z100: 1 | AA100: 0 | AB100: 0 | AC100: 0.6 | AD100: 0.5 | AJ100: p_preference89 | AK100: 0.6179477818 | AL100: 0.6179477818 | AM100: 0.6179477818 | AN100: 0.6179477818 | AO100: 0.6179477818 | AP100: 0.6179477818 | AQ100: 0.6179477818 | AR100: 0.6179477818 | AS100: 0.6179477818 | AT100: 0.6179477818 | AU100: 0.3763193151 | AV100: 0.3763193151 | AW100: 0.3763193151 | AX100: 0.3763193151 | AY100: 0.3763193151 | AZ100: 0.3763193151 | BA100: 0.3763193151 | BB100: 0.3763193151 | BC100: 0.3763193151 | BD100: 0.3763193151 | BE100: 0.6179477818 | BF100: 0.3763193151
G101: 90 | H101: choice_90 | I101: 0 | J101: 1 | K101: 1 | L101: 1 | M101: 1 | N101: 1 | O101: 1 | P101: 0 | Q101: 0 | R101: 0 | S101: 1 | T101: 0 | U101: 0 | V101: 0 | W101: 0 | X101: 1 | Y101: 0 | Z101: 1 | AA101: 0 | AB101: 0 | AC101: 0.6 | AD101: 0.3 | AJ101: p_preference90 | AK101: 0.6136530036 | AL101: 0.6136530036 | AM101: 0.6136530036 | AN101: 0.6136530036 | AO101: 0.6136530036 | AP101: 0.6136530036 | AQ101: 0.6136530036 | AR101: 0.6136530036 | AS101: 0.6136530036 | AT101: 0.6136530036 | AU101: 0.3861873836 | AV101: 0.3861873836 | AW101: 0.3861873836 | AX101: 0.3861873836 | AY101: 0.3861873836 | AZ101: 0.3861873836 | BA101: 0.3861873836 | BB101: 0.3861873836 | BC101: 0.3861873836 | BD101: 0.3861873836 | BE101: 0.6136530036 | BF101: 0.3861873836
G102: 91 | H102: choice_91 | I102: 1 | J102: 1 | K102: 1 | L102: 0 | M102: 1 | N102: 1 | O102: 1 | P102: 1 | Q102: 1 | R102: 0 | S102: 0 | T102: 1 | U102: 0 | V102: 0 | W102: 0 | X102: 0 | Y102: 1 | Z102: 0 | AA102: 0 | AB102: 1 | AC102: 0.8 | AD102: 0.3 | AJ102: p_preference91 | AK102: 0.6147877033 | AL102: 0.6147877033 | AM102: 0.6147877033 | AN102: 0.6147877033 | AO102: 0.6147877033 | AP102: 0.6147877033 | AQ102: 0.6147877033 | AR102: 0.6147877033 | AS102: 0.6147877033 | AT102: 0.6147877033 | AU102: 0.3800686452 | AV102: 0.3800686452 | AW102: 0.3800686452 | AX102: 0.3800686452 | AY102: 0.3800686452 | AZ102: 0.3800686452 | BA102: 0.3800686452 | BB102: 0.3800686452 | BC102: 0.3800686452 | BD102: 0.3800686452 | BE102: 0.6147877033 | BF102: 0.3800686452
G103: 92 | H103: choice_92 | I103: 0 | J103: 0 | K103: 0 | L103: 1 | M103: 1 | N103: 0 | O103: 1 | P103: =IF(RAND()<=AR103,1,0) -> 0 | Q103: 1 | R103: 1 | S103: 0 | T103: 1 | U103: 1 | V103: 0 | W103: 1 | X103: 0 | Y103: 0 | Z103: 1 | AA103: 0 | AB103: 1 | AC103: 0.5 | AD103: 0.5 | AJ103: p_preference92 | AK103: 0.630808933 | AL103: 0.630808933 | AM103: 0.630808933 | AN103: 0.630808933 | AO103: 0.630808933 | AP103: 0.630808933 | AQ103: 0.630808933 | AR103: 0.630808933 | AS103: 0.630808933 | AT103: 0.630808933 | AU103: 0.3695617807 | AV103: 0.3695617807 | AW103: 0.3695617807 | AX103: 0.3695617807 | AY103: 0.3695617807 | AZ103: 0.3695617807 | BA103: 0.3695617807 | BB103: 0.3695617807 | BC103: 0.3695617807 | BD103: 0.3695617807 | BE103: 0.630808933 | BF103: 0.3695617807
G104: 93 | H104: choice_93 | I104: =IF(RAND()<=AK104,1,0) -> 1 | J104: 0 | K104: 1 | L104: 0 | M104: 1 | N104: 1 | O104: 0 | P104: 0 | Q104: 0 | R104: 1 | S104: 0 | T104: 0 | U104: 0 | V104: 1 | W104: 1 | X104: 0 | Y104: 1 | Z104: 0 | AA104: 0 | AB104: 0 | AC104: 0.5 | AD104: 0.3 | AJ104: p_preference93 | AK104: 0.6177280397 | AL104: 0.6177280397 | AM104: 0.6177280397 | AN104: 0.6177280397 | AO104: 0.6177280397 | AP104: 0.6177280397 | AQ104: 0.6177280397 | AR104: 0.6177280397 | AS104: 0.6177280397 | AT104: 0.6177280397 | AU104: 0.3826056026 | AV104: 0.3826056026 | AW104: 0.3826056026 | AX104: 0.3826056026 | AY104: 0.3826056026 | AZ104: 0.3826056026 | BA104: 0.3826056026 | BB104: 0.3826056026 | BC104: 0.3826056026 | BD104: 0.3826056026 | BE104: 0.6177280397 | BF104: 0.3826056026
G105: 94 | H105: choice_94 | I105: 0 | J105: 0 | K105: 1 | L105: 1 | M105: 0 | N105: 0 | O105: 1 | P105: 1 | Q105: 0 | R105: 1 | S105: 1 | T105: 0 | U105: 0 | V105: 1 | W105: 0 | X105: 1 | Y105: 1 | Z105: 1 | AA105: 0 | AB105: 1 | AC105: 0.5 | AD105: 0.6 | AJ105: p_preference94 | AK105: 0.6109552357 | AL105: 0.6109552357 | AM105: 0.6109552357 | AN105: 0.6109552357 | AO105: 0.6109552357 | AP105: 0.6109552357 | AQ105: 0.6109552357 | AR105: 0.6109552357 | AS105: 0.6109552357 | AT105: 0.6109552357 | AU105: 0.3793450424 | AV105: 0.3793450424 | AW105: 0.3793450424 | AX105: 0.3793450424 | AY105: 0.3793450424 | AZ105: 0.3793450424 | BA105: 0.3793450424 | BB105: 0.3793450424 | BC105: 0.3793450424 | BD105: 0.3793450424 | BE105: 0.6109552357 | BF105: 0.3793450424
G106: 95 | H106: choice_95 | I106: 1 | J106: 0 | K106: 0 | L106: 0 | M106: 0 | N106: 0 | O106: 1 | P106: 0 | Q106: 0 | R106: 0 | S106: 1 | T106: 0 | U106: 1 | V106: 1 | W106: 1 | X106: 0 | Y106: 0 | Z106: 0 | AA106: 0 | AB106: 1 | AC106: 0.2 | AD106: 0.5 | AJ106: p_preference95 | AK106: 0.5973597121 | AL106: 0.5973597121 | AM106: 0.5973597121 | AN106: 0.5973597121 | AO106: 0.5973597121 | AP106: 0.5973597121 | AQ106: 0.5973597121 | AR106: 0.5973597121 | AS106: 0.5973597121 | AT106: 0.5973597121 | AU106: 0.3989105381 | AV106: 0.3989105381 | AW106: 0.3989105381 | AX106: 0.3989105381 | AY106: 0.3989105381 | AZ106: 0.3989105381 | BA106: 0.3989105381 | BB106: 0.3989105381 | BC106: 0.3989105381 | BD106: 0.3989105381 | BE106: 0.5973597121 | BF106: 0.3989105381
G107: 96 | H107: choice_96 | I107: 0 | J107: 0 | K107: 0 | L107: 0 | M107: 1 | N107: 0 | O107: 1 | P107: 0 | Q107: 1 | R107: 0 | S107: 1 | T107: 0 | U107: 0 | V107: 1 | W107: 1 | X107: 0 | Y107: 0 | Z107: 1 | AA107: 0 | AB107: 0 | AC107: 0.3 | AD107: 0.4 | AJ107: p_preference96 | AK107: 0.5651237409 | AL107: 0.5651237409 | AM107: 0.5651237409 | AN107: 0.5651237409 | AO107: 0.5651237409 | AP107: 0.5651237409 | AQ107: 0.5651237409 | AR107: 0.5651237409 | AS107: 0.5651237409 | AT107: 0.5651237409 | AU107: 0.4165194843 | AV107: 0.4165194843 | AW107: 0.4165194843 | AX107: 0.4165194843 | AY107: 0.4165194843 | AZ107: 0.4165194843 | BA107: 0.4165194843 | BB107: 0.4165194843 | BC107: 0.4165194843 | BD107: 0.4165194843 | BE107: 0.5651237409 | BF107: 0.4165194843
G108: 97 | H108: choice_97 | I108: 1 | J108: 0 | K108: 0 | L108: 0 | M108: 1 | N108: 0 | O108: 1 | P108: 0 | Q108: 0 | R108: 0 | S108: 1 | T108: 1 | U108: 0 | V108: 0 | W108: 0 | X108: 1 | Y108: 0 | Z108: 0 | AA108: 1 | AB108: 1 | AC108: 0.3 | AD108: 0.5 | AJ108: p_preference97 | AK108: 0.5461113668 | AL108: 0.5461113668 | AM108: 0.5461113668 | AN108: 0.5461113668 | AO108: 0.5461113668 | AP108: 0.5461113668 | AQ108: 0.5461113668 | AR108: 0.5461113668 | AS108: 0.5461113668 | AT108: 0.5461113668 | AU108: 0.4223675359 | AV108: 0.4223675359 | AW108: 0.4223675359 | AX108: 0.4223675359 | AY108: 0.4223675359 | AZ108: 0.4223675359 | BA108: 0.4223675359 | BB108: 0.4223675359 | BC108: 0.4223675359 | BD108: 0.4223675359 | BE108: 0.5461113668 | BF108: 0.4223675359
G109: 98 | H109: choice_98 | I109: 1 | J109: 1 | K109: 0 | L109: 0 | M109: 1 | N109: 0 | O109: 1 | P109: 0 | Q109: 1 | R109: 0 | S109: 0 | T109: 0 | U109: 1 | V109: 1 | W109: 0 | X109: 1 | Y109: 0 | Z109: 0 | AA109: 1 | AB109: 0 | AC109: 0.5 | AD109: 0.4 | AJ109: p_preference98 | AK109: 0.5265002301 | AL109: 0.5265002301 | AM109: 0.5265002301 | AN109: 0.5265002301 | AO109: 0.5265002301 | AP109: 0.5265002301 | AQ109: 0.5265002301 | AR109: 0.5265002301 | AS109: 0.5265002301 | AT109: 0.5265002301 | AU109: 0.4351307823 | AV109: 0.4351307823 | AW109: 0.4351307823 | AX109: 0.4351307823 | AY109: 0.4351307823 | AZ109: 0.4351307823 | BA109: 0.4351307823 | BB109: 0.4351307823 | BC109: 0.4351307823 | BD109: 0.4351307823 | BE109: 0.5265002301 | BF109: 0.4351307823
G110: 99 | H110: choice_99 | I110: 1 | J110: 1 | K110: 1 | L110: 1 | M110: 1 | N110: 0 | O110: 0 | P110: 1 | Q110: 1 | R110: 1 | S110: 0 | T110: 1 | U110: 0 | V110: 0 | W110: 0 | X110: 0 | Y110: 0 | Z110: 1 | AA110: 1 | AB110: 0 | AC110: 0.8 | AD110: 0.3 | AJ110: p_preference99 | AK110: 0.5263502071 | AL110: 0.5263502071 | AM110: 0.5263502071 | AN110: 0.5263502071 | AO110: 0.5263502071 | AP110: 0.5263502071 | AQ110: 0.5263502071 | AR110: 0.5263502071 | AS110: 0.5263502071 | AT110: 0.5263502071 | AU110: 0.4341177041 | AV110: 0.4341177041 | AW110: 0.4341177041 | AX110: 0.4341177041 | AY110: 0.4341177041 | AZ110: 0.4341177041 | BA110: 0.4341177041 | BB110: 0.4341177041 | BC110: 0.4341177041 | BD110: 0.4341177041 | BE110: 0.5263502071 | BF110: 0.4341177041
G111: 100 | H111: choice_100 | I111: 0 | J111: 1 | K111: 1 | L111: 1 | M111: 1 | N111: 0 | O111: 0 | P111: 0 | Q111: 0 | R111: 1 | S111: 0 | T111: 1 | U111: 0 | V111: 0 | W111: 0 | X111: 1 | Y111: 0 | Z111: 1 | AA111: 1 | AB111: 0 | AC111: 0.5 | AD111: 0.4 | AJ111: p_preference100 | AK111: 0.5512151864 | AL111: 0.5512151864 | AM111: 0.5512151864 | AN111: 0.5512151864 | AO111: 0.5512151864 | AP111: 0.5512151864 | AQ111: 0.5512151864 | AR111: 0.5512151864 | AS111: 0.5512151864 | AT111: 0.5512151864 | AU111: 0.4182059337 | AV111: 0.4182059337 | AW111: 0.4182059337 | AX111: 0.4182059337 | AY111: 0.4182059337 | AZ111: 0.4182059337 | BA111: 0.4182059337 | BB111: 0.4182059337 | BC111: 0.4182059337 | BD111: 0.4182059337 | BE111: 0.5512151864 | BF111: 0.4182059337
G112: 101 | H112: choice_101 | I112: 1 | J112: 0 | K112: 0 | L112: 1 | M112: 1 | N112: 1 | O112: 0 | P112: 0 | Q112: 0 | R112: 0 | S112: 1 | T112: 1 | U112: 1 | V112: 1 | W112: 1 | X112: 0 | Y112: 1 | Z112: 1 | AA112: 0 | AB112: 1 | AC112: 0.4 | AD112: 0.8 | AJ112: p_preference101 | AK112: 0.5485936678 | AL112: 0.5485936678 | AM112: 0.5485936678 | AN112: 0.5485936678 | AO112: 0.5485936678 | AP112: 0.5485936678 | AQ112: 0.5485936678 | AR112: 0.5485936678 | AS112: 0.5485936678 | AT112: 0.5485936678 | AU112: 0.4188853403 | AV112: 0.4188853403 | AW112: 0.4188853403 | AX112: 0.4188853403 | AY112: 0.4188853403 | AZ112: 0.4188853403 | BA112: 0.4188853403 | BB112: 0.4188853403 | BC112: 0.4188853403 | BD112: 0.4188853403 | BE112: 0.5485936678 | BF112: 0.4188853403
G113: 102 | H113: choice_102 | I113: 0 | J113: 0 | K113: 1 | L113: 1 | M113: 0 | N113: 1 | O113: 1 | P113: 0 | Q113: 0 | R113: 1 | S113: 0 | T113: 0 | U113: 1 | V113: 1 | W113: 0 | X113: 0 | Y113: 1 | Z113: 1 | AA113: 0 | AB113: 0 | AC113: 0.5 | AD113: 0.4 | AJ113: p_preference102 | AK113: 0.528734301 | AL113: 0.528734301 | AM113: 0.528734301 | AN113: 0.528734301 | AO113: 0.528734301 | AP113: 0.528734301 | AQ113: 0.528734301 | AR113: 0.528734301 | AS113: 0.528734301 | AT113: 0.528734301 | AU113: 0.4519968063 | AV113: 0.4519968063 | AW113: 0.4519968063 | AX113: 0.4519968063 | AY113: 0.4519968063 | AZ113: 0.4519968063 | BA113: 0.4519968063 | BB113: 0.4519968063 | BC113: 0.4519968063 | BD113: 0.4519968063 | BE113: 0.528734301 | BF113: 0.4519968063
G114: 103 | H114: choice_103 | I114: 1 | J114: 1 | K114: 1 | L114: 0 | M114: 0 | N114: 1 | O114: 0 | P114: 1 | Q114: 1 | R114: 0 | S114: 0 | T114: 0 | U114: 0 | V114: 1 | W114: 1 | X114: 0 | Y114: 1 | Z114: 1 | AA114: 1 | AB114: 0 | AC114: 0.6 | AD114: 0.5 | AJ114: p_preference103 | AK114: 0.5283608709 | AL114: 0.5283608709 | AM114: 0.5283608709 | AN114: 0.5283608709 | AO114: 0.5283608709 | AP114: 0.5283608709 | AQ114: 0.5283608709 | AR114: 0.5283608709 | AS114: 0.5283608709 | AT114: 0.5283608709 | AU114: 0.4492971256 | AV114: 0.4492971256 | AW114: 0.4492971256 | AX114: 0.4492971256 | AY114: 0.4492971256 | AZ114: 0.4492971256 | BA114: 0.4492971256 | BB114: 0.4492971256 | BC114: 0.4492971256 | BD114: 0.4492971256 | BE114: 0.5283608709 | BF114: 0.4492971256
G115: 104 | H115: choice_104 | I115: 0 | J115: 0 | K115: 0 | L115: 0 | M115: 0 | N115: 0 | O115: 1 | P115: 0 | Q115: 0 | R115: 1 | S115: 1 | T115: 0 | U115: 0 | V115: 0 | W115: 0 | X115: 0 | Y115: 0 | Z115: 0 | AA115: 0 | AB115: 1 | AC115: 0.2 | AD115: 0.2 | AJ115: p_preference104 | AK115: 0.5330247838 | AL115: 0.5330247838 | AM115: 0.5330247838 | AN115: 0.5330247838 | AO115: 0.5330247838 | AP115: 0.5330247838 | AQ115: 0.5330247838 | AR115: 0.5330247838 | AS115: 0.5330247838 | AT115: 0.5330247838 | AU115: 0.4518674131 | AV115: 0.4518674131 | AW115: 0.4518674131 | AX115: 0.4518674131 | AY115: 0.4518674131 | AZ115: 0.4518674131 | BA115: 0.4518674131 | BB115: 0.4518674131 | BC115: 0.4518674131 | BD115: 0.4518674131 | BE115: 0.5330247838 | BF115: 0.4518674131
G116: 105 | H116: choice_105 | I116: 0 | J116: 1 | K116: 0 | L116: 0 | M116: 1 | N116: 0 | O116: 0 | P116: 0 | Q116: 0 | R116: 0 | S116: 0 | T116: 0 | U116: 1 | V116: 1 | W116: 0 | X116: 0 | Y116: 1 | Z116: 0 | AA116: 0 | AB116: 0 | AC116: 0.2 | AD116: 0.3 | AJ116: p_preference105 | AK116: 0.5147223054 | AL116: 0.5147223054 | AM116: 0.5147223054 | AN116: 0.5147223054 | AO116: 0.5147223054 | AP116: 0.5147223054 | AQ116: 0.5147223054 | AR116: 0.5147223054 | AS116: 0.5147223054 | AT116: 0.5147223054 | AU116: 0.4416806718 | AV116: 0.4416806718 | AW116: 0.4416806718 | AX116: 0.4416806718 | AY116: 0.4416806718 | AZ116: 0.4416806718 | BA116: 0.4416806718 | BB116: 0.4416806718 | BC116: 0.4416806718 | BD116: 0.4416806718 | BE116: 0.5147223054 | BF116: 0.4416806718
G117: 106 | H117: choice_106 | I117: 1 | J117: 1 | K117: 0 | L117: 0 | M117: 1 | N117: 0 | O117: 1 | P117: 0 | Q117: 1 | R117: 1 | S117: 0 | T117: 0 | U117: 1 | V117: 1 | W117: 0 | X117: 0 | Y117: 0 | Z117: 0 | AA117: 0 | AB117: 1 | AC117: 0.6 | AD117: 0.3 | AJ117: p_preference106 | AK117: 0.4957500749 | AL117: 0.4957500749 | AM117: 0.4957500749 | AN117: 0.4957500749 | AO117: 0.4957500749 | AP117: 0.4957500749 | AQ117: 0.4957500749 | AR117: 0.4957500749 | AS117: 0.4957500749 | AT117: 0.4957500749 | AU117: 0.4400126046 | AV117: 0.4400126046 | AW117: 0.4400126046 | AX117: 0.4400126046 | AY117: 0.4400126046 | AZ117: 0.4400126046 | BA117: 0.4400126046 | BB117: 0.4400126046 | BC117: 0.4400126046 | BD117: 0.4400126046 | BE117: 0.4957500749 | BF117: 0.4400126046
G118: 107 | H118: choice_107 | I118: 1 | J118: 1 | K118: 1 | L118: 1 | M118: 0 | N118: 0 | O118: 1 | P118: 1 | Q118: 1 | R118: 0 | S118: 0 | T118: 0 | U118: 0 | V118: 1 | W118: 0 | X118: 0 | Y118: 1 | Z118: 0 | AA118: 1 | AB118: 0 | AC118: 0.7 | AD118: 0.3 | AJ118: p_preference107 | AK118: 0.5086750674 | AL118: 0.5086750674 | AM118: 0.5086750674 | AN118: 0.5086750674 | AO118: 0.5086750674 | AP118: 0.5086750674 | AQ118: 0.5086750674 | AR118: 0.5086750674 | AS118: 0.5086750674 | AT118: 0.5086750674 | AU118: 0.4285113441 | AV118: 0.4285113441 | AW118: 0.4285113441 | AX118: 0.4285113441 | AY118: 0.4285113441 | AZ118: 0.4285113441 | BA118: 0.4285113441 | BB118: 0.4285113441 | BC118: 0.4285113441 | BD118: 0.4285113441 | BE118: 0.5086750674 | BF118: 0.4285113441
G119: 108 | H119: choice_108 | I119: 1 | J119: 1 | K119: 1 | L119: 1 | M119: 1 | N119: 0 | O119: 1 | P119: 1 | Q119: 1 | R119: 1 | S119: 0 | T119: 0 | U119: 0 | V119: 0 | W119: 1 | X119: 1 | Y119: 1 | Z119: 0 | AA119: 1 | AB119: 0 | AC119: 0.9 | AD119: 0.4 | AJ119: p_preference108 | AK119: 0.5278075607 | AL119: 0.5278075607 | AM119: 0.5278075607 | AN119: 0.5278075607 | AO119: 0.5278075607 | AP119: 0.5278075607 | AQ119: 0.5278075607 | AR119: 0.5278075607 | AS119: 0.5278075607 | AT119: 0.5278075607 | AU119: 0.4156602097 | AV119: 0.4156602097 | AW119: 0.4156602097 | AX119: 0.4156602097 | AY119: 0.4156602097 | AZ119: 0.4156602097 | BA119: 0.4156602097 | BB119: 0.4156602097 | BC119: 0.4156602097 | BD119: 0.4156602097 | BE119: 0.5278075607 | BF119: 0.4156602097
G120: 109 | H120: choice_109 | I120: 0 | J120: 0 | K120: 0 | L120: 1 | M120: 0 | N120: 1 | O120: 1 | P120: 1 | Q120: 0 | R120: 1 | S120: 0 | T120: 0 | U120: 0 | V120: 0 | W120: 0 | X120: 0 | Y120: 1 | Z120: 1 | AA120: 0 | AB120: 0 | AC120: 0.5 | AD120: 0.2 | AJ120: p_preference109 | AK120: 0.5575268046 | AL120: 0.5575268046 | AM120: 0.5575268046 | AN120: 0.5575268046 | AO120: 0.5575268046 | AP120: 0.5575268046 | AQ120: 0.5575268046 | AR120: 0.5575268046 | AS120: 0.5575268046 | AT120: 0.5575268046 | AU120: 0.4065941887 | AV120: 0.4065941887 | AW120: 0.4065941887 | AX120: 0.4065941887 | AY120: 0.4065941887 | AZ120: 0.4065941887 | BA120: 0.4065941887 | BB120: 0.4065941887 | BC120: 0.4065941887 | BD120: 0.4065941887 | BE120: 0.5575268046 | BF120: 0.4065941887
G121: 110 | H121: choice_110 | I121: 0 | J121: 0 | K121: 0 | L121: 1 | M121: 1 | N121: 1 | O121: 1 | P121: 1 | Q121: 1 | R121: 1 | S121: 1 | T121: 1 | U121: 0 | V121: 1 | W121: 1 | X121: 0 | Y121: 1 | Z121: 0 | AA121: 0 | AB121: 0 | AC121: 0.7 | AD121: 0.5 | AJ121: p_preference110 | AK121: 0.5592741241 | AL121: 0.5592741241 | AM121: 0.5592741241 | AN121: 0.5592741241 | AO121: 0.5592741241 | AP121: 0.5592741241 | AQ121: 0.5592741241 | AR121: 0.5592741241 | AS121: 0.5592741241 | AT121: 0.5592741241 | AU121: 0.3934347699 | AV121: 0.3934347699 | AW121: 0.3934347699 | AX121: 0.3934347699 | AY121: 0.3934347699 | AZ121: 0.3934347699 | BA121: 0.3934347699 | BB121: 0.3934347699 | BC121: 0.3934347699 | BD121: 0.3934347699 | BE121: 0.5592741241 | BF121: 0.3934347699
G122: 111 | H122: choice_111 | I122: 1 | J122: 0 | K122: 1 | L122: 0 | M122: 1 | N122: 1 | O122: 1 | P122: 0 | Q122: 0 | R122: 0 | S122: 1 | T122: 0 | U122: 0 | V122: 1 | W122: 0 | X122: =IF(RAND()<=AZ122,1,0) -> 1 | Y122: 0 | Z122: 1 | AA122: 0 | AB122: 1 | AC122: 0.5 | AD122: 0.5 | AJ122: p_preference111 | AK122: 0.5683467117 | AL122: 0.5683467117 | AM122: 0.5683467117 | AN122: 0.5683467117 | AO122: 0.5683467117 | AP122: 0.5683467117 | AQ122: 0.5683467117 | AR122: 0.5683467117 | AS122: 0.5683467117 | AT122: 0.5683467117 | AU122: 0.3990912929 | AV122: 0.3990912929 | AW122: 0.3990912929 | AX122: 0.3990912929 | AY122: 0.3990912929 | AZ122: 0.3990912929 | BA122: 0.3990912929 | BB122: 0.3990912929 | BC122: 0.3990912929 | BD122: 0.3990912929 | BE122: 0.5683467117 | BF122: 0.3990912929
G123: 112 | H123: choice_112 | I123: 1 | J123: 1 | K123: 0 | L123: 1 | M123: 1 | N123: 1 | O123: 1 | P123: 0 | Q123: 1 | R123: 0 | S123: 0 | T123: 0 | U123: 0 | V123: 0 | W123: 1 | X123: 1 | Y123: 0 | Z123: 0 | AA123: 1 | AB123: 0 | AC123: 0.7 | AD123: 0.3 | AJ123: p_preference112 | AK123: 0.5615120405 | AL123: 0.5615120405 | AM123: 0.5615120405 | AN123: 0.5615120405 | AO123: 0.5615120405 | AP123: 0.5615120405 | AQ123: 0.5615120405 | AR123: 0.5615120405 | AS123: 0.5615120405 | AT123: 0.5615120405 | AU123: 0.4091821636 | AV123: 0.4091821636 | AW123: 0.4091821636 | AX123: 0.4091821636 | AY123: 0.4091821636 | AZ123: 0.4091821636 | BA123: 0.4091821636 | BB123: 0.4091821636 | BC123: 0.4091821636 | BD123: 0.4091821636 | BE123: 0.5615120405 | BF123: 0.4091821636
G124: 113 | H124: choice_113 | I124: 1 | J124: 0 | K124: 1 | L124: 1 | M124: 1 | N124: 1 | O124: 1 | P124: 0 | Q124: 1 | R124: 1 | S124: 1 | T124: 0 | U124: 1 | V124: 1 | W124: 1 | X124: 1 | Y124: 1 | Z124: 0 | AA124: 1 | AB124: 1 | AC124: 0.8 | AD124: 0.8 | AJ124: p_preference113 | AK124: 0.5753608365 | AL124: 0.5753608365 | AM124: 0.5753608365 | AN124: 0.5753608365 | AO124: 0.5753608365 | AP124: 0.5753608365 | AQ124: 0.5753608365 | AR124: 0.5753608365 | AS124: 0.5753608365 | AT124: 0.5753608365 | AU124: 0.3982639472 | AV124: 0.3982639472 | AW124: 0.3982639472 | AX124: 0.3982639472 | AY124: 0.3982639472 | AZ124: 0.3982639472 | BA124: 0.3982639472 | BB124: 0.3982639472 | BC124: 0.3982639472 | BD124: 0.3982639472 | BE124: 0.5753608365 | BF124: 0.3982639472
G125: 114 | H125: choice_114 | I125: 1 | J125: 0 | K125: 1 | L125: 1 | M125: 0 | N125: 0 | O125: 1 | P125: 1 | Q125: 0 | R125: 1 | S125: 0 | T125: 1 | U125: 1 | V125: 1 | W125: 0 | X125: 0 | Y125: 0 | Z125: 1 | AA125: 0 | AB125: 0 | AC125: 0.6 | AD125: 0.4 | AJ125: p_preference114 | AK125: 0.5828247528 | AL125: 0.5828247528 | AM125: 0.5828247528 | AN125: 0.5828247528 | AO125: 0.5828247528 | AP125: 0.5828247528 | AQ125: 0.5828247528 | AR125: 0.5828247528 | AS125: 0.5828247528 | AT125: 0.5828247528 | AU125: 0.4234375525 | AV125: 0.4234375525 | AW125: 0.4234375525 | AX125: 0.4234375525 | AY125: 0.4234375525 | AZ125: 0.4234375525 | BA125: 0.4234375525 | BB125: 0.4234375525 | BC125: 0.4234375525 | BD125: 0.4234375525 | BE125: 0.5828247528 | BF125: 0.4234375525
G126: 115 | H126: choice_115 | I126: 0 | J126: 1 | K126: 1 | L126: 0 | M126: 0 | N126: 1 | O126: 0 | P126: 1 | Q126: 1 | R126: 0 | S126: 1 | T126: 1 | U126: 0 | V126: 1 | W126: 0 | X126: 1 | Y126: 1 | Z126: 0 | AA126: 0 | AB126: 0 | AC126: 0.5 | AD126: 0.5 | AJ126: p_preference115 | AK126: 0.5845422776 | AL126: 0.5845422776 | AM126: 0.5845422776 | AN126: 0.5845422776 | AO126: 0.5845422776 | AP126: 0.5845422776 | AQ126: 0.5845422776 | AR126: 0.5845422776 | AS126: 0.5845422776 | AT126: 0.5845422776 | AU126: 0.4210937973 | AV126: 0.4210937973 | AW126: 0.4210937973 | AX126: 0.4210937973 | AY126: 0.4210937973 | AZ126: 0.4210937973 | BA126: 0.4210937973 | BB126: 0.4210937973 | BC126: 0.4210937973 | BD126: 0.4210937973 | BE126: 0.5845422776 | BF126: 0.4210937973
G127: 116 | H127: choice_116 | I127: 1 | J127: 0 | K127: 1 | L127: 1 | M127: 1 | N127: 0 | O127: 0 | P127: 1 | Q127: 1 | R127: 1 | S127: 1 | T127: 1 | U127: 1 | V127: 0 | W127: 0 | X127: 0 | Y127: 0 | Z127: 1 | AA127: 0 | AB127: 0 | AC127: 0.7 | AD127: 0.4 | AJ127: p_preference116 | AK127: 0.5760880498 | AL127: 0.5760880498 | AM127: 0.5760880498 | AN127: 0.5760880498 | AO127: 0.5760880498 | AP127: 0.5760880498 | AQ127: 0.5760880498 | AR127: 0.5760880498 | AS127: 0.5760880498 | AT127: 0.5760880498 | AU127: 0.4289844175 | AV127: 0.4289844175 | AW127: 0.4289844175 | AX127: 0.4289844175 | AY127: 0.4289844175 | AZ127: 0.4289844175 | BA127: 0.4289844175 | BB127: 0.4289844175 | BC127: 0.4289844175 | BD127: 0.4289844175 | BE127: 0.5760880498 | BF127: 0.4289844175
G128: 117 | H128: choice_117 | I128: 0 | J128: 1 | K128: 1 | L128: 0 | M128: 1 | N128: 1 | O128: 1 | P128: 1 | Q128: 1 | R128: 1 | S128: 0 | T128: 0 | U128: 1 | V128: 0 | W128: 0 | X128: 0 | Y128: 0 | Z128: 0 | AA128: 1 | AB128: 0 | AC128: 0.8 | AD128: 0.2 | AJ128: p_preference117 | AK128: 0.5859792448 | AL128: 0.5859792448 | AM128: 0.5859792448 | AN128: 0.5859792448 | AO128: 0.5859792448 | AP128: 0.5859792448 | AQ128: 0.5859792448 | AR128: 0.5859792448 | AS128: 0.5859792448 | AT128: 0.5859792448 | AU128: 0.4235859758 | AV128: 0.4235859758 | AW128: 0.4235859758 | AX128: 0.4235859758 | AY128: 0.4235859758 | AZ128: 0.4235859758 | BA128: 0.4235859758 | BB128: 0.4235859758 | BC128: 0.4235859758 | BD128: 0.4235859758 | BE128: 0.5859792448 | BF128: 0.4235859758
G129: 118 | H129: choice_118 | I129: 1 | J129: 0 | K129: 1 | L129: 1 | M129: 0 | N129: 1 | O129: 1 | P129: 1 | Q129: 1 | R129: 1 | S129: 0 | T129: 1 | U129: 0 | V129: 0 | W129: 1 | X129: 1 | Y129: 1 | Z129: 1 | AA129: 0 | AB129: 0 | AC129: 0.8 | AD129: 0.5 | AJ129: p_preference118 | AK129: 0.6073813203 | AL129: 0.6073813203 | AM129: 0.6073813203 | AN129: 0.6073813203 | AO129: 0.6073813203 | AP129: 0.6073813203 | AQ129: 0.6073813203 | AR129: 0.6073813203 | AS129: 0.6073813203 | AT129: 0.6073813203 | AU129: 0.4012273782 | AV129: 0.4012273782 | AW129: 0.4012273782 | AX129: 0.4012273782 | AY129: 0.4012273782 | AZ129: 0.4012273782 | BA129: 0.4012273782 | BB129: 0.4012273782 | BC129: 0.4012273782 | BD129: 0.4012273782 | BE129: 0.6073813203 | BF129: 0.4012273782
G130: 119 | H130: choice_119 | I130: 0 | J130: 0 | K130: 1 | L130: 0 | M130: 0 | N130: 0 | O130: 0 | P130: 1 | Q130: 1 | R130: 1 | S130: 0 | T130: 0 | U130: 1 | V130: 1 | W130: 0 | X130: 0 | Y130: 0 | Z130: 1 | AA130: 0 | AB130: 1 | AC130: 0.4 | AD130: 0.4 | AJ130: p_preference119 | AK130: 0.6191431883 | AL130: 0.6191431883 | AM130: 0.6191431883 | AN130: 0.6191431883 | AO130: 0.6191431883 | AP130: 0.6191431883 | AQ130: 0.6191431883 | AR130: 0.6191431883 | AS130: 0.6191431883 | AT130: 0.6191431883 | AU130: 0.4036046404 | AV130: 0.4036046404 | AW130: 0.4036046404 | AX130: 0.4036046404 | AY130: 0.4036046404 | AZ130: 0.4036046404 | BA130: 0.4036046404 | BB130: 0.4036046404 | BC130: 0.4036046404 | BD130: 0.4036046404 | BE130: 0.6191431883 | BF130: 0.4036046404
G131: 120 | H131: choice_120 | I131: 1 | J131: 0 | K131: 1 | L131: 1 | M131: 1 | N131: 0 | O131: 0 | P131: 1 | Q131: 1 | R131: 0 | S131: 1 | T131: 1 | U131: 1 | V131: 0 | W131: 0 | X131: 0 | Y131: 0 | Z131: 0 | AA131: 0 | AB131: 1 | AC131: 0.6 | AD131: 0.4 | AJ131: p_preference120 | AK131: 0.6022288695 | AL131: 0.6022288695 | AM131: 0.6022288695 | AN131: 0.6022288695 | AO131: 0.6022288695 | AP131: 0.6022288695 | AQ131: 0.6022288695 | AR131: 0.6022288695 | AS131: 0.6022288695 | AT131: 0.6022288695 | AU131: 0.4082441763 | AV131: 0.4082441763 | AW131: 0.4082441763 | AX131: 0.4082441763 | AY131: 0.4082441763 | AZ131: 0.4082441763 | BA131: 0.4082441763 | BB131: 0.4082441763 | BC131: 0.4082441763 | BD131: 0.4082441763 | BE131: 0.6022288695 | BF131: 0.4082441763
G132: 121 | H132: choice_121 | I132: 0 | J132: 0 | K132: 1 | L132: 0 | M132: 1 | N132: 1 | O132: 1 | P132: 1 | Q132: 1 | R132: 0 | S132: 0 | T132: 0 | U132: 0 | V132: 0 | W132: 0 | X132: 1 | Y132: 0 | Z132: 1 | AA132: 1 | AB132: 1 | AC132: 0.6 | AD132: 0.4 | AJ132: p_preference121 | AK132: 0.6020059825 | AL132: 0.6020059825 | AM132: 0.6020059825 | AN132: 0.6020059825 | AO132: 0.6020059825 | AP132: 0.6020059825 | AQ132: 0.6020059825 | AR132: 0.6020059825 | AS132: 0.6020059825 | AT132: 0.6020059825 | AU132: 0.4074197587 | AV132: 0.4074197587 | AW132: 0.4074197587 | AX132: 0.4074197587 | AY132: 0.4074197587 | AZ132: 0.4074197587 | BA132: 0.4074197587 | BB132: 0.4074197587 | BC132: 0.4074197587 | BD132: 0.4074197587 | BE132: 0.6020059825 | BF132: 0.4074197587
G133: 122 | H133: choice_122 | I133: 1 | J133: 1 | K133: 0 | L133: 0 | M133: =IF(RAND()<=AO133,1,0) -> 1 | N133: 1 | O133: 1 | P133: 1 | Q133: 1 | R133: 1 | S133: 0 | T133: 1 | U133: 1 | V133: 0 | W133: 0 | X133: 1 | Y133: 0 | Z133: 1 | AA133: 0 | AB133: 0 | AC133: 0.8 | AD133: 0.4 | AJ133: p_preference122 | AK133: 0.6018053843 | AL133: 0.6018053843 | AM133: 0.6018053843 | AN133: 0.6018053843 | AO133: 0.6018053843 | AP133: 0.6018053843 | AQ133: 0.6018053843 | AR133: 0.6018053843 | AS133: 0.6018053843 | AT133: 0.6018053843 | AU133: 0.4066777828 | AV133: 0.4066777828 | AW133: 0.4066777828 | AX133: 0.4066777828 | AY133: 0.4066777828 | AZ133: 0.4066777828 | BA133: 0.4066777828 | BB133: 0.4066777828 | BC133: 0.4066777828 | BD133: 0.4066777828 | BE133: 0.6018053843 | BF133: 0.4066777828
G134: 123 | H134: choice_123 | I134: 1 | J134: 1 | K134: 1 | L134: 0 | M134: 1 | N134: 1 | O134: 1 | P134: 1 | Q134: 0 | R134: 1 | S134: 0 | T134: 0 | U134: 1 | V134: 0 | W134: 1 | X134: 0 | Y134: 0 | Z134: 0 | AA134: 1 | AB134: 0 | AC134: 0.8 | AD134: 0.3 | AJ134: p_preference123 | AK134: 0.6166248458 | AL134: 0.6166248458 | AM134: 0.6166248458 | AN134: 0.6166248458 | AO134: 0.6166248458 | AP134: 0.6166248458 | AQ134: 0.6166248458 | AR134: 0.6166248458 | AS134: 0.6166248458 | AT134: 0.6166248458 | AU134: 0.4010100046 | AV134: 0.4010100046 | AW134: 0.4010100046 | AX134: 0.4010100046 | AY134: 0.4010100046 | AZ134: 0.4010100046 | BA134: 0.4010100046 | BB134: 0.4010100046 | BC134: 0.4010100046 | BD134: 0.4010100046 | BE134: 0.6166248458 | BF134: 0.4010100046
G135: 124 | H135: choice_124 | I135: 0 | J135: 0 | K135: 1 | L135: 0 | M135: 0 | N135: 1 | O135: 1 | P135: 0 | Q135: 1 | R135: 1 | S135: 0 | T135: 0 | U135: 1 | V135: 1 | W135: 0 | X135: 0 | Y135: 0 | Z135: 0 | AA135: 1 | AB135: 1 | AC135: 0.5 | AD135: 0.4 | AJ135: p_preference124 | AK135: 0.6324623613 | AL135: 0.6324623613 | AM135: 0.6324623613 | AN135: 0.6324623613 | AO135: 0.6324623613 | AP135: 0.6324623613 | AQ135: 0.6324623613 | AR135: 0.6324623613 | AS135: 0.6324623613 | AT135: 0.6324623613 | AU135: 0.3884090041 | AV135: 0.3884090041 | AW135: 0.3884090041 | AX135: 0.3884090041 | AY135: 0.3884090041 | AZ135: 0.3884090041 | BA135: 0.3884090041 | BB135: 0.3884090041 | BC135: 0.3884090041 | BD135: 0.3884090041 | BE135: 0.6324623613 | BF135: 0.3884090041
G136: 125 | H136: choice_125 | I136: 1 | J136: 0 | K136: 0 | L136: 1 | M136: 1 | N136: 0 | O136: 0 | P136: 0 | Q136: 1 | R136: 1 | S136: 0 | T136: 0 | U136: 0 | V136: 0 | W136: 1 | X136: 0 | Y136: 1 | Z136: 0 | AA136: 1 | AB136: 1 | AC136: 0.5 | AD136: 0.4 | AJ136: p_preference125 | AK136: 0.6217161251 | AL136: 0.6217161251 | AM136: 0.6217161251 | AN136: 0.6217161251 | AO136: 0.6217161251 | AP136: 0.6217161251 | AQ136: 0.6217161251 | AR136: 0.6217161251 | AS136: 0.6217161251 | AT136: 0.6217161251 | AU136: 0.3920681037 | AV136: 0.3920681037 | AW136: 0.3920681037 | AX136: 0.3920681037 | AY136: 0.3920681037 | AZ136: 0.3920681037 | BA136: 0.3920681037 | BB136: 0.3920681037 | BC136: 0.3920681037 | BD136: 0.3920681037 | BE136: 0.6217161251 | BF136: 0.3920681037
G137: 126 | H137: choice_126 | I137: 1 | J137: 1 | K137: 1 | L137: 0 | M137: 1 | N137: 0 | O137: 0 | P137: 0 | Q137: 0 | R137: 0 | S137: 0 | T137: 1 | U137: 1 | V137: 1 | W137: 0 | X137: 0 | Y137: 0 | Z137: 0 | AA137: 0 | AB137: 0 | AC137: 0.4 | AD137: 0.3 | AJ137: p_preference126 | AK137: 0.6120445126 | AL137: 0.6120445126 | AM137: 0.6120445126 | AN137: 0.6120445126 | AO137: 0.6120445126 | AP137: 0.6120445126 | AQ137: 0.6120445126 | AR137: 0.6120445126 | AS137: 0.6120445126 | AT137: 0.6120445126 | AU137: 0.3953612933 | AV137: 0.3953612933 | AW137: 0.3953612933 | AX137: 0.3953612933 | AY137: 0.3953612933 | AZ137: 0.3953612933 | BA137: 0.3953612933 | BB137: 0.3953612933 | BC137: 0.3953612933 | BD137: 0.3953612933 | BE137: 0.6120445126 | BF137: 0.3953612933
G138: 127 | H138: choice_127 | I138: 1 | J138: 1 | K138: 0 | L138: 1 | M138: 0 | N138: 1 | O138: 0 | P138: 0 | Q138: 1 | R138: 0 | S138: 0 | T138: 1 | U138: 0 | V138: 1 | W138: 1 | X138: 0 | Y138: =IF(RAND()<=BA138,1,0) -> 0 | Z138: 0 | AA138: 0 | AB138: 1 | AC138: 0.5 | AD138: 0.4 | AJ138: p_preference127 | AK138: 0.5983400614 | AL138: 0.5983400614 | AM138: 0.5983400614 | AN138: 0.5983400614 | AO138: 0.5983400614 | AP138: 0.5983400614 | AQ138: 0.5983400614 | AR138: 0.5983400614 | AS138: 0.5983400614 | AT138: 0.5983400614 | AU138: 0.393325164 | AV138: 0.393325164 | AW138: 0.393325164 | AX138: 0.393325164 | AY138: 0.393325164 | AZ138: 0.393325164 | BA138: 0.393325164 | BB138: 0.393325164 | BC138: 0.393325164 | BD138: 0.393325164 | BE138: 0.5983400614 | BF138: 0.393325164
G139: 128 | H139: choice_128 | I139: 1 | J139: 1 | K139: 1 | L139: 1 | M139: 0 | N139: 1 | O139: 1 | P139: 1 | Q139: 0 | R139: 1 | S139: 0 | T139: 1 | U139: 0 | V139: 1 | W139: 0 | X139: 0 | Y139: 0 | Z139: 1 | AA139: 0 | AB139: 0 | AC139: 0.8 | AD139: 0.3 | AJ139: p_preference128 | AK139: 0.5910060552 | AL139: 0.5910060552 | AM139: 0.5910060552 | AN139: 0.5910060552 | AO139: 0.5910060552 | AP139: 0.5910060552 | AQ139: 0.5910060552 | AR139: 0.5910060552 | AS139: 0.5910060552 | AT139: 0.5910060552 | AU139: 0.3964926476 | AV139: 0.3964926476 | AW139: 0.3964926476 | AX139: 0.3964926476 | AY139: 0.3964926476 | AZ139: 0.3964926476 | BA139: 0.3964926476 | BB139: 0.3964926476 | BC139: 0.3964926476 | BD139: 0.3964926476 | BE139: 0.5910060552 | BF139: 0.3964926476
G140: 129 | H140: choice_129 | I140: 0 | J140: 0 | K140: 1 | L140: 1 | M140: 0 | N140: 0 | O140: 0 | P140: 1 | Q140: 0 | R140: 1 | S140: 0 | T140: 1 | U140: 1 | V140: 0 | W140: 0 | X140: 0 | Y140: 0 | Z140: 1 | AA140: 1 | AB140: 0 | AC140: 0.4 | AD140: 0.4 | AJ140: p_preference129 | AK140: 0.6094054497 | AL140: 0.6094054497 | AM140: 0.6094054497 | AN140: 0.6094054497 | AO140: 0.6094054497 | AP140: 0.6094054497 | AQ140: 0.6094054497 | AR140: 0.6094054497 | AS140: 0.6094054497 | AT140: 0.6094054497 | AU140: 0.3843433828 | AV140: 0.3843433828 | AW140: 0.3843433828 | AX140: 0.3843433828 | AY140: 0.3843433828 | AZ140: 0.3843433828 | BA140: 0.3843433828 | BB140: 0.3843433828 | BC140: 0.3843433828 | BD140: 0.3843433828 | BE140: 0.6094054497 | BF140: 0.3843433828
G141: 130 | H141: choice_130 | I141: 1 | J141: 0 | K141: 1 | L141: 0 | M141: 0 | N141: 1 | O141: 0 | P141: 1 | Q141: 1 | R141: 0 | S141: 0 | T141: 1 | U141: 0 | V141: 0 | W141: 1 | X141: 0 | Y141: 1 | Z141: 0 | AA141: 0 | AB141: 0 | AC141: =AVERAGE(I141:R141) -> 0.5 | AD141: =AVERAGE(S141:AB141) -> 0.3 | AJ141: p_preference130 | AK141: =AK140+(($AC140*samesex_effect+(1-$AD140)*othersex_effect+preference_B*gen_effect)/(samesex_effect+othersex_effect+gen_effect)-AK140)*RATE -> 0.5934649047 | AL141: =AL140+(($AC140*samesex_effect+(1-$AD140)*othersex_effect+preference_B*gen_effect)/(samesex_effect+othersex_effect+gen_effect)-AL140)*RATE -> 0.5934649047 | AM141: =AM140+(($AC140*samesex_effect+(1-$AD140)*othersex_effect+preference_B*gen_effect)/(samesex_effect+othersex_effect+gen_effect)-AM140)*RATE -> 0.5934649047 | AN141: =AN140+(($AC140*samesex_effect+(1-$AD140)*othersex_effect+preference_B*gen_effect)/(samesex_effect+othersex_effect+gen_effect)-AN140)*RATE -> 0.5934649047 | AO141: =AO140+(($AC140*samesex_effect+(1-$AD140)*othersex_effect+preference_B*gen_effect)/(samesex_effect+othersex_effect+gen_effect)-AO140)*RATE -> 0.5934649047 | AP141: =AP140+(($AC140*samesex_effect+(1-$AD140)*othersex_effect+preference_B*gen_effect)/(samesex_effect+othersex_effect+gen_effect)-AP140)*RATE -> 0.5934649047 | AQ141: =AQ140+(($AC140*samesex_effect+(1-$AD140)*othersex_effect+preference_B*gen_effect)/(samesex_effect+othersex_effect+gen_effect)-AQ140)*RATE -> 0.5934649047 | AR141: =AR140+(($AC140*samesex_effect+(1-$AD140)*othersex_effect+preference_B*gen_effect)/(samesex_effect+othersex_effect+gen_effect)-AR140)*RATE -> 0.5934649047 | AS141: =AS140+(($AC140*samesex_effect+(1-$AD140)*othersex_effect+preference_B*gen_effect)/(samesex_effect+othersex_effect+gen_effect)-AS140)*RATE -> 0.5934649047 | AT141: =AT140+(($AC140*samesex_effect+(1-$AD140)*othersex_effect+preference_B*gen_effect)/(samesex_effect+othersex_effect+gen_effect)-AT140)*RATE -> 0.5934649047 | AU141: =AU140+(($AD140*samesex_effect+(1-$AC140)*othersex_effect+preference_G*gen_effect)/(samesex_effect+othersex_effect+gen_effect)-AU140)*RATE -> 0.3909090445 | AV141: =AV140+(($AD140*samesex_effect+(1-$AC140)*othersex_effect+preference_G*gen_effect)/(samesex_effect+othersex_effect+gen_effect)-AV140)*RATE -> 0.3909090445 | AW141: =AW140+(($AD140*samesex_effect+(1-$AC140)*othersex_effect+preference_G*gen_effect)/(samesex_effect+othersex_effect+gen_effect)-AW140)*RATE -> 0.3909090445 | AX141: =AX140+(($AD140*samesex_effect+(1-$AC140)*othersex_effect+preference_G*gen_effect)/(samesex_effect+othersex_effect+gen_effect)-AX140)*RATE -> 0.3909090445 | AY141: =AY140+(($AD140*samesex_effect+(1-$AC140)*othersex_effect+preference_G*gen_effect)/(samesex_effect+othersex_effect+gen_effect)-AY140)*RATE -> 0.3909090445 | AZ141: =AZ140+(($AD140*samesex_effect+(1-$AC140)*othersex_effect+preference_G*gen_effect)/(samesex_effect+othersex_effect+gen_effect)-AZ140)*RATE -> 0.3909090445 | BA141: =BA140+(($AD140*samesex_effect+(1-$AC140)*othersex_effect+preference_G*gen_effect)/(samesex_effect+othersex_effect+gen_effect)-BA140)*RATE -> 0.3909090445 | BB141: =BB140+(($AD140*samesex_effect+(1-$AC140)*othersex_effect+preference_G*gen_effect)/(samesex_effect+othersex_effect+gen_effect)-BB140)*RATE -> 0.3909090445 | BC141: =BC140+(($AD140*samesex_effect+(1-$AC140)*othersex_effect+preference_G*gen_effect)/(samesex_effect+othersex_effect+gen_effect)-BC140)*RATE -> 0.3909090445 | BD141: =BD140+(($AD140*samesex_effect+(1-$AC140)*othersex_effect+preference_G*gen_effect)/(samesex_effect+othersex_effect+gen_effect)-BD140)*RATE -> 0.3909090445 | BE141: =AVERAGE(AK141:AT141) -> 0.5934649047 | BF141: =AVERAGE(AU141:BD141) -> 0.3909090445
G142: 131 | H142: choice_131 | I142: 1 | J142: 0 | K142: 1 | L142: 1 | M142: 0 | N142: 0 | O142: 1 | P142: 1 | Q142: 1 | R142: 1 | S142: 0 | T142: 1 | U142: 0 | V142: 0 | W142: 1 | X142: 1 | Y142: 0 | Z142: 1 | AA142: 0 | AB142: 0 | AC142: 0.7 | AD142: 0.4 | AJ142: p_preference131 | AK142: 0.5891184143 | AL142: 0.5891184143 | AM142: 0.5891184143 | AN142: 0.5891184143 | AO142: 0.5891184143 | AP142: 0.5891184143 | AQ142: 0.5891184143 | AR142: 0.5891184143 | AS142: 0.5891184143 | AT142: 0.5891184143 | AU142: 0.3868181401 | AV142: 0.3868181401 | AW142: 0.3868181401 | AX142: 0.3868181401 | AY142: 0.3868181401 | AZ142: 0.3868181401 | BA142: 0.3868181401 | BB142: 0.3868181401 | BC142: 0.3868181401 | BD142: 0.3868181401 | BE142: 0.5891184143 | BF142: 0.3868181401
G143: 132 | H143: choice_132 | I143: 1 | J143: 0 | K143: 1 | L143: 1 | M143: 0 | N143: 1 | O143: 1 | P143: 1 | Q143: 0 | R143: 0 | S143: 0 | T143: 1 | U143: 0 | V143: 1 | W143: 1 | X143: 1 | Y143: 1 | Z143: 0 | AA143: 0 | AB143: 0 | AC143: 0.6 | AD143: 0.5 | AJ143: p_preference132 | AK143: 0.5977065728 | AL143: 0.5977065728 | AM143: 0.5977065728 | AN143: 0.5977065728 | AO143: 0.5977065728 | AP143: 0.5977065728 | AQ143: 0.5977065728 | AR143: 0.5977065728 | AS143: 0.5977065728 | AT143: 0.5977065728 | AU143: 0.3856363261 | AV143: 0.3856363261 | AW143: 0.3856363261 | AX143: 0.3856363261 | AY143: 0.3856363261 | AZ143: 0.3856363261 | BA143: 0.3856363261 | BB143: 0.3856363261 | BC143: 0.3856363261 | BD143: 0.3856363261 | BE143: 0.5977065728 | BF143: 0.3856363261
G144: 133 | H144: choice_133 | I144: 1 | J144: 0 | K144: 0 | L144: 1 | M144: 1 | N144: 1 | O144: 0 | P144: 1 | Q144: 1 | R144: 1 | S144: 1 | T144: 0 | U144: 0 | V144: 1 | W144: 1 | X144: 1 | Y144: 0 | Z144: 0 | AA144: 1 | AB144: 0 | AC144: 0.7 | AD144: 0.5 | AJ144: p_preference133 | AK144: 0.5954359155 | AL144: 0.5954359155 | AM144: 0.5954359155 | AN144: 0.5954359155 | AO144: 0.5954359155 | AP144: 0.5954359155 | AQ144: 0.5954359155 | AR144: 0.5954359155 | AS144: 0.5954359155 | AT144: 0.5954359155 | AU144: 0.3945726935 | AV144: 0.3945726935 | AW144: 0.3945726935 | AX144: 0.3945726935 | AY144: 0.3945726935 | AZ144: 0.3945726935 | BA144: 0.3945726935 | BB144: 0.3945726935 | BC144: 0.3945726935 | BD144: 0.3945726935 | BE144: 0.5954359155 | BF144: 0.3945726935
G145: 134 | H145: choice_134 | I145: 1 | J145: 1 | K145: 0 | L145: 0 | M145: 0 | N145: 0 | O145: 1 | P145: 0 | Q145: 1 | R145: 1 | S145: 1 | T145: 1 | U145: 0 | V145: 0 | W145: 0 | X145: 0 | Y145: 1 | Z145: 1 | AA145: 0 | AB145: 1 | AC145: 0.5 | AD145: 0.5 | AJ145: p_preference134 | AK145: 0.600892324 | AL145: 0.600892324 | AM145: 0.600892324 | AN145: 0.600892324 | AO145: 0.600892324 | AP145: 0.600892324 | AQ145: 0.600892324 | AR145: 0.600892324 | AS145: 0.600892324 | AT145: 0.600892324 | AU145: 0.4001154241 | AV145: 0.4001154241 | AW145: 0.4001154241 | AX145: 0.4001154241 | AY145: 0.4001154241 | AZ145: 0.4001154241 | BA145: 0.4001154241 | BB145: 0.4001154241 | BC145: 0.4001154241 | BD145: 0.4001154241 | BE145: 0.600892324 | BF145: 0.4001154241
G146: 135 | H146: choice_135 | I146: 1 | J146: 0 | K146: 1 | L146: 0 | M146: 1 | N146: 1 | O146: 0 | P146: 1 | Q146: 0 | R146: 0 | S146: 0 | T146: 0 | U146: 1 | V146: 1 | W146: 0 | X146: 0 | Y146: 1 | Z146: 0 | AA146: 1 | AB146: 0 | AC146: 0.5 | AD146: 0.4 | AJ146: p_preference135 | AK146: 0.5908030916 | AL146: 0.5908030916 | AM146: 0.5908030916 | AN146: 0.5908030916 | AO146: 0.5908030916 | AP146: 0.5908030916 | AQ146: 0.5908030916 | AR146: 0.5908030916 | AS146: 0.5908030916 | AT146: 0.5908030916 | AU146: 0.4101038817 | AV146: 0.4101038817 | AW146: 0.4101038817 | AX146: 0.4101038817 | AY146: 0.4101038817 | AZ146: 0.4101038817 | BA146: 0.4101038817 | BB146: 0.4101038817 | BC146: 0.4101038817 | BD146: 0.4101038817 | BE146: 0.5908030916 | BF146: 0.4101038817
G147: 136 | H147: choice_136 | I147: 0 | J147: 1 | K147: 1 | L147: 1 | M147: 1 | N147: 0 | O147: 1 | P147: 1 | Q147: 1 | R147: 1 | S147: 1 | T147: 1 | U147: 0 | V147: 1 | W147: 1 | X147: 1 | Y147: 1 | Z147: 0 | AA147: 1 | AB147: 0 | AC147: 0.8 | AD147: 0.7 | AJ147: p_preference136 | AK147: 0.5842227824 | AL147: 0.5842227824 | AM147: 0.5842227824 | AN147: 0.5842227824 | AO147: 0.5842227824 | AP147: 0.5842227824 | AQ147: 0.5842227824 | AR147: 0.5842227824 | AS147: 0.5842227824 | AT147: 0.5842227824 | AU147: 0.4115934935 | AV147: 0.4115934935 | AW147: 0.4115934935 | AX147: 0.4115934935 | AY147: 0.4115934935 | AZ147: 0.4115934935 | BA147: 0.4115934935 | BB147: 0.4115934935 | BC147: 0.4115934935 | BD147: 0.4115934935 | BE147: 0.5842227824 | BF147: 0.4115934935
G148: 137 | H148: choice_137 | I148: 1 | J148: 1 | K148: 1 | L148: 0 | M148: 0 | N148: 0 | O148: 1 | P148: 1 | Q148: 0 | R148: 1 | S148: 1 | T148: 1 | U148: 1 | V148: 0 | W148: 0 | X148: 0 | Y148: 1 | Z148: 0 | AA148: 0 | AB148: 0 | AC148: 0.6 | AD148: 0.4 | AJ148: p_preference137 | AK148: 0.5933005042 | AL148: 0.5933005042 | AM148: 0.5933005042 | AN148: 0.5933005042 | AO148: 0.5933005042 | AP148: 0.5933005042 | AQ148: 0.5933005042 | AR148: 0.5933005042 | AS148: 0.5933005042 | AT148: 0.5933005042 | AU148: 0.4279341442 | AV148: 0.4279341442 | AW148: 0.4279341442 | AX148: 0.4279341442 | AY148: 0.4279341442 | AZ148: 0.4279341442 | BA148: 0.4279341442 | BB148: 0.4279341442 | BC148: 0.4279341442 | BD148: 0.4279341442 | BE148: 0.5933005042 | BF148: 0.4279341442
G149: 138 | H149: choice_138 | I149: 1 | J149: 1 | K149: 1 | L149: 0 | M149: 1 | N149: 1 | O149: 0 | P149: 0 | Q149: 1 | R149: 1 | S149: 1 | T149: 1 | U149: 1 | V149: 0 | W149: 0 | X149: 0 | Y149: 1 | Z149: 1 | AA149: 0 | AB149: 0 | AC149: 0.7 | AD149: 0.5 | AJ149: p_preference138 | AK149: 0.5939704538 | AL149: 0.5939704538 | AM149: 0.5939704538 | AN149: 0.5939704538 | AO149: 0.5939704538 | AP149: 0.5939704538 | AQ149: 0.5939704538 | AR149: 0.5939704538 | AS149: 0.5939704538 | AT149: 0.5939704538 | AU149: 0.4251407298 | AV149: 0.4251407298 | AW149: 0.4251407298 | AX149: 0.4251407298 | AY149: 0.4251407298 | AZ149: 0.4251407298 | BA149: 0.4251407298 | BB149: 0.4251407298 | BC149: 0.4251407298 | BD149: 0.4251407298 | BE149: 0.5939704538 | BF149: 0.4251407298
G150: 139 | H150: choice_139 | I150: 0 | J150: 1 | K150: 0 | L150: 1 | M150: 0 | N150: 0 | O150: 0 | P150: 0 | Q150: 0 | R150: 0 | S150: 1 | T150: 0 | U150: 0 | V150: 1 | W150: 0 | X150: 0 | Y150: 0 | Z150: 1 | AA150: 0 | AB150: 0 | AC150: 0.2 | AD150: 0.3 | AJ150: p_preference139 | AK150: 0.5995734084 | AL150: 0.5995734084 | AM150: 0.5995734084 | AN150: 0.5995734084 | AO150: 0.5995734084 | AP150: 0.5995734084 | AQ150: 0.5995734084 | AR150: 0.5995734084 | AS150: 0.5995734084 | AT150: 0.5995734084 | AU150: 0.4276266568 | AV150: 0.4276266568 | AW150: 0.4276266568 | AX150: 0.4276266568 | AY150: 0.4276266568 | AZ150: 0.4276266568 | BA150: 0.4276266568 | BB150: 0.4276266568 | BC150: 0.4276266568 | BD150: 0.4276266568 | BE150: 0.5995734084 | BF150: 0.4276266568
G151: 140 | H151: choice_140 | I151: 1 | J151: 0 | K151: 1 | L151: 1 | M151: 1 | N151: 0 | O151: 1 | P151: 0 | Q151: 1 | R151: 1 | S151: 0 | T151: 1 | U151: 0 | V151: 1 | W151: 0 | X151: 0 | Y151: 0 | Z151: 0 | AA151: 1 | AB151: 0 | AC151: 0.7 | AD151: 0.3 | AJ151: p_preference140 | AK151: 0.5721160676 | AL151: 0.5721160676 | AM151: 0.5721160676 | AN151: 0.5721160676 | AO151: 0.5721160676 | AP151: 0.5721160676 | AQ151: 0.5721160676 | AR151: 0.5721160676 | AS151: 0.5721160676 | AT151: 0.5721160676 | AU151: 0.4273639911 | AV151: 0.4273639911 | AW151: 0.4273639911 | AX151: 0.4273639911 | AY151: 0.4273639911 | AZ151: 0.4273639911 | BA151: 0.4273639911 | BB151: 0.4273639911 | BC151: 0.4273639911 | BD151: 0.4273639911 | BE151: 0.5721160676 | BF151: 0.4273639911
G152: 141 | H152: choice_141 | I152: 1 | J152: 1 | K152: 0 | L152: 0 | M152: 1 | N152: 1 | O152: 0 | P152: 1 | Q152: 1 | R152: 0 | S152: 1 | T152: 1 | U152: 1 | V152: 0 | W152: 1 | X152: 0 | Y152: 0 | Z152: 1 | AA152: 0 | AB152: 0 | AC152: 0.6 | AD152: 0.5 | AJ152: p_preference141 | AK152: 0.5849044608 | AL152: 0.5849044608 | AM152: 0.5849044608 | AN152: 0.5849044608 | AO152: 0.5849044608 | AP152: 0.5849044608 | AQ152: 0.5849044608 | AR152: 0.5849044608 | AS152: 0.5849044608 | AT152: 0.5849044608 | AU152: 0.414627592 | AV152: 0.414627592 | AW152: 0.414627592 | AX152: 0.414627592 | AY152: 0.414627592 | AZ152: 0.414627592 | BA152: 0.414627592 | BB152: 0.414627592 | BC152: 0.414627592 | BD152: 0.414627592 | BE152: 0.5849044608 | BF152: 0.414627592
G153: 142 | H153: choice_142 | I153: 0 | J153: 0 | K153: 1 | L153: 0 | M153: 0 | N153: 1 | O153: 0 | P153: 1 | Q153: 0 | R153: 1 | S153: 0 | T153: 0 | U153: 1 | V153: 0 | W153: 1 | X153: 0 | Y153: 0 | Z153: 0 | AA153: 1 | AB153: 0 | AC153: 0.4 | AD153: 0.3 | AJ153: p_preference142 | AK153: 0.5839140147 | AL153: 0.5839140147 | AM153: 0.5839140147 | AN153: 0.5839140147 | AO153: 0.5839140147 | AP153: 0.5839140147 | AQ153: 0.5839140147 | AR153: 0.5839140147 | AS153: 0.5839140147 | AT153: 0.5839140147 | AU153: 0.4206648328 | AV153: 0.4206648328 | AW153: 0.4206648328 | AX153: 0.4206648328 | AY153: 0.4206648328 | AZ153: 0.4206648328 | BA153: 0.4206648328 | BB153: 0.4206648328 | BC153: 0.4206648328 | BD153: 0.4206648328 | BE153: 0.5839140147 | BF153: 0.4206648328
G154: 143 | H154: choice_143 | I154: 1 | J154: 0 | K154: 1 | L154: 1 | M154: 1 | N154: 0 | O154: 1 | P154: 1 | Q154: 1 | R154: 1 | S154: 0 | T154: 1 | U154: 1 | V154: 0 | W154: 0 | X154: 0 | Y154: 1 | Z154: 0 | AA154: 0 | AB154: 1 | AC154: 0.8 | AD154: 0.4 | AJ154: p_preference143 | AK154: 0.5730226132 | AL154: 0.5730226132 | AM154: 0.5730226132 | AN154: 0.5730226132 | AO154: 0.5730226132 | AP154: 0.5730226132 | AQ154: 0.5730226132 | AR154: 0.5730226132 | AS154: 0.5730226132 | AT154: 0.5730226132 | AU154: 0.4160983495 | AV154: 0.4160983495 | AW154: 0.4160983495 | AX154: 0.4160983495 | AY154: 0.4160983495 | AZ154: 0.4160983495 | BA154: 0.4160983495 | BB154: 0.4160983495 | BC154: 0.4160983495 | BD154: 0.4160983495 | BE154: 0.5730226132 | BF154: 0.4160983495
G155: 144 | H155: choice_144 | I155: 0 | J155: 1 | K155: 1 | L155: 1 | M155: 0 | N155: 0 | O155: 1 | P155: 1 | Q155: 1 | R155: 0 | S155: 1 | T155: 0 | U155: 1 | V155: 0 | W155: 1 | X155: 0 | Y155: 1 | Z155: 1 | AA155: 1 | AB155: 0 | AC155: 0.6 | AD155: 0.6 | AJ155: p_preference144 | AK155: 0.5907203519 | AL155: 0.5907203519 | AM155: 0.5907203519 | AN155: 0.5907203519 | AO155: 0.5907203519 | AP155: 0.5907203519 | AQ155: 0.5907203519 | AR155: 0.5907203519 | AS155: 0.5907203519 | AT155: 0.5907203519 | AU155: 0.4094885146 | AV155: 0.4094885146 | AW155: 0.4094885146 | AX155: 0.4094885146 | AY155: 0.4094885146 | AZ155: 0.4094885146 | BA155: 0.4094885146 | BB155: 0.4094885146 | BC155: 0.4094885146 | BD155: 0.4094885146 | BE155: 0.5907203519 | BF155: 0.4094885146
G156: 145 | H156: choice_145 | I156: 0 | J156: 0 | K156: 1 | L156: 1 | M156: 0 | N156: 0 | O156: 0 | P156: 1 | Q156: 0 | R156: 0 | S156: 0 | T156: 0 | U156: 0 | V156: 0 | W156: 0 | X156: 0 | Y156: 1 | Z156: 0 | AA156: 0 | AB156: 1 | AC156: 0.3 | AD156: 0.2 | AJ156: p_preference145 | AK156: 0.5866483167 | AL156: 0.5866483167 | AM156: 0.5866483167 | AN156: 0.5866483167 | AO156: 0.5866483167 | AP156: 0.5866483167 | AQ156: 0.5866483167 | AR156: 0.5866483167 | AS156: 0.5866483167 | AT156: 0.5866483167 | AU156: 0.4235396631 | AV156: 0.4235396631 | AW156: 0.4235396631 | AX156: 0.4235396631 | AY156: 0.4235396631 | AZ156: 0.4235396631 | BA156: 0.4235396631 | BB156: 0.4235396631 | BC156: 0.4235396631 | BD156: 0.4235396631 | BE156: 0.5866483167 | BF156: 0.4235396631
G157: 146 | H157: choice_146 | I157: 1 | J157: 0 | K157: 1 | L157: 1 | M157: 0 | N157: 0 | O157: 0 | P157: 1 | Q157: 1 | R157: 0 | S157: 0 | T157: 0 | U157: 1 | V157: 1 | W157: 0 | X157: 1 | Y157: 1 | Z157: 0 | AA157: 0 | AB157: 0 | AC157: 0.5 | AD157: 0.4 | AJ157: p_preference146 | AK157: 0.5704834851 | AL157: 0.5704834851 | AM157: 0.5704834851 | AN157: 0.5704834851 | AO157: 0.5704834851 | AP157: 0.5704834851 | AQ157: 0.5704834851 | AR157: 0.5704834851 | AS157: 0.5704834851 | AT157: 0.5704834851 | AU157: 0.4136856968 | AV157: 0.4136856968 | AW157: 0.4136856968 | AX157: 0.4136856968 | AY157: 0.4136856968 | AZ157: 0.4136856968 | BA157: 0.4136856968 | BB157: 0.4136856968 | BC157: 0.4136856968 | BD157: 0.4136856968 | BE157: 0.5704834851 | BF157: 0.4136856968
G158: 147 | H158: choice_147 | I158: 1 | J158: 1 | K158: 0 | L158: =IF(RAND()<=AN158,1,0) -> 0 | M158: 0 | N158: 1 | O158: 1 | P158: 0 | Q158: 1 | R158: 1 | S158: 0 | T158: 1 | U158: 1 | V158: 0 | W158: 1 | X158: 0 | Y158: 0 | Z158: 0 | AA158: 1 | AB158: 1 | AC158: 0.6 | AD158: 0.5 | AJ158: p_preference147 | AK158: 0.5659351366 | AL158: 0.5659351366 | AM158: 0.5659351366 | AN158: 0.5659351366 | AO158: 0.5659351366 | AP158: 0.5659351366 | AQ158: 0.5659351366 | AR158: 0.5659351366 | AS158: 0.5659351366 | AT158: 0.5659351366 | AU158: 0.4148171271 | AV158: 0.4148171271 | AW158: 0.4148171271 | AX158: 0.4148171271 | AY158: 0.4148171271 | AZ158: 0.4148171271 | BA158: 0.4148171271 | BB158: 0.4148171271 | BC158: 0.4148171271 | BD158: 0.4148171271 | BE158: 0.5659351366 | BF158: 0.4148171271
G159: 148 | H159: choice_148 | I159: =IF(RAND()<=AK159,1,0) -> 0 | J159: 1 | K159: 1 | L159: 0 | M159: 0 | N159: 1 | O159: 0 | P159: 0 | Q159: 0 | R159: 0 | S159: 0 | T159: 0 | U159: 0 | V159: 1 | W159: 0 | X159: 0 | Y159: 0 | Z159: 0 | AA159: 1 | AB159: 0 | AC159: 0.3 | AD159: 0.2 | AJ159: p_preference148 | AK159: 0.5668416229 | AL159: 0.5668416229 | AM159: 0.5668416229 | AN159: 0.5668416229 | AO159: 0.5668416229 | AP159: 0.5668416229 | AQ159: 0.5668416229 | AR159: 0.5668416229 | AS159: 0.5668416229 | AT159: 0.5668416229 | AU159: 0.4208354144 | AV159: 0.4208354144 | AW159: 0.4208354144 | AX159: 0.4208354144 | AY159: 0.4208354144 | AZ159: 0.4208354144 | BA159: 0.4208354144 | BB159: 0.4208354144 | BC159: 0.4208354144 | BD159: 0.4208354144 | BE159: 0.5668416229 | BF159: 0.4208354144
G160: 149 | H160: choice_149 | I160: 1 | J160: 0 | K160: 1 | L160: 1 | M160: 1 | N160: 0 | O160: 1 | P160: 1 | Q160: 0 | R160: 1 | S160: 0 | T160: 0 | U160: 0 | V160: 1 | W160: 0 | X160: 1 | Y160: 0 | Z160: 0 | AA160: 0 | AB160: 1 | AC160: 0.7 | AD160: 0.3 | AJ160: p_preference149 | AK160: 0.5526574606 | AL160: 0.5526574606 | AM160: 0.5526574606 | AN160: 0.5526574606 | AO160: 0.5526574606 | AP160: 0.5526574606 | AQ160: 0.5526574606 | AR160: 0.5526574606 | AS160: 0.5526574606 | AT160: 0.5526574606 | AU160: 0.411251873 | AV160: 0.411251873 | AW160: 0.411251873 | AX160: 0.411251873 | AY160: 0.411251873 | AZ160: 0.411251873 | BA160: 0.411251873 | BB160: 0.411251873 | BC160: 0.411251873 | BD160: 0.411251873 | BE160: 0.5526574606 | BF160: 0.411251873
G161: 150 | H161: choice_150 | I161: 0 | J161: 1 | K161: 0 | L161: 1 | M161: 0 | N161: 0 | O161: 0 | P161: 1 | Q161: 1 | R161: 1 | S161: 1 | T161: 1 | U161: 0 | V161: 0 | W161: 0 | X161: 1 | Y161: 1 | Z161: 0 | AA161: 1 | AB161: 1 | AC161: 0.5 | AD161: 0.6 | AJ161: p_preference150 | AK161: 0.5673917145 | AL161: 0.5673917145 | AM161: 0.5673917145 | AN161: 0.5673917145 | AO161: 0.5673917145 | AP161: 0.5673917145 | AQ161: 0.5673917145 | AR161: 0.5673917145 | AS161: 0.5673917145 | AT161: 0.5673917145 | AU161: 0.4001266857 | AV161: 0.4001266857 | AW161: 0.4001266857 | AX161: 0.4001266857 | AY161: 0.4001266857 | AZ161: 0.4001266857 | BA161: 0.4001266857 | BB161: 0.4001266857 | BC161: 0.4001266857 | BD161: 0.4001266857 | BE161: 0.5673917145 | BF161: 0.4001266857
G162: 151 | H162: choice_151 | I162: 1 | J162: 0 | K162: 1 | L162: 0 | M162: 0 | N162: 1 | O162: 1 | P162: 1 | Q162: 0 | R162: 0 | S162: 1 | T162: 1 | U162: 0 | V162: 0 | W162: 0 | X162: 0 | Y162: 0 | Z162: 1 | AA162: 0 | AB162: 0 | AC162: 0.5 | AD162: 0.3 | AJ162: p_preference151 | AK162: 0.5581525431 | AL162: 0.5581525431 | AM162: 0.5581525431 | AN162: 0.5581525431 | AO162: 0.5581525431 | AP162: 0.5581525431 | AQ162: 0.5581525431 | AR162: 0.5581525431 | AS162: 0.5581525431 | AT162: 0.5581525431 | AU162: 0.4176140171 | AV162: 0.4176140171 | AW162: 0.4176140171 | AX162: 0.4176140171 | AY162: 0.4176140171 | AZ162: 0.4176140171 | BA162: 0.4176140171 | BB162: 0.4176140171 | BC162: 0.4176140171 | BD162: 0.4176140171 | BE162: 0.5581525431 | BF162: 0.4176140171
G163: 152 | H163: choice_152 | I163: 1 | J163: 0 | K163: 1 | L163: 1 | M163: 0 | N163: 1 | O163: 0 | P163: 1 | Q163: 0 | R163: 0 | S163: 0 | T163: 0 | U163: 0 | V163: 0 | W163: 0 | X163: 0 | Y163: 1 | Z163: 0 | AA163: 0 | AB163: 1 | AC163: 0.5 | AD163: 0.2 | AJ163: p_preference152 | AK163: 0.5573372888 | AL163: 0.5573372888 | AM163: 0.5573372888 | AN163: 0.5573372888 | AO163: 0.5573372888 | AP163: 0.5573372888 | AQ163: 0.5573372888 | AR163: 0.5573372888 | AS163: 0.5573372888 | AT163: 0.5573372888 | AU163: 0.4108526154 | AV163: 0.4108526154 | AW163: 0.4108526154 | AX163: 0.4108526154 | AY163: 0.4108526154 | AZ163: 0.4108526154 | BA163: 0.4108526154 | BB163: 0.4108526154 | BC163: 0.4108526154 | BD163: 0.4108526154 | BE163: 0.5573372888 | BF163: 0.4108526154
G164: 153 | H164: choice_153 | I164: 0 | J164: 1 | K164: 0 | L164: 0 | M164: 1 | N164: 1 | O164: 1 | P164: 1 | Q164: 1 | R164: 0 | S164: 0 | T164: 1 | U164: 0 | V164: 0 | W164: 0 | X164: 0 | Y164: 0 | Z164: =IF(RAND()<=BB164,1,0) -> 1 | AA164: 0 | AB164: 0 | AC164: 0.6 | AD164: 0.2 | AJ164: p_preference153 | AK164: 0.5591035599 | AL164: 0.5591035599 | AM164: 0.5591035599 | AN164: 0.5591035599 | AO164: 0.5591035599 | AP164: 0.5591035599 | AQ164: 0.5591035599 | AR164: 0.5591035599 | AS164: 0.5591035599 | AT164: 0.5591035599 | AU164: 0.3972673539 | AV164: 0.3972673539 | AW164: 0.3972673539 | AX164: 0.3972673539 | AY164: 0.3972673539 | AZ164: 0.3972673539 | BA164: 0.3972673539 | BB164: 0.3972673539 | BC164: 0.3972673539 | BD164: 0.3972673539 | BE164: 0.5591035599 | BF164: 0.3972673539
G165: 154 | H165: choice_154 | I165: 0 | J165: 1 | K165: 1 | L165: 0 | M165: 0 | N165: 0 | O165: 1 | P165: 1 | Q165: 1 | R165: 1 | S165: 1 | T165: 1 | U165: 0 | V165: 1 | W165: 0 | X165: 1 | Y165: 0 | Z165: 0 | AA165: 1 | AB165: 0 | AC165: 0.6 | AD165: 0.5 | AJ165: p_preference154 | AK165: 0.5681932039 | AL165: 0.5681932039 | AM165: 0.5681932039 | AN165: 0.5681932039 | AO165: 0.5681932039 | AP165: 0.5681932039 | AQ165: 0.5681932039 | AR165: 0.5681932039 | AS165: 0.5681932039 | AT165: 0.5681932039 | AU165: 0.3825406185 | AV165: 0.3825406185 | AW165: 0.3825406185 | AX165: 0.3825406185 | AY165: 0.3825406185 | AZ165: 0.3825406185 | BA165: 0.3825406185 | BB165: 0.3825406185 | BC165: 0.3825406185 | BD165: 0.3825406185 | BE165: 0.5681932039 | BF165: 0.3825406185
G166: 155 | H166: choice_155 | I166: 0 | J166: 1 | K166: 1 | L166: 0 | M166: 1 | N166: 1 | O166: 1 | P166: 1 | Q166: 1 | R166: 1 | S166: 1 | T166: 1 | U166: 0 | V166: 0 | W166: 1 | X166: 1 | Y166: 1 | Z166: 0 | AA166: 0 | AB166: 1 | AC166: 0.8 | AD166: 0.6 | AJ166: p_preference155 | AK166: 0.5688738835 | AL166: 0.5688738835 | AM166: 0.5688738835 | AN166: 0.5688738835 | AO166: 0.5688738835 | AP166: 0.5688738835 | AQ166: 0.5688738835 | AR166: 0.5688738835 | AS166: 0.5688738835 | AT166: 0.5688738835 | AU166: 0.3917865566 | AV166: 0.3917865566 | AW166: 0.3917865566 | AX166: 0.3917865566 | AY166: 0.3917865566 | AZ166: 0.3917865566 | BA166: 0.3917865566 | BB166: 0.3917865566 | BC166: 0.3917865566 | BD166: 0.3917865566 | BE166: 0.5688738835 | BF166: 0.3917865566
G167: 156 | H167: choice_156 | I167: 1 | J167: 1 | K167: 1 | L167: 1 | M167: 1 | N167: 1 | O167: 0 | P167: 1 | Q167: 1 | R167: 1 | S167: 0 | T167: 1 | U167: 0 | V167: 1 | W167: 0 | X167: 0 | Y167: 0 | Z167: 1 | AA167: 1 | AB167: 0 | AC167: 0.9 | AD167: 0.4 | AJ167: p_preference156 | AK167: 0.5819864952 | AL167: 0.5819864952 | AM167: 0.5819864952 | AN167: 0.5819864952 | AO167: 0.5819864952 | AP167: 0.5819864952 | AQ167: 0.5819864952 | AR167: 0.5819864952 | AS167: 0.5819864952 | AT167: 0.5819864952 | AU167: 0.402607901 | AV167: 0.402607901 | AW167: 0.402607901 | AX167: 0.402607901 | AY167: 0.402607901 | AZ167: 0.402607901 | BA167: 0.402607901 | BB167: 0.402607901 | BC167: 0.402607901 | BD167: 0.402607901 | BE167: 0.5819864952 | BF167: 0.402607901
G168: 157 | H168: choice_157 | I168: 0 | J168: 1 | K168: 1 | L168: 1 | M168: 1 | N168: 0 | O168: 1 | P168: 1 | Q168: 0 | R168: 1 | S168: 0 | T168: 1 | U168: 1 | V168: 0 | W168: 0 | X168: 0 | Y168: 1 | Z168: 0 | AA168: 0 | AB168: 0 | AC168: 0.7 | AD168: 0.3 | AJ168: p_preference157 | AK168: 0.6062878457 | AL168: 0.6062878457 | AM168: 0.6062878457 | AN168: 0.6062878457 | AO168: 0.6062878457 | AP168: 0.6062878457 | AQ168: 0.6062878457 | AR168: 0.6062878457 | AS168: 0.6062878457 | AT168: 0.6062878457 | AU168: 0.3948471109 | AV168: 0.3948471109 | AW168: 0.3948471109 | AX168: 0.3948471109 | AY168: 0.3948471109 | AZ168: 0.3948471109 | BA168: 0.3948471109 | BB168: 0.3948471109 | BC168: 0.3948471109 | BD168: 0.3948471109 | BE168: 0.6062878457 | BF168: 0.3948471109
G169: 158 | H169: choice_158 | I169: 1 | J169: 0 | K169: 1 | L169: 0 | M169: 1 | N169: 0 | O169: 0 | P169: 1 | Q169: 0 | R169: 0 | S169: 1 | T169: 1 | U169: 1 | V169: 0 | W169: 0 | X169: 0 | Y169: 0 | Z169: 0 | AA169: 0 | AB169: 0 | AC169: 0.4 | AD169: 0.3 | AJ169: p_preference158 | AK169: 0.6156590611 | AL169: 0.6156590611 | AM169: 0.6156590611 | AN169: 0.6156590611 | AO169: 0.6156590611 | AP169: 0.6156590611 | AQ169: 0.6156590611 | AR169: 0.6156590611 | AS169: 0.6156590611 | AT169: 0.6156590611 | AU169: 0.3853623998 | AV169: 0.3853623998 | AW169: 0.3853623998 | AX169: 0.3853623998 | AY169: 0.3853623998 | AZ169: 0.3853623998 | BA169: 0.3853623998 | BB169: 0.3853623998 | BC169: 0.3853623998 | BD169: 0.3853623998 | BE169: 0.6156590611 | BF169: 0.3853623998
G170: 159 | H170: choice_159 | I170: 1 | J170: 1 | K170: 0 | L170: 1 | M170: 0 | N170: 0 | O170: 1 | P170: 1 | Q170: 1 | R170: 0 | S170: 0 | T170: 0 | U170: 0 | V170: 1 | W170: 0 | X170: 0 | Y170: 0 | Z170: 0 | AA170: 1 | AB170: 1 | AC170: 0.6 | AD170: 0.3 | AJ170: p_preference159 | AK170: 0.601593155 | AL170: 0.601593155 | AM170: 0.601593155 | AN170: 0.601593155 | AO170: 0.601593155 | AP170: 0.601593155 | AQ170: 0.601593155 | AR170: 0.601593155 | AS170: 0.601593155 | AT170: 0.601593155 | AU170: 0.3843261598 | AV170: 0.3843261598 | AW170: 0.3843261598 | AX170: 0.3843261598 | AY170: 0.3843261598 | AZ170: 0.3843261598 | BA170: 0.3843261598 | BB170: 0.3843261598 | BC170: 0.3843261598 | BD170: 0.3843261598 | BE170: 0.601593155 | BF170: 0.3843261598
G171: 160 | H171: choice_160 | I171: 0 | J171: 1 | K171: 1 | L171: 1 | M171: 1 | N171: 1 | O171: 0 | P171: 1 | Q171: 1 | R171: 0 | S171: 0 | T171: 0 | U171: 0 | V171: 0 | W171: 0 | X171: 0 | Y171: 0 | Z171: 0 | AA171: 0 | AB171: 1 | AC171: 0.7 | AD171: 0.1 | AJ171: p_preference160 | AK171: 0.6039338395 | AL171: 0.6039338395 | AM171: 0.6039338395 | AN171: 0.6039338395 | AO171: 0.6039338395 | AP171: 0.6039338395 | AQ171: 0.6039338395 | AR171: 0.6039338395 | AS171: 0.6039338395 | AT171: 0.6039338395 | AU171: 0.3783935438 | AV171: 0.3783935438 | AW171: 0.3783935438 | AX171: 0.3783935438 | AY171: 0.3783935438 | AZ171: 0.3783935438 | BA171: 0.3783935438 | BB171: 0.3783935438 | BC171: 0.3783935438 | BD171: 0.3783935438 | BE171: 0.6039338395 | BF171: 0.3783935438
G172: 161 | H172: choice_161 | I172: 0 | J172: 0 | K172: 1 | L172: 1 | M172: 1 | N172: 1 | O172: 1 | P172: 1 | Q172: 0 | R172: 1 | S172: 0 | T172: 0 | U172: 0 | V172: 1 | W172: 0 | X172: 1 | Y172: 0 | Z172: 0 | AA172: 0 | AB172: 1 | AC172: 0.7 | AD172: 0.3 | AJ172: p_preference161 | AK172: 0.6185404555 | AL172: 0.6185404555 | AM172: 0.6185404555 | AN172: 0.6185404555 | AO172: 0.6185404555 | AP172: 0.6185404555 | AQ172: 0.6185404555 | AR172: 0.6185404555 | AS172: 0.6185404555 | AT172: 0.6185404555 | AU172: 0.3555541894 | AV172: 0.3555541894 | AW172: 0.3555541894 | AX172: 0.3555541894 | AY172: 0.3555541894 | AZ172: 0.3555541894 | BA172: 0.3555541894 | BB172: 0.3555541894 | BC172: 0.3555541894 | BD172: 0.3555541894 | BE172: 0.6185404555 | BF172: 0.3555541894
G173: 162 | H173: choice_162 | I173: 1 | J173: 1 | K173: 0 | L173: 0 | M173: 1 | N173: 0 | O173: 0 | P173: 1 | Q173: 0 | R173: 0 | S173: 1 | T173: 1 | U173: 0 | V173: 0 | W173: 0 | X173: 1 | Y173: 0 | Z173: 0 | AA173: 0 | AB173: 1 | AC173: 0.4 | AD173: 0.4 | AJ173: p_preference162 | AK173: 0.62668641 | AL173: 0.62668641 | AM173: 0.62668641 | AN173: 0.62668641 | AO173: 0.62668641 | AP173: 0.62668641 | AQ173: 0.62668641 | AR173: 0.62668641 | AS173: 0.62668641 | AT173: 0.62668641 | AU173: 0.3499987705 | AV173: 0.3499987705 | AW173: 0.3499987705 | AX173: 0.3499987705 | AY173: 0.3499987705 | AZ173: 0.3499987705 | BA173: 0.3499987705 | BB173: 0.3499987705 | BC173: 0.3499987705 | BD173: 0.3499987705 | BE173: 0.62668641 | BF173: 0.3499987705
G174: 163 | H174: choice_163 | I174: 0 | J174: 1 | K174: 1 | L174: 0 | M174: 0 | N174: 1 | O174: 0 | P174: 1 | Q174: 1 | R174: 0 | S174: 0 | T174: 1 | U174: 0 | V174: 1 | W174: 0 | X174: 0 | Y174: 0 | Z174: 1 | AA174: 0 | AB174: 0 | AC174: 0.5 | AD174: 0.3 | AJ174: p_preference163 | AK174: 0.609017769 | AL174: 0.609017769 | AM174: 0.609017769 | AN174: 0.609017769 | AO174: 0.609017769 | AP174: 0.609017769 | AQ174: 0.609017769 | AR174: 0.609017769 | AS174: 0.609017769 | AT174: 0.609017769 | AU174: 0.3599988934 | AV174: 0.3599988934 | AW174: 0.3599988934 | AX174: 0.3599988934 | AY174: 0.3599988934 | AZ174: 0.3599988934 | BA174: 0.3599988934 | BB174: 0.3599988934 | BC174: 0.3599988934 | BD174: 0.3599988934 | BE174: 0.609017769 | BF174: 0.3599988934
G175: 164 | H175: choice_164 | I175: 1 | J175: 1 | K175: 1 | L175: 1 | M175: 1 | N175: 1 | O175: 0 | P175: 0 | Q175: 1 | R175: 1 | S175: 1 | T175: 0 | U175: 1 | V175: 0 | W175: 0 | X175: 1 | Y175: 0 | Z175: 0 | AA175: 0 | AB175: 0 | AC175: 0.8 | AD175: 0.3 | AJ175: p_preference164 | AK175: 0.6031159921 | AL175: 0.6031159921 | AM175: 0.6031159921 | AN175: 0.6031159921 | AO175: 0.6031159921 | AP175: 0.6031159921 | AQ175: 0.6031159921 | AR175: 0.6031159921 | AS175: 0.6031159921 | AT175: 0.6031159921 | AU175: 0.3589990041 | AV175: 0.3589990041 | AW175: 0.3589990041 | AX175: 0.3589990041 | AY175: 0.3589990041 | AZ175: 0.3589990041 | BA175: 0.3589990041 | BB175: 0.3589990041 | BC175: 0.3589990041 | BD175: 0.3589990041 | BE175: 0.6031159921 | BF175: 0.3589990041
G176: 165 | H176: choice_165 | I176: 1 | J176: 0 | K176: 1 | L176: 1 | M176: 1 | N176: 1 | O176: 1 | P176: 0 | Q176: 1 | R176: 1 | S176: 0 | T176: 0 | U176: 1 | V176: 0 | W176: 0 | X176: 0 | Y176: 0 | Z176: 0 | AA176: 1 | AB176: 0 | AC176: 0.8 | AD176: 0.2 | AJ176: p_preference165 | AK176: 0.6203043929 | AL176: 0.6203043929 | AM176: 0.6203043929 | AN176: 0.6203043929 | AO176: 0.6203043929 | AP176: 0.6203043929 | AQ176: 0.6203043929 | AR176: 0.6203043929 | AS176: 0.6203043929 | AT176: 0.6203043929 | AU176: 0.3505991037 | AV176: 0.3505991037 | AW176: 0.3505991037 | AX176: 0.3505991037 | AY176: 0.3505991037 | AZ176: 0.3505991037 | BA176: 0.3505991037 | BB176: 0.3505991037 | BC176: 0.3505991037 | BD176: 0.3505991037 | BE176: 0.6203043929 | BF176: 0.3505991037
G177: 166 | H177: choice_166 | I177: 1 | J177: 1 | K177: 1 | L177: 0 | M177: 0 | N177: 0 | O177: 0 | P177: 0 | Q177: 0 | R177: 0 | S177: 0 | T177: 0 | U177: 0 | V177: 0 | W177: 0 | X177: 1 | Y177: 0 | Z177: 0 | AA177: 1 | AB177: 1 | AC177: 0.3 | AD177: 0.3 | AJ177: p_preference166 | AK177: 0.6382739536 | AL177: 0.6382739536 | AM177: 0.6382739536 | AN177: 0.6382739536 | AO177: 0.6382739536 | AP177: 0.6382739536 | AQ177: 0.6382739536 | AR177: 0.6382739536 | AS177: 0.6382739536 | AT177: 0.6382739536 | AU177: 0.3355391933 | AV177: 0.3355391933 | AW177: 0.3355391933 | AX177: 0.3355391933 | AY177: 0.3355391933 | AZ177: 0.3355391933 | BA177: 0.3355391933 | BB177: 0.3355391933 | BC177: 0.3355391933 | BD177: 0.3355391933 | BE177: 0.6382739536 | BF177: 0.3355391933
G178: 167 | H178: choice_167 | I178: 1 | J178: 1 | K178: 0 | L178: 1 | M178: 1 | N178: 0 | O178: 1 | P178: 1 | Q178: 0 | R178: 0 | S178: 0 | T178: 0 | U178: 0 | V178: 0 | W178: 1 | X178: 0 | Y178: 0 | Z178: 0 | AA178: 1 | AB178: 0 | AC178: 0.6 | AD178: 0.2 | AJ178: p_preference167 | AK178: 0.6144465582 | AL178: 0.6144465582 | AM178: 0.6144465582 | AN178: 0.6144465582 | AO178: 0.6144465582 | AP178: 0.6144465582 | AQ178: 0.6144465582 | AR178: 0.6144465582 | AS178: 0.6144465582 | AT178: 0.6144465582 | AU178: 0.341985274 | AV178: 0.341985274 | AW178: 0.341985274 | AX178: 0.341985274 | AY178: 0.341985274 | AZ178: 0.341985274 | BA178: 0.341985274 | BB178: 0.341985274 | BC178: 0.341985274 | BD178: 0.341985274 | BE178: 0.6144465582 | BF178: 0.341985274
G179: 168 | H179: choice_168 | I179: 1 | J179: 0 | K179: 0 | L179: 1 | M179: 1 | N179: 0 | O179: 1 | P179: 1 | Q179: 1 | R179: 0 | S179: 1 | T179: 0 | U179: 0 | V179: 0 | W179: 0 | X179: 1 | Y179: 0 | Z179: 0 | AA179: 0 | AB179: 0 | AC179: 0.6 | AD179: 0.2 | AJ179: p_preference168 | AK179: 0.6180019024 | AL179: 0.6180019024 | AM179: 0.6180019024 | AN179: 0.6180019024 | AO179: 0.6180019024 | AP179: 0.6180019024 | AQ179: 0.6180019024 | AR179: 0.6180019024 | AS179: 0.6180019024 | AT179: 0.6180019024 | AU179: 0.3327867466 | AV179: 0.3327867466 | AW179: 0.3327867466 | AX179: 0.3327867466 | AY179: 0.3327867466 | AZ179: 0.3327867466 | BA179: 0.3327867466 | BB179: 0.3327867466 | BC179: 0.3327867466 | BD179: 0.3327867466 | BE179: 0.6180019024 | BF179: 0.3327867466
G180: 169 | H180: choice_169 | I180: 1 | J180: 0 | K180: 0 | L180: 1 | M180: 0 | N180: 0 | O180: 0 | P180: 0 | Q180: 0 | R180: 1 | S180: 1 | T180: 0 | U180: 0 | V180: 0 | W180: 0 | X180: 0 | Y180: 0 | Z180: 0 | AA180: 0 | AB180: 0 | AC180: 0.3 | AD180: 0.1 | AJ180: p_preference169 | AK180: 0.6212017122 | AL180: 0.6212017122 | AM180: 0.6212017122 | AN180: 0.6212017122 | AO180: 0.6212017122 | AP180: 0.6212017122 | AQ180: 0.6212017122 | AR180: 0.6212017122 | AS180: 0.6212017122 | AT180: 0.6212017122 | AU180: 0.3245080719 | AV180: 0.3245080719 | AW180: 0.3245080719 | AX180: 0.3245080719 | AY180: 0.3245080719 | AZ180: 0.3245080719 | BA180: 0.3245080719 | BB180: 0.3245080719 | BC180: 0.3245080719 | BD180: 0.3245080719 | BE180: 0.6212017122 | BF180: 0.3245080719
G181: 170 | H181: choice_170 | I181: 0 | J181: 0 | K181: 1 | L181: 1 | M181: 0 | N181: 0 | O181: 1 | P181: 1 | Q181: 0 | R181: 1 | S181: 0 | T181: 1 | U181: 0 | V181: 0 | W181: 1 | X181: 0 | Y181: 0 | Z181: 0 | AA181: 0 | AB181: 0 | AC181: 0.5 | AD181: 0.2 | AJ181: p_preference170 | AK181: 0.6040815409 | AL181: 0.6040815409 | AM181: 0.6040815409 | AN181: 0.6040815409 | AO181: 0.6040815409 | AP181: 0.6040815409 | AQ181: 0.6040815409 | AR181: 0.6040815409 | AS181: 0.6040815409 | AT181: 0.6040815409 | AU181: 0.3170572647 | AV181: 0.3170572647 | AW181: 0.3170572647 | AX181: 0.3170572647 | AY181: 0.3170572647 | AZ181: 0.3170572647 | BA181: 0.3170572647 | BB181: 0.3170572647 | BC181: 0.3170572647 | BD181: 0.3170572647 | BE181: 0.6040815409 | BF181: 0.3170572647
G182: 171 | H182: choice_171 | I182: 0 | J182: 0 | K182: 0 | L182: 1 | M182: 1 | N182: 0 | O182: 1 | P182: 0 | Q182: 1 | R182: 1 | S182: 0 | T182: 0 | U182: 1 | V182: 0 | W182: 1 | X182: 1 | Y182: 0 | Z182: 1 | AA182: 0 | AB182: 1 | AC182: 0.5 | AD182: 0.5 | AJ182: p_preference171 | AK182: 0.6011733869 | AL182: 0.6011733869 | AM182: 0.6011733869 | AN182: 0.6011733869 | AO182: 0.6011733869 | AP182: 0.6011733869 | AQ182: 0.6011733869 | AR182: 0.6011733869 | AS182: 0.6011733869 | AT182: 0.6011733869 | AU182: 0.3128515383 | AV182: 0.3128515383 | AW182: 0.3128515383 | AX182: 0.3128515383 | AY182: 0.3128515383 | AZ182: 0.3128515383 | BA182: 0.3128515383 | BB182: 0.3128515383 | BC182: 0.3128515383 | BD182: 0.3128515383 | BE182: 0.6011733869 | BF182: 0.3128515383
G183: 172 | H183: choice_172 | I183: 1 | J183: 1 | K183: 0 | L183: 0 | M183: 1 | N183: 1 | O183: 1 | P183: 0 | Q183: 1 | R183: 1 | S183: 1 | T183: 1 | U183: 1 | V183: 0 | W183: 0 | X183: 0 | Y183: 0 | Z183: 1 | AA183: 0 | AB183: 0 | AC183: 0.7 | AD183: 0.4 | AJ183: p_preference172 | AK183: 0.5910560482 | AL183: 0.5910560482 | AM183: 0.5910560482 | AN183: 0.5910560482 | AO183: 0.5910560482 | AP183: 0.5910560482 | AQ183: 0.5910560482 | AR183: 0.5910560482 | AS183: 0.5910560482 | AT183: 0.5910560482 | AU183: 0.3315663844 | AV183: 0.3315663844 | AW183: 0.3315663844 | AX183: 0.3315663844 | AY183: 0.3315663844 | AZ183: 0.3315663844 | BA183: 0.3315663844 | BB183: 0.3315663844 | BC183: 0.3315663844 | BD183: 0.3315663844 | BE183: 0.5910560482 | BF183: 0.3315663844
G184: 173 | H184: choice_173 | I184: 1 | J184: 1 | K184: 0 | L184: 0 | M184: 1 | N184: 1 | O184: 0 | P184: 0 | Q184: 1 | R184: 1 | S184: 1 | T184: 0 | U184: 0 | V184: 0 | W184: 1 | X184: 0 | Y184: 1 | Z184: 0 | AA184: 1 | AB184: 0 | AC184: 0.6 | AD184: 0.4 | AJ184: p_preference173 | AK184: 0.5994504434 | AL184: 0.5994504434 | AM184: 0.5994504434 | AN184: 0.5994504434 | AO184: 0.5994504434 | AP184: 0.5994504434 | AQ184: 0.5994504434 | AR184: 0.5994504434 | AS184: 0.5994504434 | AT184: 0.5994504434 | AU184: 0.335909746 | AV184: 0.335909746 | AW184: 0.335909746 | AX184: 0.335909746 | AY184: 0.335909746 | AZ184: 0.335909746 | BA184: 0.335909746 | BB184: 0.335909746 | BC184: 0.335909746 | BD184: 0.335909746 | BE184: 0.5994504434 | BF184: 0.335909746
G185: 174 | H185: choice_174 | I185: 1 | J185: 1 | K185: 0 | L185: 1 | M185: 0 | N185: 0 | O185: 1 | P185: 0 | Q185: 0 | R185: 1 | S185: 0 | T185: 0 | U185: 1 | V185: 0 | W185: 0 | X185: 0 | Y185: 1 | Z185: 1 | AA185: 0 | AB185: 0 | AC185: 0.5 | AD185: 0.3 | AJ185: p_preference174 | AK185: 0.599505399 | AL185: 0.599505399 | AM185: 0.599505399 | AN185: 0.599505399 | AO185: 0.599505399 | AP185: 0.599505399 | AQ185: 0.599505399 | AR185: 0.599505399 | AS185: 0.599505399 | AT185: 0.599505399 | AU185: 0.3423187714 | AV185: 0.3423187714 | AW185: 0.3423187714 | AX185: 0.3423187714 | AY185: 0.3423187714 | AZ185: 0.3423187714 | BA185: 0.3423187714 | BB185: 0.3423187714 | BC185: 0.3423187714 | BD185: 0.3423187714 | BE185: 0.599505399 | BF185: 0.3423187714
G186: 175 | H186: choice_175 | I186: 0 | J186: 1 | K186: 1 | L186: 0 | M186: 1 | N186: 1 | O186: 1 | P186: 1 | Q186: 0 | R186: 0 | S186: 0 | T186: 0 | U186: 0 | V186: 0 | W186: 0 | X186: 1 | Y186: 1 | Z186: 0 | AA186: 1 | AB186: 0 | AC186: 0.6 | AD186: 0.3 | AJ186: p_preference175 | AK186: 0.5945548591 | AL186: 0.5945548591 | AM186: 0.5945548591 | AN186: 0.5945548591 | AO186: 0.5945548591 | AP186: 0.5945548591 | AQ186: 0.5945548591 | AR186: 0.5945548591 | AS186: 0.5945548591 | AT186: 0.5945548591 | AU186: 0.3430868943 | AV186: 0.3430868943 | AW186: 0.3430868943 | AX186: 0.3430868943 | AY186: 0.3430868943 | AZ186: 0.3430868943 | BA186: 0.3430868943 | BB186: 0.3430868943 | BC186: 0.3430868943 | BD186: 0.3430868943 | BE186: 0.5945548591 | BF186: 0.3430868943
G187: 176 | H187: choice_176 | I187: 1 | J187: 0 | K187: 1 | L187: 0 | M187: 1 | N187: 1 | O187: 1 | P187: 1 | Q187: 1 | R187: 1 | S187: 1 | T187: 0 | U187: 0 | V187: 0 | W187: 1 | X187: 0 | Y187: 0 | Z187: 0 | AA187: 1 | AB187: 0 | AC187: 0.8 | AD187: 0.3 | AJ187: p_preference176 | AK187: 0.5975993732 | AL187: 0.5975993732 | AM187: 0.5975993732 | AN187: 0.5975993732 | AO187: 0.5975993732 | AP187: 0.5975993732 | AQ187: 0.5975993732 | AR187: 0.5975993732 | AS187: 0.5975993732 | AT187: 0.5975993732 | AU187: 0.3412782048 | AV187: 0.3412782048 | AW187: 0.3412782048 | AX187: 0.3412782048 | AY187: 0.3412782048 | AZ187: 0.3412782048 | BA187: 0.3412782048 | BB187: 0.3412782048 | BC187: 0.3412782048 | BD187: 0.3412782048 | BE187: 0.5975993732 | BF187: 0.3412782048
G188: 177 | H188: choice_177 | I188: 1 | J188: 1 | K188: 0 | L188: 0 | M188: 1 | N188: 0 | O188: 0 | P188: 1 | Q188: 1 | R188: 1 | S188: 0 | T188: 0 | U188: 1 | V188: 1 | W188: 1 | X188: 0 | Y188: 1 | Z188: 0 | AA188: 0 | AB188: 0 | AC188: 0.6 | AD188: 0.4 | AJ188: p_preference177 | AK188: 0.6153394359 | AL188: 0.6153394359 | AM188: 0.6153394359 | AN188: 0.6153394359 | AO188: 0.6153394359 | AP188: 0.6153394359 | AQ188: 0.6153394359 | AR188: 0.6153394359 | AS188: 0.6153394359 | AT188: 0.6153394359 | AU188: 0.3346503843 | AV188: 0.3346503843 | AW188: 0.3346503843 | AX188: 0.3346503843 | AY188: 0.3346503843 | AZ188: 0.3346503843 | BA188: 0.3346503843 | BB188: 0.3346503843 | BC188: 0.3346503843 | BD188: 0.3346503843 | BE188: 0.6153394359 | BF188: 0.3346503843
G189: 178 | H189: choice_178 | I189: 1 | J189: 1 | K189: 0 | L189: 0 | M189: 1 | N189: 1 | O189: 0 | P189: 1 | Q189: 0 | R189: 1 | S189: 0 | T189: 1 | U189: 0 | V189: 1 | W189: 0 | X189: 0 | Y189: 0 | Z189: 1 | AA189: 0 | AB189: 0 | AC189: 0.6 | AD189: 0.3 | AJ189: p_preference178 | AK189: 0.6138054923 | AL189: 0.6138054923 | AM189: 0.6138054923 | AN189: 0.6138054923 | AO189: 0.6138054923 | AP189: 0.6138054923 | AQ189: 0.6138054923 | AR189: 0.6138054923 | AS189: 0.6138054923 | AT189: 0.6138054923 | AU189: 0.3411853459 | AV189: 0.3411853459 | AW189: 0.3411853459 | AX189: 0.3411853459 | AY189: 0.3411853459 | AZ189: 0.3411853459 | BA189: 0.3411853459 | BB189: 0.3411853459 | BC189: 0.3411853459 | BD189: 0.3411853459 | BE189: 0.6138054923 | BF189: 0.3411853459
G190: 179 | H190: choice_179 | I190: 1 | J190: 1 | K190: 1 | L190: 0 | M190: 0 | N190: 1 | O190: 1 | P190: 1 | Q190: 1 | R190: 0 | S190: 0 | T190: 0 | U190: 0 | V190: 0 | W190: 1 | X190: 0 | Y190: 0 | Z190: 0 | AA190: 1 | AB190: 0 | AC190: 0.7 | AD190: 0.2 | AJ190: p_preference179 | AK190: 0.6149249431 | AL190: 0.6149249431 | AM190: 0.6149249431 | AN190: 0.6149249431 | AO190: 0.6149249431 | AP190: 0.6149249431 | AQ190: 0.6149249431 | AR190: 0.6149249431 | AS190: 0.6149249431 | AT190: 0.6149249431 | AU190: 0.3395668113 | AV190: 0.3395668113 | AW190: 0.3395668113 | AX190: 0.3395668113 | AY190: 0.3395668113 | AZ190: 0.3395668113 | BA190: 0.3395668113 | BB190: 0.3395668113 | BC190: 0.3395668113 | BD190: 0.3395668113 | BE190: 0.6149249431 | BF190: 0.3395668113
G191: 180 | H191: choice_180 | I191: =IF(RAND()<=AK191,1,0) -> 1 | J191: 0 | K191: 1 | L191: 1 | M191: 1 | N191: 1 | O191: 1 | P191: 1 | Q191: 1 | R191: 0 | S191: 0 | T191: 0 | U191: 0 | V191: 0 | W191: 0 | X191: 0 | Y191: 1 | Z191: 1 | AA191: 0 | AB191: 1 | AC191: 0.8 | AD191: 0.3 | AJ191: p_preference180 | AK191: 0.6259324488 | AL191: 0.6259324488 | AM191: 0.6259324488 | AN191: 0.6259324488 | AO191: 0.6259324488 | AP191: 0.6259324488 | AQ191: 0.6259324488 | AR191: 0.6259324488 | AS191: 0.6259324488 | AT191: 0.6259324488 | AU191: 0.3281101302 | AV191: 0.3281101302 | AW191: 0.3281101302 | AX191: 0.3281101302 | AY191: 0.3281101302 | AZ191: 0.3281101302 | BA191: 0.3281101302 | BB191: 0.3281101302 | BC191: 0.3281101302 | BD191: 0.3281101302 | BE191: 0.6259324488 | BF191: 0.3281101302
G192: 181 | H192: choice_181 | I192: 1 | J192: 1 | K192: 0 | L192: 1 | M192: 0 | N192: 0 | O192: 1 | P192: 0 | Q192: 1 | R192: 1 | S192: 1 | T192: 1 | U192: 0 | V192: 0 | W192: 0 | X192: 0 | Y192: 1 | Z192: 0 | AA192: 0 | AB192: 0 | AC192: 0.6 | AD192: 0.3 | AJ192: p_preference181 | AK192: 0.6408392039 | AL192: 0.6408392039 | AM192: 0.6408392039 | AN192: 0.6408392039 | AO192: 0.6408392039 | AP192: 0.6408392039 | AQ192: 0.6408392039 | AR192: 0.6408392039 | AS192: 0.6408392039 | AT192: 0.6408392039 | AU192: 0.3227991172 | AV192: 0.3227991172 | AW192: 0.3227991172 | AX192: 0.3227991172 | AY192: 0.3227991172 | AZ192: 0.3227991172 | BA192: 0.3227991172 | BB192: 0.3227991172 | BC192: 0.3227991172 | BD192: 0.3227991172 | BE192: 0.6408392039 | BF192: 0.3227991172
G193: 182 | H193: choice_182 | I193: 1 | J193: 1 | K193: 1 | L193: 1 | M193: 1 | N193: 1 | O193: 1 | P193: 0 | Q193: 1 | R193: 0 | S193: =IF(RAND()<=AU193,1,0) -> 0 | T193: 0 | U193: 0 | V193: 0 | W193: 1 | X193: 0 | Y193: 1 | Z193: 0 | AA193: 1 | AB193: 0 | AC193: 0.8 | AD193: 0.3 | AJ193: p_preference182 | AK193: 0.6392552835 | AL193: 0.6392552835 | AM193: 0.6392552835 | AN193: 0.6392552835 | AO193: 0.6392552835 | AP193: 0.6392552835 | AQ193: 0.6392552835 | AR193: 0.6392552835 | AS193: 0.6392552835 | AT193: 0.6392552835 | AU193: 0.3230192055 | AV193: 0.3230192055 | AW193: 0.3230192055 | AX193: 0.3230192055 | AY193: 0.3230192055 | AZ193: 0.3230192055 | BA193: 0.3230192055 | BB193: 0.3230192055 | BC193: 0.3230192055 | BD193: 0.3230192055 | BE193: 0.6392552835 | BF193: 0.3230192055
G194: 183 | H194: choice_183 | I194: 1 | J194: 1 | K194: 1 | L194: 0 | M194: 1 | N194: 1 | O194: 1 | P194: 1 | Q194: 1 | R194: 0 | S194: 1 | T194: 0 | U194: 0 | V194: 0 | W194: 0 | X194: 0 | Y194: 0 | Z194: 0 | AA194: 0 | AB194: 0 | AC194: 0.8 | AD194: 0.1 | AJ194: p_preference183 | AK194: 0.6528297551 | AL194: 0.6528297551 | AM194: 0.6528297551 | AN194: 0.6528297551 | AO194: 0.6528297551 | AP194: 0.6528297551 | AQ194: 0.6528297551 | AR194: 0.6528297551 | AS194: 0.6528297551 | AT194: 0.6528297551 | AU194: 0.3182172849 | AV194: 0.3182172849 | AW194: 0.3182172849 | AX194: 0.3182172849 | AY194: 0.3182172849 | AZ194: 0.3182172849 | BA194: 0.3182172849 | BB194: 0.3182172849 | BC194: 0.3182172849 | BD194: 0.3182172849 | BE194: 0.6528297551 | BF194: 0.3182172849
G195: 184 | H195: choice_184 | I195: 0 | J195: 0 | K195: 1 | L195: 0 | M195: 1 | N195: 1 | O195: 1 | P195: 0 | Q195: 0 | R195: 1 | S195: 1 | T195: 0 | U195: 1 | V195: 0 | W195: 0 | X195: 0 | Y195: 1 | Z195: 0 | AA195: 0 | AB195: 0 | AC195: 0.5 | AD195: 0.3 | AJ195: p_preference184 | AK195: 0.6700467796 | AL195: 0.6700467796 | AM195: 0.6700467796 | AN195: 0.6700467796 | AO195: 0.6700467796 | AP195: 0.6700467796 | AQ195: 0.6700467796 | AR195: 0.6700467796 | AS195: 0.6700467796 | AT195: 0.6700467796 | AU195: 0.2988955564 | AV195: 0.2988955564 | AW195: 0.2988955564 | AX195: 0.2988955564 | AY195: 0.2988955564 | AZ195: 0.2988955564 | BA195: 0.2988955564 | BB195: 0.2988955564 | BC195: 0.2988955564 | BD195: 0.2988955564 | BE195: 0.6700467796 | BF195: 0.2988955564
G196: 185 | H196: choice_185 | I196: 1 | J196: 1 | K196: 1 | L196: 1 | M196: 1 | N196: 1 | O196: 1 | P196: 1 | Q196: 0 | R196: 1 | S196: 0 | T196: 1 | U196: 0 | V196: 1 | W196: 1 | X196: 1 | Y196: 0 | Z196: 0 | AA196: 0 | AB196: 0 | AC196: 0.9 | AD196: 0.4 | AJ196: p_preference185 | AK196: 0.6580421017 | AL196: 0.6580421017 | AM196: 0.6580421017 | AN196: 0.6580421017 | AO196: 0.6580421017 | AP196: 0.6580421017 | AQ196: 0.6580421017 | AR196: 0.6580421017 | AS196: 0.6580421017 | AT196: 0.6580421017 | AU196: 0.3040060008 | AV196: 0.3040060008 | AW196: 0.3040060008 | AX196: 0.3040060008 | AY196: 0.3040060008 | AZ196: 0.3040060008 | BA196: 0.3040060008 | BB196: 0.3040060008 | BC196: 0.3040060008 | BD196: 0.3040060008 | BE196: 0.6580421017 | BF196: 0.3040060008
G197: 186 | H197: choice_186 | I197: 0 | J197: 0 | K197: 0 | L197: 0 | M197: 1 | N197: 1 | O197: 1 | P197: 0 | Q197: 1 | R197: 1 | S197: 0 | T197: 0 | U197: 0 | V197: 0 | W197: 1 | X197: 0 | Y197: 1 | Z197: 0 | AA197: 0 | AB197: 1 | AC197: 0.5 | AD197: 0.3 | AJ197: p_preference186 | AK197: 0.6747378915 | AL197: 0.6747378915 | AM197: 0.6747378915 | AN197: 0.6747378915 | AO197: 0.6747378915 | AP197: 0.6747378915 | AQ197: 0.6747378915 | AR197: 0.6747378915 | AS197: 0.6747378915 | AT197: 0.6747378915 | AU197: 0.3061054007 | AV197: 0.3061054007 | AW197: 0.3061054007 | AX197: 0.3061054007 | AY197: 0.3061054007 | AZ197: 0.3061054007 | BA197: 0.3061054007 | BB197: 0.3061054007 | BC197: 0.3061054007 | BD197: 0.3061054007 | BE197: 0.6747378915 | BF197: 0.3061054007
G198: 187 | H198: choice_187 | I198: 1 | J198: 1 | K198: 1 | L198: 1 | M198: 1 | N198: 0 | O198: 1 | P198: 0 | Q198: 0 | R198: 1 | S198: 0 | T198: 1 | U198: 0 | V198: 1 | W198: 1 | X198: 1 | Y198: 0 | Z198: 1 | AA198: 0 | AB198: 0 | AC198: 0.7 | AD198: 0.5 | AJ198: p_preference187 | AK198: 0.6622641024 | AL198: 0.6622641024 | AM198: 0.6622641024 | AN198: 0.6622641024 | AO198: 0.6622641024 | AP198: 0.6622641024 | AQ198: 0.6622641024 | AR198: 0.6622641024 | AS198: 0.6622641024 | AT198: 0.6622641024 | AU198: 0.3104948606 | AV198: 0.3104948606 | AW198: 0.3104948606 | AX198: 0.3104948606 | AY198: 0.3104948606 | AZ198: 0.3104948606 | BA198: 0.3104948606 | BB198: 0.3104948606 | BC198: 0.3104948606 | BD198: 0.3104948606 | BE198: 0.6622641024 | BF198: 0.3104948606
G199: 188 | H199: choice_188 | I199: 1 | J199: 1 | K199: 1 | L199: 1 | M199: 1 | N199: 1 | O199: 1 | P199: 0 | Q199: 1 | R199: 0 | S199: 0 | T199: 0 | U199: 0 | V199: 0 | W199: 0 | X199: 1 | Y199: =IF(RAND()<=BA199,1,0) -> 1 | Z199: 0 | AA199: 0 | AB199: 0 | AC199: 0.8 | AD199: 0.2 | AJ199: p_preference188 | AK199: 0.6610376921 | AL199: 0.6610376921 | AM199: 0.6610376921 | AN199: 0.6610376921 | AO199: 0.6610376921 | AP199: 0.6610376921 | AQ199: 0.6610376921 | AR199: 0.6610376921 | AS199: 0.6610376921 | AT199: 0.6610376921 | AU199: 0.3244453746 | AV199: 0.3244453746 | AW199: 0.3244453746 | AX199: 0.3244453746 | AY199: 0.3244453746 | AZ199: 0.3244453746 | BA199: 0.3244453746 | BB199: 0.3244453746 | BC199: 0.3244453746 | BD199: 0.3244453746 | BE199: 0.6610376921 | BF199: 0.3244453746
G200: 189 | H200: choice_189 | I200: 0 | J200: 1 | K200: 0 | L200: 1 | M200: 0 | N200: 1 | O200: 1 | P200: 1 | Q200: 1 | R200: 1 | S200: 0 | T200: 0 | U200: 0 | V200: 1 | W200: 0 | X200: 1 | Y200: 1 | Z200: 0 | AA200: 0 | AB200: 0 | AC200: 0.7 | AD200: 0.3 | AJ200: p_preference189 | AK200: 0.6749339229 | AL200: 0.6749339229 | AM200: 0.6749339229 | AN200: 0.6749339229 | AO200: 0.6749339229 | AP200: 0.6749339229 | AQ200: 0.6749339229 | AR200: 0.6749339229 | AS200: 0.6749339229 | AT200: 0.6749339229 | AU200: 0.3120008371 | AV200: 0.3120008371 | AW200: 0.3120008371 | AX200: 0.3120008371 | AY200: 0.3120008371 | AZ200: 0.3120008371 | BA200: 0.3120008371 | BB200: 0.3120008371 | BC200: 0.3120008371 | BD200: 0.3120008371 | BE200: 0.6749339229 | BF200: 0.3120008371
G201: 190 | H201: choice_190 | I201: 0 | J201: 1 | K201: 0 | L201: 0 | M201: 1 | N201: 1 | O201: 1 | P201: 0 | Q201: 1 | R201: 1 | S201: 0 | T201: 0 | U201: 0 | V201: 1 | W201: 0 | X201: 0 | Y201: 1 | Z201: 1 | AA201: 1 | AB201: 0 | AC201: 0.6 | AD201: 0.4 | AJ201: p_preference190 | AK201: 0.6774405306 | AL201: 0.6774405306 | AM201: 0.6774405306 | AN201: 0.6774405306 | AO201: 0.6774405306 | AP201: 0.6774405306 | AQ201: 0.6774405306 | AR201: 0.6774405306 | AS201: 0.6774405306 | AT201: 0.6774405306 | AU201: 0.3108007534 | AV201: 0.3108007534 | AW201: 0.3108007534 | AX201: 0.3108007534 | AY201: 0.3108007534 | AZ201: 0.3108007534 | BA201: 0.3108007534 | BB201: 0.3108007534 | BC201: 0.3108007534 | BD201: 0.3108007534 | BE201: 0.6774405306 | BF201: 0.3108007534
G202: 191 | H202: choice_191 | I202: 1 | J202: 1 | K202: 1 | L202: 1 | M202: 1 | N202: 1 | O202: 0 | P202: 1 | Q202: 1 | R202: 1 | S202: 1 | T202: 1 | U202: 0 | V202: 1 | W202: 0 | X202: 1 | Y202: 1 | Z202: 0 | AA202: 0 | AB202: 1 | AC202: 0.9 | AD202: 0.6 | AJ202: p_preference191 | AK202: 0.6696964776 | AL202: 0.6696964776 | AM202: 0.6696964776 | AN202: 0.6696964776 | AO202: 0.6696964776 | AP202: 0.6696964776 | AQ202: 0.6696964776 | AR202: 0.6696964776 | AS202: 0.6696964776 | AT202: 0.6696964776 | AU202: 0.3197206781 | AV202: 0.3197206781 | AW202: 0.3197206781 | AX202: 0.3197206781 | AY202: 0.3197206781 | AZ202: 0.3197206781 | BA202: 0.3197206781 | BB202: 0.3197206781 | BC202: 0.3197206781 | BD202: 0.3197206781 | BE202: 0.6696964776 | BF202: 0.3197206781
... 309 more rows
